Workbook

Sheet Welcome
AA1: 32 | AB1: =INDEX(AB$4:AB$45,MATCH(MyVoteNo,$AA$4:$AA$45,0)) -> Forestry, Fisheries and the Environment | AC1: =INDEX(AC$4:AC$45,MATCH(MyVoteNo,$AA$4:$AA$45,0)) -> Humbelani Ramuedzisi | AE1: =INDEX(AE$4:AE$45,MATCH(MyVoteNo,$AA$4:$AA$45,0)) -> Humbelani.Ramuedzisi@treasury.gov.za | AF1: =INDEX(AF$4:AF$45,MATCH(MyVoteNo,$AA$4:$AA$45,0)) -> Ashley Ramasimu | AH1: =INDEX(AH$4:AH$45,MATCH(MyVoteNo,$AA$4:$AA$45,0)) -> Ashley.Ramasimu@treasury.gov.za
E2: MTEC Submission Workbook - 2024 MTEF | AI2: Dept Ceilings | AL2: CoE Ceilings | AS2: Departmental Ceilings | AT2: =SUM(AT4:AT45) -> 2112657589 | AU2: 2234053394 | AV2: 2337213784 | AY2: Compensation Ceilings | AZ2: =SUM(AZ4:AZ45) -> 193302074 | BA2: 202941875 | BB2: 212239489
Z3: Dept Index No. | AA3: Vote No. | AB3: Department | AC3: Contact Person | AD3: Tel | AE3: email | AF3: Contact Person | AG3: Tel | AH3: email | AI3: =MyYear5 -> 2024/25 | AJ3: =MyYear6 -> 2025/26 | AK3: =MyYear7 -> 2026/27 | AL3: =AI3 -> 2024/25 | AM3: 2025/26 | AN3: 2026/27 | AS3: Department | AT3: =AI3 -> 2024/25 | AU3: 2025/26 | AV3: 2026/27 | AY3: Department | AZ3: =AI3 -> 2024/25 | BA3: 2025/26 | BB3: 2026/27
Z4: 1 | AA4: 29 | AB4: Agriculture, Land Reform and Rural Development | AC4: Bothwell Deka | AD4: (012) 395 6784 | AE4: Bothwell.Deka@treasury.gov.za | AF4: Nico Likhethe | AG4: (012) 315 5558 | AH4: Nico.Likhethe@treasury.gov.za | AI4: =IFERROR(INDEX((AT$4:AT$45),MATCH($AB4,$AS$4:$AS$45,0)),0) -> 18106226 | AJ4: =IFERROR(INDEX((AU$4:AU$45),MATCH($AB4,$AS$4:$AS$45,0)),0) -> 18884702 | AK4: =IFERROR(INDEX((AV$4:AV$45),MATCH($AB4,$AS$4:$AS$45,0)),0) -> 19689007 | AL4: =IFERROR(INDEX((AZ$4:AZ$45),MATCH($AB4,$AY$4:$AY$45,0)),0) -> 3973440 | AM4: =IFERROR(INDEX((BA$4:BA$45),MATCH($AB4,$AY$4:$AY$45,0)),0) -> 4150668 | AN4: =IFERROR(INDEX((BB$4:BB$45),MATCH($AB4,$AY$4:$AY$45,0)),0) -> 4340827 | AS4: Agriculture, Land Reform and Rural Development | AT4: 18106226 | AU4: 18884702 | AV4: 19689007 | AY4: Agriculture, Land Reform and Rural Development | AZ4: 3973440 | BA4: 4150668 | BB4: 4340827
Z5: 2 | AA5: 16 | AB5: Basic Education | AC5: Spencer Janari | AD5: (012) 315 5436 | AE5: Spencer.Janari@treasury.gov.za | AF5: Shaneel Ragoo | AG5: (012) 315 5323 | AH5: shaneel.ragoo@treasury.gov.za | AI5: 33026402 | AJ5: 34928673 | AK5: 36008078 | AL5: 582081 | AM5: 607658 | AN5: 635494 | AS5: Basic Education | AT5: 33026402 | AU5: 34928673 | AV5: 36008078 | AY5: Basic Education | AZ5: 582081 | BA5: 607658 | BB5: 635494
Z6: 3 | AA6: 42 | AB6: Centre for Public Service Innovation | AC6: George Tembo | AD6: (012) 315 5514 | AE6: George.Tembo@treasury.gov.za | AF6: Uvadhya Singh | AG6: (012) 315 9030 | AH6: Uvadhya.Singh@treasury.gov.za | AI6: =IFERROR(INDEX((AT$4:AT$45),MATCH($AB6,$AS$4:$AS$45,0)),0) -> 47939 | AJ6: =IFERROR(INDEX((AU$4:AU$45),MATCH($AB6,$AS$4:$AS$45,0)),0) -> 50071 | AK6: =IFERROR(INDEX((AV$4:AV$45),MATCH($AB6,$AS$4:$AS$45,0)),0) -> 52367 | AL6: =IFERROR(INDEX((AZ$4:AZ$45),MATCH($AB6,$AY$4:$AY$45,0)),0) -> 27704 | AM6: =IFERROR(INDEX((BA$4:BA$45),MATCH($AB6,$AY$4:$AY$45,0)),0) -> 28879 | AN6: =IFERROR(INDEX((BB$4:BB$45),MATCH($AB6,$AY$4:$AY$45,0)),0) -> 30202 | AS6: Centre for Public Service Innovation | AT6: 47939 | AU6: 50071 | AV6: 52367 | AY6: Centre for Public Service Innovation | AZ6: 27704 | BA6: 28879 | BB6: 30202
B7: ="VOTE " &$AA$1&": " -> VOTE 32: | C7: =MyDeptName -> Forestry, Fisheries and the Environment | Z7: 4 | AA7: 21 | AB7: Civilian Secretariat for the Police Service | AC7: Velisubuhle Buti | AD7: (012) 395 6709 | AE7: Velisubuhle.Buti@treasury.gov.za | AF7: Sesethu Mazoza | AG7: (012) 315 5106 | AH7: Sesethu.Mazoza@treasury.gov.za | AI7: 160964 | AJ7: 168058 | AK7: 175762 | AL7: 113625 | AM7: 118605 | AN7: 124041 | AS7: Civilian Secretariat for the Police Service | AT7: 160964 | AU7: 168058 | AV7: 175762 | AY7: Civilian Secretariat for the Police Service | AZ7: 113625 | BA7: 118605 | BB7: 124041
Z8: 5 | AA8: 30 | AB8: Communications and Digital Technologies | AC8: Rezah Atcha | AD8: (012) 315 5287 | AE8: Rezah.Atcha@treasury.gov.za | AF8: Keitumetse Motshegwe | AG8: (012) 395 6750 | AH8: keitumetse.motshegwe@treasury.gov.za | AI8: 4383604 | AJ8: 2594540 | AK8: 2713406 | AL8: 315282 | AM8: 329082 | AN8: 344162 | AS8: Communications and Digital Technologies | AT8: 4383604 | AU8: 2594540 | AV8: 2713406 | AY8: Communications and Digital Technologies | AZ8: 315282 | BA8: 329082 | BB8: 344162
Z9: 6 | AA9: 3 | AB9: Cooperative Governance | AC9: Millicent Mulaudzi | AD9: (012) 395 6576 | AE9: Millicent.Mulaudzi@treasury.gov.za | AF9: Iqbal Mahomed Alli | AG9: (012) 315 5809 | AH9: Iqbal.Mahomed-Alli@treasury.gov.za | AI9: 129717885 | AJ9: 136475900 | AK9: 142728432 | AL9: 361869 | AM9: 377695 | AN9: 394999 | AS9: Cooperative Governance | AT9: 129717885 | AU9: 136475900 | AV9: 142728432 | AY9: Cooperative Governance | AZ9: 361869 | BA9: 377695 | BB9: 394999
B10: Enquiries | F10: Department Contact Details | I10: PLEASE CLICK THE BUTTON BELOW TO SUBMIT AN INPUT… (Note: Input can not be submitted if ceilings on the 'Data' sheet are exceeded.) | Z10: 7 | AA10: 22 | AB10: Correctional Services | AC10: Elvis Ramafamba | AD10: (012) 315 5204 | AE10: Elvis.Ramafamba@treasury.gov.za | AF10: Yolanda Matiwane | AG10: (012) 315 5012 | AH10: Yolanda.Matiwane@treasury.gov.za | AI10: 27182566 | AJ10: 28387241 | AK10: 29687776 | AL10: 18128255 | AM10: 18927310 | AN10: 19794449 | AS10: Correctional Services | AT10: 27182566 | AU10: 28387241 | AV10: 29687776 | AY10: Correctional Services | AZ10: 18128255 | BA10: 18927310 | BB10: 19794449
B11: =AC1 -> Humbelani Ramuedzisi | D11: =AE1 -> Humbelani.Ramuedzisi@treasury.gov.za | F11: Name: | Z11: 8 | AA11: 23 | AB11: Defence | AC11: Mashudu Bidzha | AD11: (012) 315 5344 | AE11: Mashudu.Bidzha@treasury.gov.za | AF11: Lesiba Ledwaba | AG11: (012) 315 6660 | AH11: Lesiba.Ledwaba@treasury.gov.za | AI11: 51045578 | AJ11: 53004606 | AK11: 55432932 | AL11: 31744679 | AM11: 33142192 | AN11: 34660567 | AS11: Defence | AT11: 51045578 | AU11: 53004606 | AV11: 55432932 | AY11: Defence | AZ11: 31744679 | BA11: 33142192 | BB11: 34660567
B12: =IF(AF1=B11,"",AF1) -> Ashley Ramasimu | D12: =IF(AH1=D11,"",AH1) -> Ashley.Ramasimu@treasury.gov.za | F12: Email: | Z12: 9 | AA12: 31 | AB12: Employment and Labour | AC12: Judy Naidoo | AD12: (012) 315 5269 | AE12: Judy.Naidoo@treasury.gov.za | AF12: Dennis Machobani | AG12: (012) 315 5269 | AH12: Dennis.Machobani@treasury.gov.za | AI12: 3902419 | AJ12: 4097507 | AK12: 4285232 | AL12: 1472864 | AM12: 1537484 | AN12: 1607923 | AS12: Employment and Labour | AT12: 3902419 | AU12: 4097507 | AV12: 4285232 | AY12: Employment and Labour | AZ12: 1472864 | BA12: 1537484 | BB12: 1607923
F13: Telephone number: | Z13: 10 | AA13: 32 | AB13: Forestry, Fisheries and the Environment | AC13: Humbelani Ramuedzisi | AD13: (012) 315 5320 | AE13: Humbelani.Ramuedzisi@treasury.gov.za | AF13: Ashley Ramasimu | AG13: (012) 315 5166 | AH13: Ashley.Ramasimu@treasury.gov.za | AI13: 9570290 | AJ13: 9777840 | AK13: 10225800 | AL13: 2041818 | AM13: 2130887 | AN13: 2228513 | AS13: Forestry, Fisheries and the Environment | AT13: 9570290 | AU13: 9777840 | AV13: 10225800 | AY13: Forestry, Fisheries and the Environment | AZ13: 2041818 | BA13: 2130887 | BB13: 2228513
F14: Mobile (optional): | Z14: 11 | AA14: 4 | AB14: Government Communication and Information System | AC14: Mokgatla Tema | AD14: (012) 315 5948 | AE14: Mokgatla.Tema@treasury.gov.za | AF14: Viwe Sobudula | AG14: (012) 315 5015 | AH14: Viwe.Sobudula@treasury.gov.za | AI14: 782847 | AJ14: 816429 | AK14: 853824 | AL14: 296596 | AM14: 309612 | AN14: 323793 | AS14: Government Communication and Information System | AT14: 782847 | AU14: 816429 | AV14: 853824 | AY14: Government Communication and Information System | AZ14: 296596 | BA14: 309612 | BB14: 323793
Z15: 12 | AA15: 18 | AB15: Health | AC15: Refiloe Thokoa | AD15: (012) 395 6559 | AE15: Refiloe.thokoa@treasury.gov.za | AF15: Jonatan Daven | AG15: (012) 315 6711 | AH15: Jonatan.Daven@treasury.gov.za | AI15: 62444328 | AJ15: 65357869 | AK15: 68307055 | AL15: 710017 | AM15: 744332 | AN15: 778434 | AS15: Health | AT15: 62444328 | AU15: 65357869 | AV15: 68307055 | AY15: Health | AZ15: 710017 | BA15: 744332 | BB15: 778434
Z16: 13 | AA16: 17 | AB16: Higher Education and Training | AC16: Spencer Janari | AD16: (012) 315 5436 | AE16: Spencer.Janari@treasury.gov.za | AF16: Barileng Khumisi | AG16: (012) 406 9069 | AH16: barileng.khumisi@treasury.gov.za | AI16: 145966089 | AJ16: 151412052 | AK16: 158825532 | AL16: 11675667 | AM16: 12192156 | AN16: 12750727 | AS16: Higher Education and Training | AT16: 145966089 | AU16: 151412052 | AV16: 158825532 | AY16: Higher Education and Training | AZ16: 11675667 | BA16: 12192156 | BB16: 12750727
Z17: 14 | AA17: 5 | AB17: Home Affairs | AC17: Timothy Murwa | AD17: (012) 315 5002 | AE17: Timothy.Murwa@treasury.gov.za | AF17: Pindi Masiso | AG17: (012) 315 5722 | AH17: Pindi.Masiso@treasury.gov.za | AI17: 10508917 | AJ17: 11010949 | AK17: 11515404 | AL17: 3575257 | AM17: 3753374 | AN17: 3925331 | AS17: Home Affairs | AT17: 10508917 | AU17: 11010949 | AV17: 11515404 | AY17: Home Affairs | AZ17: 3575257 | BA17: 3753374 | BB17: 3925331
Z18: 15 | AA18: 33 | AB18: Human Settlements | AC18: Ulrike Britton | AD18: (012) 315 5578 | AE18: Ulrike.Britton@treasury.gov.za | AF18: Lindiwe Ngcongwane | AG18: (012) 315 5357 | AH18: Lindiwe.Ngcongwane@treasury.gov.za | AI18: 36292746 | AJ18: 38074716 | AK18: 39966073 | AL18: 433287 | AM18: 452340 | AN18: 473064 | AS18: Human Settlements | AT18: 36292746 | AU18: 38074716 | AV18: 39966073 | AY18: Human Settlements | AZ18: 433287 | BA18: 452340 | BB18: 473064
Z19: 16 | AA19: 24 | AB19: Independent Police Investigative Directorate | AC19: Velisubuhle Buti | AD19: (012) 395 6709 | AE19: Velisubuhle.Buti@treasury.gov.za | AF19: Sesethu Mazoza | AG19: (012) 315 5106 | AH19: Sesethu.Mazoza@treasury.gov.za | AI19: 380557 | AJ19: 397413 | AK19: 415613 | AL19: 256869 | AM19: 268182 | AN19: 280468 | AS19: Independent Police Investigative Directorate | AT19: 380557 | AU19: 397413 | AV19: 415613 | AY19: Independent Police Investigative Directorate | AZ19: 256869 | BA19: 268182 | BB19: 280468
Z20: 17 | AA20: 6 | AB20: International Relations and Cooperation | AC20: George Tembo | AD20: (012) 315 5514 | AE20: George.Tembo@treasury.gov.za | AF20: Mercy Mhlophe | AG20: (012) 315 5598 | AH20: mercy.mhlope@treasury.gov.za | AI20: 6992215 | AJ20: 7302961 | AK20: 7637543 | AL20: 3169516 | AM20: 3201632 | AN20: 3348313 | AS20: International Relations and Cooperation | AT20: 6992215 | AU20: 7302961 | AV20: 7637543 | AY20: International Relations and Cooperation | AZ20: 3169516 | BA20: 3201632 | BB20: 3348313
Z21: 18 | AA21: 25 | AB21: Justice and Constitutional Development | AC21: Werner Krause | AD21: (012) 315 5211 | AE21: Werner.Krause@treasury.gov.za | AF21: Siphamandla Khumalo | AG21: (012)315 5759 | AH21: siphamandla.khumalo@treasury.gov.za | AI21: 24105537 | AJ21: 25158819 | AK21: 26311450 | AL21: 13516274 | AM21: 14115457 | AN21: 14762144 | AS21: Justice and Constitutional Development | AT21: 24105537 | AU21: 25158819 | AV21: 26311450 | AY21: Justice and Constitutional Development | AZ21: 13516274 | BA21: 14115457 | BB21: 14762144
Z22: 19 | AA22: 26 | AB22: Military Veterans | AC22: Mashudu Bidzha | AD22: (012) 315 5344 | AE22: Mashudu.Bidzha@treasury.gov.za | AF22: Lesiba Ledwaba | AG22: (012) 315 6660 | AH22: Lesiba.Ledwaba@treasury.gov.za | AI22: 974630 | AJ22: 1060016 | AK22: 1108574 | AL22: 140373 | AM22: 146550 | AN22: 153263 | AS22: Military Veterans | AT22: 974630 | AU22: 1060016 | AV22: 1108574 | AY22: Military Veterans | AZ22: 140373 | BA22: 146550 | BB22: 153263
Z23: 20 | AA23: 34 | AB23: Mineral Resources and Energy | AC23: Rezah Atcha | AD23: (012) 315 5287 | AE23: Rezah.Atcha@treasury.gov.za | AF23: Nomagugu Madikane | AG23: (012) 315 5312 | AH23: Nomagugu.Madikane@treasury.gov.za | AI23: 11233275 | AJ23: 11735638 | AK23: 12273293 | AL23: 1113586 | AM23: 1162586 | AN23: 1215852 | AS23: Mineral Resources and Energy | AT23: 11233275 | AU23: 11735638 | AV23: 12273293 | AY23: Mineral Resources and Energy | AZ23: 1113586 | BA23: 1162586 | BB23: 1215852
Z24: 21 | AA24: 7 | AB24: National School of Government | AC24: George Tembo | AD24: (012) 315 5514 | AE24: George.Tembo@treasury.gov.za | AF24: Uvadhya Singh | AG24: (012) 315 9030 | AH24: Uvadhya.Singh@treasury.gov.za | AI24: 238762 | AJ24: 249362 | AK24: 260790 | AL24: 63097 | AM24: 65890 | AN24: 68908 | AS24: National School of Government | AT24: 238762 | AU24: 249362 | AV24: 260790 | AY24: National School of Government | AZ24: 63097 | BA24: 65890 | BB24: 68908
Z25: 22 | AA25: 8 | AB25: National Treasury | AC25: Mokgatla Tema | AD25: (012) 315 5948 | AE25: Mokgatla.Tema@treasury.gov.za | AF25: Rhoda Marais | AG25: (012) 315 5906 | AH25: Rhoda.Marais@treasury.gov.za | AI25: 1019501606 | AJ25: 1084635490 | AK25: 1140308556 | AL25: 932436 | AM25: 973298 | AN25: 1017889 | AS25: National Treasury | AT25: 1019501606 | AU25: 1084635490 | AV25: 1140308556 | AY25: National Treasury | AZ25: 932436 | BA25: 973298 | BB25: 1017889
Z26: 23 | AA26: 27 | AB26: Office of the Chief Justice | AC26: Elvis Ramafamba | AD26: (012) 315 5204 | AE26: Elvis.Ramafamba@treasury.gov.za | AF26: Keabetswe Matlwa | AG26: (012) 395 6678 | AH26: Keabetswe.Matlwa@treasury.gov.za | AI26: 2536188 | AJ26: 2647639 | AK26: 2768935 | AL26: 1891577 | AM26: 1974159 | AN26: 2064604 | AS26: Office of the Chief Justice | AT26: 2536188 | AU26: 2647639 | AV26: 2768935 | AY26: Office of the Chief Justice | AZ26: 1891577 | BA26: 1974159 | BB26: 2064604
Z27: 24 | AA27: 2 | AB27: Parliament | AC27: Timothy Murwa | AD27: (012) 315 5002 | AE27: Timothy.Murwa@treasury.gov.za | AF27: Maggy Makoka | AG27: (012) 315 5468 | AH27: Maggy.Mokoka@Treasury.gov.za | AI27: 3525104 | AJ27: 3661084 | AK27: 3305912 | AL27: 1500186 | AM27: 1566258 | AN27: 1638015 | AS27: Parliament | AT27: 3525104 | AU27: 3661084 | AV27: 3305912 | AY27: Parliament | AZ27: 1500186 | BA27: 1566258 | BB27: 1638015
Z28: 25 | AA28: 9 | AB28: Planning, Monitoring and Evaluation | AC28: Mokgatla Tema | AD28: (012) 315 5948 | AE28: Mokgatla.Tema@treasury.gov.za | AF28: Viwe Sobudula | AG28: (012) 315 5015 | AH28: Viwe.Sobudula@treasury.gov.za | AI28: 496965 | AJ28: 518973 | AK28: 542740 | AL28: 336866 | AM28: 351632 | AN28: 367740 | AS28: Planning, Monitoring and Evaluation | AT28: 496965 | AU28: 518973 | AV28: 542740 | AY28: Planning, Monitoring and Evaluation | AZ28: 336866 | BA28: 351632 | BB28: 367740
Z29: 26 | AA29: 28 | AB29: Police | AC29: Velisubuhle Buti | AD29: (012) 395 6709 | AE29: Velisubuhle.Buti@treasury.gov.za | AF29: Sesethu Mazoza | AG29: (012) 315 5106 | AH29: Sesethu.Mazoza@treasury.gov.za | AI29: 109065348 | AJ29: 114920516 | AK29: 120185505 | AL29: 85705405 | AM29: 90694708 | AN29: 94849807 | AS29: Police | AT29: 109065348 | AU29: 114920516 | AV29: 120185505 | AY29: Police | AZ29: 85705405 | BA29: 90694708 | BB29: 94849807
Z30: 27 | AA30: 10 | AB30: Public Enterprises | AC30: Isaac Kurasha | AD30: (012) 315 5213 | AE30: Isaac.Kurasha@treasury.gov.za | AF30: Ntandokazi Makaula | AG30: (012) 395 6667 | AH30: Ntandokazi.Makaula@treasury.gov.za | AI30: 316354 | AJ30: 330360 | AK30: 345495 | AL30: 193496 | AM30: 202002 | AN30: 211256 | AS30: Public Enterprises | AT30: 316354 | AU30: 330360 | AV30: 345495 | AY30: Public Enterprises | AZ30: 193496 | BA30: 202002 | BB30: 211256
Z31: 28 | AA31: 11 | AB31: Public Service and Administration | AC31: George Tembo | AD31: (012) 315 5514 | AE31: George.Tembo@treasury.gov.za | AF31: Uvadhya Singh | AG31: (012) 315 9030 | AH31: Uvadhya.Singh@treasury.gov.za | AI31: 578023 | AJ31: 603608 | AK31: 631259 | AL31: 313413 | AM31: 327169 | AN31: 342157 | AS31: Public Service and Administration | AT31: 578023 | AU31: 603608 | AV31: 631259 | AY31: Public Service and Administration | AZ31: 313413 | BA31: 327169 | BB31: 342157
Z32: 29 | AA32: 12 | AB32: Public Service Commission | AC32: George Tembo | AD32: (012) 315 5514 | AE32: George.Tembo@treasury.gov.za | AF32: Mercy Mhlophe | AG32: (012) 315 5598 | AH32: mercy.mhlope@treasury.gov.za | AI32: 305021 | AJ32: 318469 | AK32: 333064 | AL32: 229743 | AM32: 239818 | AN32: 250808 | AS32: Public Service Commission | AT32: 305021 | AU32: 318469 | AV32: 333064 | AY32: Public Service Commission | AZ32: 229743 | BA32: 239818 | BB32: 250808
Z33: 30 | AA33: 13 | AB33: Public Works and Infrastructure | AC33: George Tembo | AD33: (012) 315 5514 | AE33: George.Tembo@treasury.gov.za | AF33: Mercy Mhlophe | AG33: (012) 315 5598 | AH33: mercy.mhlope@treasury.gov.za | AI33: 9167615 | AJ33: 9569007 | AK33: 10007411 | AL33: 622362 | AM33: 640502 | AN33: 669847 | AS33: Public Works and Infrastructure | AT33: 9167615 | AU33: 9569007 | AV33: 10007411 | AY33: Public Works and Infrastructure | AZ33: 622362 | BA33: 640502 | BB33: 669847
Z34: 31 | AA34: 35 | AB34: Science and Innovation | AC34: Humbelani Ramuedzisi | AD34: (012) 315 5320 | AE34: Humbelani.Ramuedzisi@treasury.gov.za | AF34: Ashley Ramasimu | AG34: (012) 315 5166 | AH34: Ashley.Ramasimu@treasury.gov.za | AI34: 10523679 | AJ34: 10105023 | AK34: 10567964 | AL34: 386794 | AM34: 403758 | AN34: 422257 | AS34: Science and Innovation | AT34: 10523679 | AU34: 10105023 | AV34: 10567964 | AY34: Science and Innovation | AZ34: 386794 | BA34: 403758 | BB34: 422257
Z35: 32 | AA35: 36 | AB35: Small Business Development | AC35: Bothwell Deka | AD35: (012) 395 6784 | AE35: Bothwell.Deka@treasury.gov.za | AF35: Nico Likhethe | AG35: (012) 315 5558 | AH35: Nico.Likhethe@treasury.gov.za | AI35: 2690264 | AJ35: 2810645 | AK35: 2939411 | AL35: 251630 | AM35: 262759 | AN35: 274797 | AS35: Small Business Development | AT35: 2690264 | AU35: 2810645 | AV35: 2939411 | AY35: Small Business Development | AZ35: 251630 | BA35: 262759 | BB35: 274797
Z36: 33 | AA36: 19 | AB36: Social Development | AC36: Pebetse Maleka | AD36: (012) 315 5566 | AE36: Pebetse.Maleka@treasury.gov.za | AF36: Yusuf Mayet | AG36: (012) 315 5189 | AH36: Yusuf.Mayet@treasury.gov.za | AI36: 242104513 | AJ36: 258000337 | AK36: 269820387 | AL36: 536375 | AM36: 559929 | AN36: 585583 | AS36: Social Development | AT36: 242104513 | AU36: 258000337 | AV36: 269820387 | AY36: Social Development | AZ36: 536375 | BA36: 559929 | BB36: 585583
Z37: 34 | AA37: 37 | AB37: Sport, Arts and Culture | AC37: Judy Naidoo | AD37: (012) 315 5269 | AE37: Judy.Naidoo@treasury.gov.za | AF37: Mabele Mdhluli | AG37: (012) 315 5573 | AH37: Mabele.Mdhluli@treasury.gov.za | AI37: 6160141 | AJ37: 6435802 | AK37: 6730654 | AL37: 402042 | AM37: 419739 | AN37: 438971 | AS37: Sport, Arts and Culture | AT37: 6160141 | AU37: 6435802 | AV37: 6730654 | AY37: Sport, Arts and Culture | AZ37: 402042 | BA37: 419739 | BB37: 438971
Z38: 35 | AA38: 14 | AB38: Statistics South Africa | AC38: Mokgatla Tema | AD38: (012) 315 5948 | AE38: Mokgatla.Tema@treasury.gov.za | AF38: Thobeka Mbonambi | AG38: (012) 395 6719 | AH38: Thobeka.Mbonambi@treasury.gov.za | AI38: 2823039 | AJ38: 2948069 | AK38: 3083132 | AL38: 1732988 | AM38: 1809186 | AN38: 1892077 | AS38: Statistics South Africa | AT38: 2823039 | AU38: 2948069 | AV38: 3083132 | AY38: Statistics South Africa | AZ38: 1732988 | BA38: 1809186 | BB38: 1892077
Z39: 36 | AA39: 1 | AB39: The Presidency | AC39: Timothy Murwa | AD39: (012) 315 5002 | AE39: Timothy.Murwa@treasury.gov.za | AF39: Maggy Mokoka | AG39: (012) 315 5468 | AH39: Maggy.Mokoka@treasury.gov.za | AI39: 652648 | AJ39: 681399 | AK39: 712616 | AL39: 408025 | AM39: 425818 | AN39: 445327 | AS39: The Presidency | AT39: 652648 | AU39: 681399 | AV39: 712616 | AY39: The Presidency | AZ39: 408025 | BA39: 425818 | BB39: 445327
Z40: 37 | AA40: 38 | AB40: Tourism | AC40: Humbelani Ramuedzisi | AD40: (012) 315 5320 | AE40: Humbelani.Ramuedzisi@treasury.gov.za | AF40: Ashley Ramasimu | AG40: (012) 315 5166 | AH40: Ashley.Ramasimu@treasury.gov.za | AI40: 2637187 | AJ40: 2755030 | AK40: 2881247 | AL40: 390949 | AM40: 408134 | AN40: 426831 | AS40: Tourism | AT40: 2637187 | AU40: 2755030 | AV40: 2881247 | AY40: Tourism | AZ40: 390949 | BA40: 408134 | BB40: 426831
Z41: 38 | AA41: 39 | AB41: Trade, Industry and Competition | AC41: Isaac Kurasha | AD41: (012) 315 5213 | AE41: Isaac.Kurasha@treasury.gov.za | AF41: Rudzani Sikhwari | AG41: (012) 315 5823 | AH41: rudzani.sikhwari@treasury.gov.za | AI41: 10588687 | AJ41: 11061989 | AK41: 11568778 | AL41: 1081180 | AM41: 1128561 | AN41: 1180267 | AS41: Trade, Industry and Competition | AT41: 10588687 | AU41: 11061989 | AV41: 11568778 | AY41: Trade, Industry and Competition | AZ41: 1081180 | BA41: 1128561 | BB41: 1180267
Z42: 39 | AA42: 15 | AB42: Traditional Affairs | AC42: Millicent Mulaudzi | AD42: (012) 395 6576 | AE42: Millicent.Mulaudzi@treasury.gov.za | AF42: Amanda Matutu | AG42: (012) 395 6786 | AH42: Amanda.Matutu@treasury.gov.za | AI42: 201250 | AJ42: 209720 | AK42: 219328 | AL42: 101224 | AM42: 105440 | AN42: 110272 | AS42: Traditional Affairs | AT42: 201250 | AU42: 209720 | AV42: 219328 | AY42: Traditional Affairs | AZ42: 101224 | BA42: 105440 | BB42: 110272
Z43: 40 | AA43: 40 | AB43: Transport | AC43: Dumebi Ubogu | AD43: (012) 315 5077 | AE43: Dumebi.Ubogu@treasury.gov.za | AF43: Luyolo Ntlangula | AG43: (012) 315-5571 | AH43: luyolo.ntangula@treasury.gov.za | AI43: 86718488 | AJ43: 94152020 | AK43: 95565466 | AL43: 571639 | AM43: 596766 | AN43: 624104 | AS43: Transport | AT43: 86718488 | AU43: 94152020 | AV43: 95565466 | AY43: Transport | AZ43: 571639 | BA43: 596766 | BB43: 624104
Z44: 41 | AA44: 41 | AB44: Water and Sanitation | AC44: Millicent Mulaudzi | AD44: (012) 395 6576 | AE44: Millicent.Mulaudzi@treasury.gov.za | AF44: Iqbal Mahomed Alli | AG44: (012) 315 5809 | AH44: Iqbal.Mahomed-Alli@treasury.gov.za | AI44: 24180064 | AJ44: 25884551 | AK44: 25324359 | AL44: 1869110 | AM44: 1951378 | AN44: 2040779 | AS44: Water and Sanitation | AT44: 24180064 | AU44: 25884551 | AV44: 25324359 | AY44: Water and Sanitation | AZ44: 1869110 | BA44: 1951378 | BB44: 2040779
Z45: 42 | AA45: 20 | AB45: Women, Youth and Persons with Disabilities | AC45: Pebetse Maleka | AD45: (012) 315 5566 | AE45: Pebetse.Maleka@treasury.gov.za | AF45: Lindi Mzankomo | AG45: (012) 315 5256 | AH45: Lindi.Mzankomo@treasury.gov.za | AI45: 821629 | AJ45: 858301 | AK45: 897622 | AL45: 132478 | AM45: 138290 | AN45: 144627 | AS45: Women, Youth and Persons with Disabilities | AT45: 821629 | AU45: 858301 | AV45: 897622 | AY45: Women, Youth and Persons with Disabilities | AZ45: 132478 | BA45: 138290 | BB45: 144627
AI48: =SUM(AI4:AI45) -> 2112657589 | AJ48: 2234053394 | AK48: 2337213784 | AL48: 193302074 | AM48: 202941875 | AN48: 212239489

Sheet Notes
B42: Link to 2024 MTEF Guidelines
B43: http://www.treasury.gov.za/publications/guidelines/default.aspx
R57: Click "Enable Content"
R69: Tick "Ignore Privacy Levels" box
R72: Click "Save"

Sheet Pivot % growth
B14: Econ3 | C14: (All)
B16: Row Labels | C16: 2023/24 Baseline | D16: 2024/25 Revised baseline | E16: 2025/26 Revised baseline | F16: 2026/27 Revised baseline | G16: 2024/25 adjustment | H16: 2025/26 adjustment | I16: 2026/27 adjustment | J16: % YoY 2024/25 | K16: % YoY 2025/26 | L16: % YoY 2026/27 | M16: Ave Ann growth History | N16: Ave Ann growth MTEF | O16: 2024/25 % adjustment | P16: 2025/26 % adjustment | Q16: 2026/27 % adjustment
B17: Administration | C17: 1210609 | D17: 1267611 | E17: 1373461 | F17: 1436386 | G17: 0 | H17: 0 | I17: 0 | J17: 0.04708539256 | K17: 0.08350353539 | L17: 0.04581491575 | M17: 0.05729780315 | N17: 0.05865817401 | O17: 0 | P17: 0 | Q17: 0
B18: Current payments | C18: 1006273 | D18: 1034392 | E18: 1127721 | F18: 1179388 | G18: 0 | H18: 0 | I18: 0 | J18: 0.02794370911 | K18: 0.09022594916 | L18: 0.04581541002 | M18: 0.06877076977 | N18: 0.05433905707 | O18: 0 | P18: 0 | Q18: 0
B19: Transfers and subsidies | C19: 150 | D19: 2000 | E19: 2090 | F19: 2186 | G19: 0 | H19: 0 | I19: 0 | J19: 12.33333333 | K19: 0.045 | L19: 0.04593301435 | M19: -0.6028737632 | N19: 1.44260345 | O19: 0 | P19: 0 | Q19: 0
B20: Payments for capital assets | C20: 204186 | D20: 231219 | E20: 243650 | F20: 254812 | G20: 0 | H20: 0 | I20: 0 | J20: 0.1323939937 | K20: 0.05376288281 | L20: 0.04581161502 | M20: 0.01098879067 | N20: 0.07662544171 | O20: 0 | P20: 0 | Q20: 0
B21: Payments for financial assets | C21: 0 | D21: 0 | E21: 0 | F21: 0 | G21: 0 | H21: 0 | I21: 0 | J21: 0 | K21: 0 | L21: 0 | M21: -1 | N21: 0 | O21: 0 | P21: 0 | Q21: 0
B22: Regulatory Compliance and Monitoring | C22: 308555 | D22: 304806 | E22: 303520 | F22: 317420 | G22: 0 | H22: 0 | I22: 0 | J22: -0.01215018392 | K22: -0.004219077052 | L22: 0.04579599367 | M22: 0.08237508699 | N22: 0.009486618258 | O22: 0 | P22: 0 | Q22: 0
B23: Current payments | C23: 305760 | D23: 302106 | E23: 300699 | F23: 314470 | G23: 0 | H23: 0 | I23: 0 | J23: -0.01195054945 | K23: -0.004657305714 | L23: 0.04579662719 | M23: 0.09188519612 | N23: 0.009406701368 | O23: 0 | P23: 0 | Q23: 0
B24: Transfers and subsidies | C24: 2700 | D24: 2700 | E24: 2821 | F24: 2950 | G24: 0 | H24: 0 | I24: 0 | J24: 0 | K24: 0.04481481481 | L24: 0.04572846508 | M24: -0.03343545929 | N24: 0.02995776764 | O24: 0 | P24: 0 | Q24: 0
B25: Payments for capital assets | C25: 95 | D25: 0 | E25: 0 | F25: 0 | G25: 0 | H25: 0 | I25: 0 | J25: -1 | K25: 0 | L25: 0 | M25: -0.7408743999 | N25: -1 | O25: 0 | P25: 0 | Q25: 0
B26: Payments for financial assets | C26: 0 | D26: 0 | E26: 0 | F26: 0 | G26: 0 | H26: 0 | I26: 0 | J26: 0 | K26: 0 | L26: 0 | M26: 0 | N26: 0 | O26: 0 | P26: 0 | Q26: 0
B27: Oceans and Coasts | C27: 496788 | D27: 519863 | E27: 544745 | F27: 569703 | G27: 0 | H27: 0 | I27: 0 | J27: 0.04644838442 | K27: 0.04786260996 | L27: 0.04581593223 | M27: 0.04646166724 | N27: 0.0467086259 | O27: 0 | P27: 0 | Q27: 0
B28: Current payments | C28: 479082 | D28: 500840 | E28: 525318 | F28: 549386 | G28: 0 | H28: 0 | I28: 0 | J28: 0.04541602481 | K28: 0.04887389186 | L28: 0.04581605808 | M28: 0.03906250958 | N28: 0.04670085293 | O28: 0 | P28: 0 | Q28: 0
B29: Transfers and subsidies | C29: 9221 | D29: 10000 | E29: 10000 | F29: 10458 | G29: 0 | H29: 0 | I29: 0 | J29: 0.08448107581 | K29: 0 | L29: 0.0458 | M29: 0.3065795301 | N29: 0.04285406536 | O29: 0 | P29: 0 | Q29: 0
B30: Payments for capital assets | C30: 8485 | D30: 9023 | E30: 9427 | F30: 9859 | G30: 0 | H30: 0 | I30: 0 | J30: 0.06340601061 | K30: 0.04477446526 | L30: 0.04582581945 | M30: 0.5402688901 | N30: 0.05130082846 | O30: 0 | P30: 0 | Q30: 0
B31: Payments for financial assets | C31: 0 | D31: 0 | E31: 0 | F31: 0 | G31: 0 | H31: 0 | I31: 0 | J31: 0 | K31: 0 | L31: 0 | M31: 0 | N31: 0 | O31: 0 | P31: 0 | Q31: 0
B32: Climate Change and Air Quality | C32: 672956 | D32: 727959 | E32: 623816 | F32: 652399 | G32: 0 | H32: 0 | I32: 0 | J32: 0.08173342685 | K32: -0.1430616285 | L32: 0.04581960065 | M32: 0.07862686218 | N32: -0.01028791715 | O32: 0 | P32: 0 | Q32: 0
B33: Current payments | C33: 117741 | D33: 156561 | E33: 164008 | F33: 171525 | G33: 0 | H33: 0 | I33: 0 | J33: 0.3297067292 | K33: 0.04756612439 | L33: 0.04583313009 | M33: -0.111577315 | N33: 0.1336175723 | O33: 0 | P33: 0 | Q33: 0
B34: Transfers and subsidies | C34: 554383 | D34: 568828 | E34: 457054 | F34: 477994 | G34: 0 | H34: 0 | I34: 0 | J34: 0.02605599378 | K34: -0.1964987659 | L34: 0.04581515532 | M34: 0.1473462422 | N34: -0.04821794209 | O34: 0 | P34: 0 | Q34: 0
B35: Payments for capital assets | C35: 832 | D35: 2570 | E35: 2754 | F35: 2880 | G35: 0 | H35: 0 | I35: 0 | J35: 2.088942308 | K35: 0.07159533074 | L35: 0.04575163399 | M35: -0.1346613518 | N35: 0.5127124705 | O35: 0 | P35: 0 | Q35: 0
B36: Payments for financial assets | C36: 0 | D36: 0 | E36: 0 | F36: 0 | G36: 0 | H36: 0 | I36: 0 | J36: 0 | K36: 0 | L36: 0 | M36: -1 | N36: 0 | O36: 0 | P36: 0 | Q36: 0
B37: Biodiversity and Conservation | C37: 2080993 | D37: 1447968 | E37: 1418149 | F37: 1483116 | G37: 0 | H37: 0 | I37: 0 | J37: -0.3041937191 | K37: -0.02059368715 | L37: 0.04581112422 | M37: 0.003324411379 | N37: -0.1067599917 | O37: 0 | P37: 0 | Q37: 0
B38: Current payments | C38: 236083 | D38: 255748 | E38: 266498 | F38: 278705 | G38: 0 | H38: 0 | I38: 0 | J38: 0.08329697606 | K38: 0.04203356429 | L38: 0.0458052218 | M38: 0.3262537874 | N38: 0.05688243854 | O38: 0 | P38: 0 | Q38: 0
B39: Transfers and subsidies | C39: 1844400 | D39: 1191800 | E39: 1151220 | F39: 1203961 | G39: 0 | H39: 0 | I39: 0 | J39: -0.3538278031 | K39: -0.03404933714 | L39: 0.04581313737 | M39: -0.01991519222 | N39: -0.1325340532 | O39: 0 | P39: 0 | Q39: 0
B40: Payments for capital assets | C40: 510 | D40: 420 | E40: 431 | F40: 450 | G40: 0 | H40: 0 | I40: 0 | J40: -0.1764705882 | K40: 0.02619047619 | L40: 0.04408352668 | M40: 1.419668617 | N40: -0.04086270314 | O40: 0 | P40: 0 | Q40: 0
B41: Payments for financial assets | C41: 0 | D41: 0 | E41: 0 | F41: 0 | G41: 0 | H41: 0 | I41: 0 | J41: 0 | K41: 0 | L41: 0 | M41: -1 | N41: 0 | O41: 0 | P41: 0 | Q41: 0
B42: Environmental Programmes | C42: 3257601 | D42: 3393298 | E42: 3520516 | F42: 3681811 | G42: 0 | H42: 0 | I42: 0 | J42: 0.04165550047 | K42: 0.03749096012 | L42: 0.04581572701 | M42: 0.07566897007 | N42: 0.04164851829 | O42: 0 | P42: 0 | Q42: 0
B43: Current payments | C43: 3251725 | D43: 3089491 | E43: 3214328 | F43: 3361594 | G43: 0 | H43: 0 | I43: 0 | J43: -0.04989167288 | K43: 0.04040697966 | L43: 0.04581548616 | M43: 0.1509814881 | N43: 0.01113811923 | O43: 0 | P43: 0 | Q43: 0
B44: Transfers and subsidies | C44: 0 | D44: 0 | E44: 0 | F44: 0 | G44: 0 | H44: 0 | I44: 0 | J44: 0 | K44: 0 | L44: 0 | M44: -1 | N44: 0 | O44: 0 | P44: 0 | Q44: 0
B45: Payments for capital assets | C45: 5876 | D45: 303807 | E45: 306188 | F45: 320217 | G45: 0 | H45: 0 | I45: 0 | J45: 50.70302927 | K45: 0.007837212441 | L45: 0.04581825545 | M45: -0.6590989548 | N45: 2.791294601 | O45: 0 | P45: 0 | Q45: 0
B46: Payments for financial assets | C46: 0 | D46: 0 | E46: 0 | F46: 0 | G46: 0 | H46: 0 | I46: 0 | J46: 0 | K46: 0 | L46: 0 | M46: 0 | N46: 0 | O46: 0 | P46: 0 | Q46: 0
B47: Chemicals and Waste Management | C47: 634185 | D47: 649691 | E47: 678848 | F47: 709946 | G47: 0 | H47: 0 | I47: 0 | J47: 0.0244502787 | K47: 0.04487825751 | L47: 0.0458099604 | M47: 0.1696450897 | N47: 0.03833250617 | O47: 0 | P47: 0 | Q47: 0
B48: Current payments | C48: 421532 | D48: 539456 | E48: 563592 | F48: 589409 | G48: 0 | H48: 0 | I48: 0 | J48: 0.2797510035 | K48: 0.04474136908 | L48: 0.04580796037 | M48: 0.03680452497 | N48: 0.1182238169 | O48: 0 | P48: 0 | Q48: 0
B49: Transfers and subsidies | C49: 88008 | D49: 92319 | E49: 96537 | F49: 100960 | G49: 0 | H49: 0 | I49: 0 | J49: 0.04898418326 | K49: 0.04568940305 | L49: 0.04581662989 | M49: 0.7280857846 | N49: 0.04682896338 | O49: 0 | P49: 0 | Q49: 0
B50: Payments for capital assets | C50: 124645 | D50: 17916 | E50: 18719 | F50: 19577 | G50: 0 | H50: 0 | I50: 0 | J50: -0.8562637892 | K50: 0.04482027238 | L50: 0.04583578183 | M50: 3.903806123 | N50: -0.4604598608 | O50: 0 | P50: 0 | Q50: 0
B51: Payments for financial assets | C51: 0 | D51: 0 | E51: 0 | F51: 0 | G51: 0 | H51: 0 | I51: 0 | J51: 0 | K51: 0 | L51: 0 | M51: 0 | N51: 0 | O51: 0 | P51: 0 | Q51: 0
B52: Forestry Management | C52: 586729 | D52: 648225 | E52: 684290 | F52: 715637 | G52: 0 | H52: 0 | I52: 0 | J52: 0.104811591 | K52: 0.05563654595 | L52: 0.0458095252 | M52: 0.04345759184 | N52: 0.06844394942 | O52: 0 | P52: 0 | Q52: 0
B53: Current payments | C53: 559574 | D53: 611678 | E53: 646571 | F53: 676191 | G53: 0 | H53: 0 | I53: 0 | J53: 0.09311369006 | K53: 0.05704471961 | L53: 0.04581090089 | M53: 0.03375187078 | N53: 0.06513327643 | O53: 0 | P53: 0 | Q53: 0
B54: Transfers and subsidies | C54: 5200 | D54: 9420 | E54: 9520 | F54: 9956 | G54: 0 | H54: 0 | I54: 0 | J54: 0.8115384615 | K54: 0.01061571125 | L54: 0.04579831933 | M54: -0.1896764111 | N54: 0.241730022 | O54: 0 | P54: 0 | Q54: 0
B55: Payments for capital assets | C55: 21955 | D55: 27127 | E55: 28199 | F55: 29490 | G55: 0 | H55: 0 | I55: 0 | J55: 0.2355727625 | K55: 0.03951782357 | L55: 0.04578176531 | M55: 4.60025509 | N55: 0.1033512136 | O55: 0 | P55: 0 | Q55: 0
B56: Payments for financial assets | C56: 0 | D56: 0 | E56: 0 | F56: 0 | G56: 0 | H56: 0 | I56: 0 | J56: 0 | K56: 0 | L56: 0 | M56: 0 | N56: 0 | O56: 0 | P56: 0 | Q56: 0
B57: Fisheries Management | C57: 625150 | D57: 610869 | E57: 630495 | F57: 659382 | G57: 0 | H57: 0 | I57: 0 | J57: -0.02284411741 | K57: 0.03212800126 | L57: 0.04581638237 | M57: 0.09807030752 | N57: 0.01792930486 | O57: 0 | P57: 0 | Q57: 0
B58: Current payments | C58: 302305 | D58: 273525 | E58: 278038 | F58: 290777 | G58: 0 | H58: 0 | I58: 0 | J58: -0.09520186567 | K58: 0.0164994059 | L58: 0.04581747819 | M58: 0.02836814086 | N58: -0.0128763121 | O58: 0 | P58: 0 | Q58: 0
B59: Transfers and subsidies | C59: 322845 | D59: 337344 | E59: 352457 | F59: 368605 | G59: 0 | H59: 0 | I59: 0 | J59: 0.04491009618 | K59: 0.0447999668 | L59: 0.04581551792 | M59: 0.1846391627 | N59: 0.04517509461 | O59: 0 | P59: 0 | Q59: 0
B60: Payments for capital assets | C60: 0 | D60: 0 | E60: 0 | F60: 0 | G60: 0 | H60: 0 | I60: 0 | J60: 0 | K60: 0 | L60: 0 | M60: 0 | N60: 0 | O60: 0 | P60: 0 | Q60: 0
B61: Payments for financial assets | C61: 0 | D61: 0 | E61: 0 | F61: 0 | G61: 0 | H61: 0 | I61: 0 | J61: 0 | K61: 0 | L61: 0 | M61: 0 | N61: 0 | O61: 0 | P61: 0 | Q61: 0
B62: Grand Total | C62: 9873566 | D62: 9570290 | E62: 9777840 | F62: 10225800 | G62: 0 | H62: 0 | I62: 0 | J62: -0.03071595409 | K62: 0.02168690813 | L62: 0.04581379937 | M62: 0.05957499631 | N62: 0.01175281237 | O62: 0 | P62: 0 | Q62: 0

Sheet Pivot_T
B11: Econ4 | C11: (All)
B12: Econ2 | C12: (All)
B13: DOR | C13: (All)
B14: Econ3 | C14: (All)
B16: Value | C16: Column Labels
C17: 2023/24 | E17: 2024/25 | G17: 2025/26 | I17: 2026/27
B18: Row Labels | C18: Baseline | D18: Revised baseline | E18: Baseline | F18: Revised baseline | G18: Baseline | H18: Revised baseline | I18: Baseline | J18: Revised baseline
B19: Administration | C19: 1210609 | D19: 1210609 | E19: 1267611 | F19: 1267611 | G19: 1373461 | H19: 1373461 | I19: 1436386 | J19: 1436386
B20: Regulatory Compliance and Monitoring | C20: 308555 | D20: 308555 | E20: 304806 | F20: 304806 | G20: 303520 | H20: 303520 | I20: 317420 | J20: 317420
B21: Oceans and Coasts | C21: 496788 | D21: 496788 | E21: 519863 | F21: 519863 | G21: 544745 | H21: 544745 | I21: 569703 | J21: 569703
B22: Climate Change and Air Quality | C22: 672956 | D22: 672956 | E22: 727959 | F22: 727959 | G22: 623816 | H22: 623816 | I22: 652399 | J22: 652399
B23: Biodiversity and Conservation | C23: 2080993 | D23: 2080993 | E23: 1447968 | F23: 1447968 | G23: 1418149 | H23: 1418149 | I23: 1483116 | J23: 1483116
B24: Environmental Programmes | C24: 3257601 | D24: 3257601 | E24: 3393298 | F24: 3393298 | G24: 3520516 | H24: 3520516 | I24: 3681811 | J24: 3681811
B25: Chemicals and Waste Management | C25: 634185 | D25: 634185 | E25: 649691 | F25: 649691 | G25: 678848 | H25: 678848 | I25: 709946 | J25: 709946
B26: Forestry Management | C26: 586729 | D26: 586729 | E26: 648225 | F26: 648225 | G26: 684290 | H26: 684290 | I26: 715637 | J26: 715637
B27: Fisheries Management | C27: 625150 | D27: 625150 | E27: 610869 | F27: 610869 | G27: 630495 | H27: 630495 | I27: 659382 | J27: 659382
B28: Grand Total | C28: 9873566 | D28: 9873566 | E28: 9570290 | F28: 9570290 | G28: 9777840 | H28: 9777840 | I28: 10225800 | J28: 10225800

Sheet Service delivery impact
B15: Note: Data in the table below is sourced from the individual SRT sheets. Any adjustments should be made on the SRT sheets. Ajustments made directly on this table will be over-written when the data is refreshed! …remember to refresh.
B17: Impact area | C17: Unit no | D17: Unit name | E17: Comment

Sheet Performance impact
B15: Note: Data in the table below is sourced from the individual SRT sheets. Any adjustments should be made on the SRT sheets. Ajustments made directly on this table will be over-written when the data is refreshed! …remember to refresh.
B17: Impact area | C17: Unit no | D17: Unit name | E17: Performance indicator | F17: 2023/24 Current performance | G17: 2023/24 Performance @ benchmark level | H17: 2023/24 Change | I17: 2024/25 Original target | J17: 2024/25 Revised target | K17: 2024/25 Change | L17: 2025/26 Original target | M17: 2025/26 Revised target | N17: 2025/26 Change | O17: 2026/27 Original target | P17: 2026/27 Revised target | Q17: 2026/27 Change | R17: Comment | S17: Gov Priority

Sheet Pivot Infra impact
B14: Impact area | C14: (All)
B16: Value | C16: Column Labels
C17: 2023/24 | E17: 2024/25 | G17: 2025/26 | I17: 2026/27
B18: Row Labels | C18: Current Number | D18: Change | E18: Original amount | F18: Change | G18: Original amount | H18: Change | I18: Original amount | J18: Change
B19: (blank) | C19: 0 | D19: 0 | E19: 0 | F19: 0 | G19: 0 | H19: 0 | I19: 0 | J19: 0
B20: Grand Total | C20: 0 | D20: 0 | E20: 0 | F20: 0 | G20: 0 | H20: 0 | I20: 0 | J20: 0

Sheet Pivot Personnel impact
B16: Value | C16: Column Labels
C17: 2023/24 | D17: 2024/25 | E17: 2025/26 | F17: 2026/27
B18: Row Labels | C18: Change in number | D18: Change in number | E18: Change in number | F18: Change in number
B19: Levels 01 - 06 | C19: 0 | D19: 0 | E19: 0 | F19: 0
B20: Levels 07 - 12 | C20: 0 | D20: 0 | E20: 0 | F20: 0
B21: Levels 13 - 16 | C21: 0 | D21: 0 | E21: 0 | F21: 0
B22: Other | C22: 0 | D22: 0 | E22: 0 | F22: 0
B23: Grand Total | C23: 0 | D23: 0 | E23: 0 | F23: 0

Sheet Pivot HRBP
B12: Salary level | C12: (All)
B13: Programme No | C13: (All)
B15: Number | C15: Columns
C16: 2022/23
B17: Row Labels | C17: Once-off Payments per person | D17: Establishment: Number of funded posts additional to the establishment | E17: FTE Headcount | F17: Total Annual Cost | G17: Unit Costs | H17: Establishment: Number of funded posts as at 31 March 2023
B18: Levels 01 - 06 | C18: 0 | D18: 0 | E18: 0 | F18: 0 | G18: 0 | H18: 0
B19: Levels 07 - 12 | C19: 0 | D19: 0 | E19: 0 | F19: 0 | G19: 0 | H19: 0
B20: Levels 13 - 16 | C20: 0 | D20: 0 | E20: 0 | F20: 0 | G20: 0 | H20: 0
B21: Other | C21: 0 | D21: 0 | E21: 0 | F21: 0 | G21: 0 | H21: 0
B22: Grand Total | C22: 0 | D22: 0 | E22: 0 | F22: 0 | G22: 0 | H22: 0

Sheet Data
AU2: Spending review topics…
AT3: 1 | AU3: Spending review topic 1 | CP3: =COUNTIF(Dataset[2024/25 Revised baseline],"<0") -> 0 | CQ3: =COUNTIF(Dataset[2025/26 Revised baseline],"<0") -> 1 | CR3: =COUNTIF(Dataset[2026/27 Revised baseline],"<0") -> 1
AT4: 2 | AU4: Spending review topic 2
AT5: 3 | AU5: Spending review topic 3
AT6: 4 | AU6: Spending review topic 4 | CP6: =MyYear5 -> 2024/25 | CQ6: =MyYear6 -> 2025/26 | CR6: =MyYear7 -> 2026/27
CN8: Baseline ceiling: | CP8: =INDEX(DeptCeiling,MATCH(MyVoteNo,VoteNoList,0),1) -> 9570290 | CQ8: =INDEX(DeptCeiling,MATCH(MyVoteNo,VoteNoList,0),2) -> 9777840 | CR8: =INDEX(DeptCeiling,MATCH(MyVoteNo,VoteNoList,0),3) -> 10225800
CN9: (Over)/Under | CP9: =CP8-SUM(Dataset[2024/25 Revised baseline]) -> 0 | CQ9: =CQ8-SUM(Dataset[2025/26 Revised baseline]) -> 0 | CR9: =CR8-SUM(Dataset[2026/27 Revised baseline]) -> 0
CN11: CoE ceiling: | CP11: =INDEX(CoECeiling,MATCH(MyVoteNo,VoteNoList,0),1) -> 2041818 | CQ11: =INDEX(CoECeiling,MATCH(MyVoteNo,VoteNoList,0),2) -> 2130887 | CR11: =INDEX(CoECeiling,MATCH(MyVoteNo,VoteNoList,0),3) -> 2228513
CN12: (Over)/Under | CP12: =CP11-SUMIF(Dataset[Econ3],"Compensation of employees",Dataset[2024/25 Revised baseline]) -> 0 | CQ12: =CQ11-SUMIF(Dataset[Econ3],"Compensation of employees",Dataset[2025/26 Revised baseline]) -> 0 | CR12: =CR11-SUMIF(Dataset[Econ3],"Compensation of employees",Dataset[2026/27 Revised baseline]) -> 0
AI15: 2019/20 | AJ15: 2020/21 | AK15: 2021/22 | AL15: 2022/23 Main appropriation | AM15: 2022/23 Adjusted appropriation | AN15: 2022/23 Revised estimate | AO15: 2022/23 Preliminary outcome | AP15: 2023/24 Baseline | AQ15: 2024/25 Baseline | AR15: 2025/26 Baseline | AS15: 2026/27 Baseline | AT15: 2024/25 From - Spending review Topic 1 | AU15: 2025/26 From - Spending review Topic 1 | AV15: 2026/27 From - Spending review Topic 1 | AW15: 2024/25 To - Spending review Topic 1 | AX15: 2025/26 To - Spending review Topic 1 | AY15: 2026/27 To - Spending review Topic 1 | AZ15: 2024/25 From - Spending review Topic 2 | BA15: 2025/26 From - Spending review Topic 2 | BB15: 2026/27 From - Spending review Topic 2 | BC15: 2024/25 To - Spending review Topic 2 | BD15: 2025/26 To - Spending review Topic 2 | BE15: 2026/27 To - Spending review Topic 2 | BF15: 2024/25 From - Spending review Topic 3 | BG15: 2025/26 From - Spending review Topic 3 | BH15: 2026/27 From - Spending review Topic 3 | BI15: 2024/25 To - Spending review Topic 3 | BJ15: 2025/26 To - Spending review Topic 3 | BK15: 2026/27 To - Spending review Topic 3 | BL15: 2024/25 From - Spending review Topic 4 | BM15: 2025/26 From - Spending review Topic 4 | BN15: 2026/27 From - Spending review Topic 4 | BO15: 2024/25 To - Spending review Topic 4 | BP15: 2025/26 To - Spending review Topic 4 | BQ15: 2026/27 To - Spending review Topic 4 | BR15: 2024/25 From - Other reallocations | BS15: 2025/26 From - Other reallocations | BT15: 2026/27 From - Other reallocations | BU15: 2024/25 To - Other reallocations | BV15: 2025/26 To - Other reallocations | BW15: 2026/27 To - Other reallocations | BX15: 2023/24 Reduction | BY15: 2024/25 Reduction | BZ15: 2025/26 Reduction | CA15: 2026/27 Reduction | CB15: 2024/25 From - Total | CC15: 2025/26 From - Total | CD15: 2026/27 From - Total | CE15: 2024/25 To - Total | CF15: 2025/26 To - Total | CG15: 2026/27 To - Total | CH15: 2024/25 Total decrease | CI15: 2025/26 Total decrease | CJ15: 2026/27 Total decrease | CK15: 2023/24 Total change | CL15: 2024/25 Total change | CM15: 2025/26 Total change | CN15: 2026/27 Total change | CO15: 2023/24 Revised baseline | CP15: 2024/25 Revised baseline | CQ15: 2025/26 Revised baseline | CR15: 2026/27 Revised baseline
AH16: Subtotal: | AI16: =SUBTOTAL(9,Dataset[2019/20]) -> 8691422 | AJ16: =SUBTOTAL(9,Dataset[2020/21]) -> 8300016 | AK16: =SUBTOTAL(9,Dataset[2021/22]) -> 7490013 | AL16: =SUBTOTAL(9,Dataset[2022/23 Main appropriation]) -> 8947914 | AM16: =SUBTOTAL(9,Dataset[2022/23 Adjusted appropriation]) -> 8994839 | AN16: =SUBTOTAL(9,Dataset[2022/23 Revised estimate]) -> 8834839 | AO16: =SUBTOTAL(9,Dataset[2022/23 Preliminary outcome]) -> 2451008 | AP16: =SUBTOTAL(9,Dataset[2023/24 Baseline]) -> 9873566 | AQ16: =SUBTOTAL(9,Dataset[2024/25 Baseline]) -> 9570290 | AR16: =SUBTOTAL(9,Dataset[2025/26 Baseline]) -> 9777840 | AS16: =SUBTOTAL(9,Dataset[2026/27 Baseline]) -> 10225800 | AT16: =SUBTOTAL(9,Dataset[2024/25 From - Spending review Topic 1]) -> 0 | AU16: =SUBTOTAL(9,Dataset[2025/26 From - Spending review Topic 1]) -> 0 | AV16: =SUBTOTAL(9,Dataset[2026/27 From - Spending review Topic 1]) -> 0 | AW16: =SUBTOTAL(9,Dataset[2024/25 To - Spending review Topic 1]) -> 0 | AX16: =SUBTOTAL(9,Dataset[2025/26 To - Spending review Topic 1]) -> 0 | AY16: =SUBTOTAL(9,Dataset[2026/27 To - Spending review Topic 1]) -> 0 | AZ16: =SUBTOTAL(9,Dataset[2024/25 From - Spending review Topic 2]) -> 0 | BA16: =SUBTOTAL(9,Dataset[2025/26 From - Spending review Topic 2]) -> 0 | BB16: =SUBTOTAL(9,Dataset[2026/27 From - Spending review Topic 2]) -> 0 | BC16: =SUBTOTAL(9,Dataset[2024/25 To - Spending review Topic 2]) -> 0 | BD16: =SUBTOTAL(9,Dataset[2025/26 To - Spending review Topic 2]) -> 0 | BE16: =SUBTOTAL(9,Dataset[2026/27 To - Spending review Topic 2]) -> 0 | BF16: =SUBTOTAL(9,Dataset[2024/25 From - Spending review Topic 3]) -> 0 | BG16: =SUBTOTAL(9,Dataset[2025/26 From - Spending review Topic 3]) -> 0 | BH16: =SUBTOTAL(9,Dataset[2026/27 From - Spending review Topic 3]) -> 0 | BI16: =SUBTOTAL(9,Dataset[2024/25 To - Spending review Topic 3]) -> 0 | BJ16: =SUBTOTAL(9,Dataset[2025/26 To - Spending review Topic 3]) -> 0 | BK16: =SUBTOTAL(9,Dataset[2026/27 To - Spending review Topic 3]) -> 0 | BL16: =SUBTOTAL(9,Dataset[2024/25 From - Spending review Topic 4]) -> 0 | BM16: =SUBTOTAL(9,Dataset[2025/26 From - Spending review Topic 4]) -> 0 | BN16: =SUBTOTAL(9,Dataset[2026/27 From - Spending review Topic 4]) -> 0 | BO16: =SUBTOTAL(9,Dataset[2024/25 To - Spending review Topic 4]) -> 0 | BP16: =SUBTOTAL(9,Dataset[2025/26 To - Spending review Topic 4]) -> 0 | BQ16: =SUBTOTAL(9,Dataset[2026/27 To - Spending review Topic 4]) -> 0 | BR16: =SUBTOTAL(9,Dataset[2024/25 From - Other reallocations]) -> 0 | BS16: =SUBTOTAL(9,Dataset[2025/26 From - Other reallocations]) -> 0 | BT16: =SUBTOTAL(9,Dataset[2026/27 From - Other reallocations]) -> 0 | BU16: =SUBTOTAL(9,Dataset[2024/25 To - Other reallocations]) -> 0 | BV16: =SUBTOTAL(9,Dataset[2025/26 To - Other reallocations]) -> 0 | BW16: =SUBTOTAL(9,Dataset[2026/27 To - Other reallocations]) -> 0 | BX16: =SUBTOTAL(9,Dataset[2023/24 Reduction]) -> 0 | BY16: =SUBTOTAL(9,Dataset[2024/25 Reduction]) -> 0 | BZ16: =SUBTOTAL(9,Dataset[2025/26 Reduction]) -> 0 | CA16: =SUBTOTAL(9,Dataset[2026/27 Reduction]) -> 0 | CB16: =SUBTOTAL(9,Dataset[2024/25 From - Total]) -> 0 | CC16: =SUBTOTAL(9,Dataset[2025/26 From - Total]) -> 0 | CD16: =SUBTOTAL(9,Dataset[2026/27 From - Total]) -> 0 | CE16: =SUBTOTAL(9,Dataset[2024/25 To - Total]) -> 0 | CF16: =SUBTOTAL(9,Dataset[2025/26 To - Total]) -> 0 | CG16: =SUBTOTAL(9,Dataset[2026/27 To - Total]) -> 0 | CH16: =SUBTOTAL(9,Dataset[2024/25 Total decrease]) -> 0 | CI16: =SUBTOTAL(9,Dataset[2025/26 Total decrease]) -> 0 | CJ16: =SUBTOTAL(9,Dataset[2026/27 Total decrease]) -> 0 | CK16: =SUBTOTAL(9,Dataset[2023/24 Total change]) -> 0 | CL16: =SUBTOTAL(9,Dataset[2024/25 Total change]) -> 0 | CM16: =SUBTOTAL(9,Dataset[2025/26 Total change]) -> 0 | CN16: =SUBTOTAL(9,Dataset[2026/27 Total change]) -> 0 | CO16: =SUBTOTAL(9,Dataset[2023/24 Revised baseline]) -> 9873566 | CP16: =SUBTOTAL(9,Dataset[2024/25 Revised baseline]) -> 9570290 | CQ16: =SUBTOTAL(9,Dataset[2025/26 Revised baseline]) -> 9777840 | CR16: =SUBTOTAL(9,Dataset[2026/27 Revised baseline]) -> 10225800
AT17: ="…"&SRTopic1 -> …Spending review topic 1 | AZ17: ="…"&SRTopic2 -> …Spending review topic 2 | BF17: ="…"&SRTopic3 -> …Spending review topic 3 | BL17: ="…"&SRTopic4 -> …Spending review topic 4 | BR17: …Reallocations other than spending reviews | BX17: …Reductions | CO17: …red shaded cells below indicate negative budgets.
A18: Combo_DoR | B18: Combo_Econ | C18: Budget Year | D18: Process | E18: Vote No. - N | F18: Programme No. - N | G18: Subprogramme No. - N | H18: Index - N | I18: Index - N2 | J18: Vote No. | K18: Programme No. | L18: Subprogramme No. | M18: Index | N18: Index2 | O18: UID | P18: Econ1_IDn | Q18: Econ2_IDn | R18: Econ3_IDn | S18: Econ4_IDn | T18: Econ5_IDn | U18: Econ_UID | V18: Province | W18: Department | X18: Programme | Y18: Subprogramme | Z18: Transfers and subsidies / Payments for financial assets detail | AA18: Econ1 | AB18: Econ2 | AC18: Econ3 | AD18: Econ4 | AE18: Econ5 | AF18: Function group | AG18: Technical group | AH18: DOR | AI18: 2019/20 | AJ18: 2020/21 | AK18: 2021/22 | AL18: 2022/23 Main appropriation | AM18: 2022/23 Adjusted appropriation | AN18: 2022/23 Revised estimate | AO18: 2022/23 Preliminary outcome | AP18: 2023/24 Baseline | AQ18: 2024/25 Baseline | AR18: 2025/26 Baseline | AS18: 2026/27 Baseline | AT18: 2024/25 From - Spending review Topic 1 | AU18: 2025/26 From - Spending review Topic 1 | AV18: 2026/27 From - Spending review Topic 1 | AW18: 2024/25 To - Spending review Topic 1 | AX18: 2025/26 To - Spending review Topic 1 | AY18: 2026/27 To - Spending review Topic 1 | AZ18: 2024/25 From - Spending review Topic 2 | BA18: 2025/26 From - Spending review Topic 2 | BB18: 2026/27 From - Spending review Topic 2 | BC18: 2024/25 To - Spending review Topic 2 | BD18: 2025/26 To - Spending review Topic 2 | BE18: 2026/27 To - Spending review Topic 2 | BF18: 2024/25 From - Spending review Topic 3 | BG18: 2025/26 From - Spending review Topic 3 | BH18: 2026/27 From - Spending review Topic 3 | BI18: 2024/25 To - Spending review Topic 3 | BJ18: 2025/26 To - Spending review Topic 3 | BK18: 2026/27 To - Spending review Topic 3 | BL18: 2024/25 From - Spending review Topic 4 | BM18: 2025/26 From - Spending review Topic 4 | BN18: 2026/27 From - Spending review Topic 4 | BO18: 2024/25 To - Spending review Topic 4 | BP18: 2025/26 To - Spending review Topic 4 | BQ18: 2026/27 To - Spending review Topic 4 | BR18: 2024/25 From - Other reallocations | BS18: 2025/26 From - Other reallocations | BT18: 2026/27 From - Other reallocations | BU18: 2024/25 To - Other reallocations | BV18: 2025/26 To - Other reallocations | BW18: 2026/27 To - Other reallocations | BX18: 2023/24 Reduction | BY18: 2024/25 Reduction | BZ18: 2025/26 Reduction | CA18: 2026/27 Reduction | CB18: 2024/25 From - Total | CC18: 2025/26 From - Total | CD18: 2026/27 From - Total | CE18: 2024/25 To - Total | CF18: 2025/26 To - Total | CG18: 2026/27 To - Total | CH18: 2024/25 Total decrease | CI18: 2025/26 Total decrease | CJ18: 2026/27 Total decrease | CK18: 2023/24 Total change | CL18: 2024/25 Total change | CM18: 2025/26 Total change | CN18: 2026/27 Total change | CO18: 2023/24 Revised baseline | CP18: 2024/25 Revised baseline | CQ18: 2025/26 Revised baseline | CR18: 2026/27 Revised baseline
A19: NAT|Non-transfer item | B19: 32|Salaries and wages | C19: 2024_25 | D19: MTEF2024 | E19: 32 | F19: 1 | G19: 1 | H19: 54181 | I19: 1 | J19: 32 | K19: 01 | L19: 01 | M19: 054181 | N19: 000001 | O19: 32|01|01 | P19: 01 | Q19: 01 | R19: 01 | S19: 01 | T19: 01 | U19: 01|01|01|01|01 | V19: National | W19: Forestry, Fisheries and the Environment | X19: Administration | Y19: Ministry | Z19: Non-transfer item | AA19: Current | AB19: Current payments | AC19: Compensation of employees | AD19: Salaries and wages | AE19: Salaries and wages | AF19: Economic development | AG19: Economic regulation and infrastructure | AH19: NAT | AI19: 16846 | AJ19: 12906 | AK19: 14667 | AL19: 13789 | AM19: 13789 | AN19: 13789 | AO19: 0 | AP19: 10649 | AQ19: 11018 | AR19: 11660 | AS19: 12194 | CB19: =Dataset[[#This Row],[2024/25 From - Spending review Topic 1]]+Dataset[[#This Row],[2024/25 From - Spending review Topic 2]]+Dataset[[#This Row],[2024/25 From - Spending review Topic 3]]+Dataset[[#This Row],[2024/25 From - Spending review Topic 4]]+Dataset[[#This Row],[2024/25 From - Other reallocations]] -> 0 | CC19: =Dataset[[#This Row],[2025/26 From - Spending review Topic 1]]+Dataset[[#This Row],[2025/26 From - Spending review Topic 2]]+Dataset[[#This Row],[2025/26 From - Spending review Topic 3]]+Dataset[[#This Row],[2025/26 From - Spending review Topic 4]]+Dataset[[#This Row],[2025/26 From - Other reallocations]] -> 0 | CD19: =Dataset[[#This Row],[2026/27 From - Spending review Topic 1]]+Dataset[[#This Row],[2026/27 From - Spending review Topic 2]]+Dataset[[#This Row],[2026/27 From - Spending review Topic 3]]+Dataset[[#This Row],[2026/27 From - Spending review Topic 4]]+Dataset[[#This Row],[2026/27 From - Other reallocations]] -> 0 | CE19: =Dataset[[#This Row],[2024/25 To - Spending review Topic 1]]+Dataset[[#This Row],[2024/25 To - Spending review Topic 2]]+Dataset[[#This Row],[2024/25 To - Spending review Topic 3]]+Dataset[[#This Row],[2024/25 To - Spending review Topic 4]]+Dataset[[#This Row],[2024/25 To - Other reallocations]] -> 0 | CF19: =Dataset[[#This Row],[2025/26 To - Spending review Topic 1]]+Dataset[[#This Row],[2025/26 To - Spending review Topic 2]]+Dataset[[#This Row],[2025/26 To - Spending review Topic 3]]+Dataset[[#This Row],[2025/26 To - Spending review Topic 4]]+Dataset[[#This Row],[2025/26 To - Other reallocations]] -> 0 | CG19: =Dataset[[#This Row],[2026/27 To - Spending review Topic 1]]+Dataset[[#This Row],[2026/27 To - Spending review Topic 2]]+Dataset[[#This Row],[2026/27 To - Spending review Topic 3]]+Dataset[[#This Row],[2026/27 To - Spending review Topic 4]]+Dataset[[#This Row],[2026/27 To - Other reallocations]] -> 0 | CH19: =Dataset[[#This Row],[2024/25 Reduction]]+Dataset[[#This Row],[2024/25 From - Total]] -> 0 | CI19: =Dataset[[#This Row],[2025/26 Reduction]]+Dataset[[#This Row],[2025/26 From - Total]] -> 0 | CJ19: =Dataset[[#This Row],[2026/27 Reduction]]+Dataset[[#This Row],[2026/27 From - Total]] -> 0 | CK19: =Dataset[[#This Row],[2023/24 Reduction]] -> 0 | CL19: =SUM(Dataset[[#This Row],[2024/25 Reduction]],Dataset[[#This Row],[2024/25 From - Total]],Dataset[[#This Row],[2024/25 To - Total]]) -> 0 | CM19: =SUM(Dataset[[#This Row],[2025/26 Reduction]],Dataset[[#This Row],[2025/26 From - Total]],Dataset[[#This Row],[2025/26 To - Total]]) -> 0 | CN19: =SUM(Dataset[[#This Row],[2026/27 Reduction]],Dataset[[#This Row],[2026/27 From - Total]],Dataset[[#This Row],[2026/27 To - Total]]) -> 0 | CO19: =Dataset[[#This Row],[2023/24 Baseline]]+Dataset[[#This Row],[2023/24 Total change]] -> 10649 | CP19: =Dataset[[#This Row],[2024/25 Baseline]]+Dataset[[#This Row],[2024/25 Total change]] -> 11018 | CQ19: =Dataset[[#This Row],[2025/26 Baseline]]+Dataset[[#This Row],[2025/26 Total change]] -> 11660 | CR19: =Dataset[[#This Row],[2026/27 Baseline]]+Dataset[[#This Row],[2026/27 Total change]] -> 12194
A20: NAT|Non-transfer item | B20: 32|Social contributions | C20: 2024_25 | D20: MTEF2024 | E20: 32 | F20: 1 | G20: 1 | H20: 54182 | I20: 2 | J20: 32 | K20: 01 | L20: 01 | M20: 054182 | N20: 000002 | O20: 32|01|01 | P20: 01 | Q20: 01 | R20: 01 | S20: 02 | T20: 02 | U20: 01|01|01|02|02 | V20: National | W20: Forestry, Fisheries and the Environment | X20: Administration | Y20: Ministry | Z20: Non-transfer item | AA20: Current | AB20: Current payments | AC20: Compensation of employees | AD20: Social contributions | AE20: Social contributions | AF20: Economic development | AG20: Economic regulation and infrastructure | AH20: NAT | AI20: 3091 | AJ20: 1321 | AK20: 1382 | AL20: 0 | AM20: 0 | AN20: 0 | AO20: 0 | AP20: 2674 | AQ20: 2885 | AR20: 3103 | AS20: 3245 | CB20: =Dataset[[#This Row],[2024/25 From - Spending review Topic 1]]+Dataset[[#This Row],[2024/25 From - Spending review Topic 2]]+Dataset[[#This Row],[2024/25 From - Spending review Topic 3]]+Dataset[[#This Row],[2024/25 From - Spending review Topic 4]]+Dataset[[#This Row],[2024/25 From - Other reallocations]] -> 0 | CC20: =Dataset[[#This Row],[2025/26 From - Spending review Topic 1]]+Dataset[[#This Row],[2025/26 From - Spending review Topic 2]]+Dataset[[#This Row],[2025/26 From - Spending review Topic 3]]+Dataset[[#This Row],[2025/26 From - Spending review Topic 4]]+Dataset[[#This Row],[2025/26 From - Other reallocations]] -> 0 | CD20: =Dataset[[#This Row],[2026/27 From - Spending review Topic 1]]+Dataset[[#This Row],[2026/27 From - Spending review Topic 2]]+Dataset[[#This Row],[2026/27 From - Spending review Topic 3]]+Dataset[[#This Row],[2026/27 From - Spending review Topic 4]]+Dataset[[#This Row],[2026/27 From - Other reallocations]] -> 0 | CE20: =Dataset[[#This Row],[2024/25 To - Spending review Topic 1]]+Dataset[[#This Row],[2024/25 To - Spending review Topic 2]]+Dataset[[#This Row],[2024/25 To - Spending review Topic 3]]+Dataset[[#This Row],[2024/25 To - Spending review Topic 4]]+Dataset[[#This Row],[2024/25 To - Other reallocations]] -> 0 | CF20: =Dataset[[#This Row],[2025/26 To - Spending review Topic 1]]+Dataset[[#This Row],[2025/26 To - Spending review Topic 2]]+Dataset[[#This Row],[2025/26 To - Spending review Topic 3]]+Dataset[[#This Row],[2025/26 To - Spending review Topic 4]]+Dataset[[#This Row],[2025/26 To - Other reallocations]] -> 0 | CG20: =Dataset[[#This Row],[2026/27 To - Spending review Topic 1]]+Dataset[[#This Row],[2026/27 To - Spending review Topic 2]]+Dataset[[#This Row],[2026/27 To - Spending review Topic 3]]+Dataset[[#This Row],[2026/27 To - Spending review Topic 4]]+Dataset[[#This Row],[2026/27 To - Other reallocations]] -> 0 | CH20: =Dataset[[#This Row],[2024/25 Reduction]]+Dataset[[#This Row],[2024/25 From - Total]] -> 0 | CI20: =Dataset[[#This Row],[2025/26 Reduction]]+Dataset[[#This Row],[2025/26 From - Total]] -> 0 | CJ20: =Dataset[[#This Row],[2026/27 Reduction]]+Dataset[[#This Row],[2026/27 From - Total]] -> 0 | CK20: =Dataset[[#This Row],[2023/24 Reduction]] -> 0 | CL20: =SUM(Dataset[[#This Row],[2024/25 Reduction]],Dataset[[#This Row],[2024/25 From - Total]],Dataset[[#This Row],[2024/25 To - Total]]) -> 0 | CM20: =SUM(Dataset[[#This Row],[2025/26 Reduction]],Dataset[[#This Row],[2025/26 From - Total]],Dataset[[#This Row],[2025/26 To - Total]]) -> 0 | CN20: =SUM(Dataset[[#This Row],[2026/27 Reduction]],Dataset[[#This Row],[2026/27 From - Total]],Dataset[[#This Row],[2026/27 To - Total]]) -> 0 | CO20: =Dataset[[#This Row],[2023/24 Baseline]]+Dataset[[#This Row],[2023/24 Total change]] -> 2674 | CP20: =Dataset[[#This Row],[2024/25 Baseline]]+Dataset[[#This Row],[2024/25 Total change]] -> 2885 | CQ20: =Dataset[[#This Row],[2025/26 Baseline]]+Dataset[[#This Row],[2025/26 Total change]] -> 3103 | CR20: =Dataset[[#This Row],[2026/27 Baseline]]+Dataset[[#This Row],[2026/27 Total change]] -> 3245
A21: NAT|Non-transfer item | B21: 32|Administrative fees | C21: 2024_25 | D21: MTEF2024 | E21: 32 | F21: 1 | G21: 1 | H21: 54183 | I21: 3 | J21: 32 | K21: 01 | L21: 01 | M21: 054183 | N21: 000003 | O21: 32|01|01 | P21: 01 | Q21: 01 | R21: 02 | S21: 03 | T21: 03 | U21: 01|01|02|03|03 | V21: National | W21: Forestry, Fisheries and the Environment | X21: Administration | Y21: Ministry | Z21: Non-transfer item | AA21: Current | AB21: Current payments | AC21: Goods and services | AD21: Administrative fees | AE21: Administrative fees | AF21: Economic development | AG21: Economic regulation and infrastructure | AH21: NAT | AI21: 0 | AJ21: 0 | AK21: 0 | AL21: 0 | AM21: 0 | AN21: 0 | AO21: 0 | AP21: 0 | AQ21: 7 | AR21: 8 | AS21: 8 | CB21: =Dataset[[#This Row],[2024/25 From - Spending review Topic 1]]+Dataset[[#This Row],[2024/25 From - Spending review Topic 2]]+Dataset[[#This Row],[2024/25 From - Spending review Topic 3]]+Dataset[[#This Row],[2024/25 From - Spending review Topic 4]]+Dataset[[#This Row],[2024/25 From - Other reallocations]] -> 0 | CC21: =Dataset[[#This Row],[2025/26 From - Spending review Topic 1]]+Dataset[[#This Row],[2025/26 From - Spending review Topic 2]]+Dataset[[#This Row],[2025/26 From - Spending review Topic 3]]+Dataset[[#This Row],[2025/26 From - Spending review Topic 4]]+Dataset[[#This Row],[2025/26 From - Other reallocations]] -> 0 | CD21: =Dataset[[#This Row],[2026/27 From - Spending review Topic 1]]+Dataset[[#This Row],[2026/27 From - Spending review Topic 2]]+Dataset[[#This Row],[2026/27 From - Spending review Topic 3]]+Dataset[[#This Row],[2026/27 From - Spending review Topic 4]]+Dataset[[#This Row],[2026/27 From - Other reallocations]] -> 0 | CE21: =Dataset[[#This Row],[2024/25 To - Spending review Topic 1]]+Dataset[[#This Row],[2024/25 To - Spending review Topic 2]]+Dataset[[#This Row],[2024/25 To - Spending review Topic 3]]+Dataset[[#This Row],[2024/25 To - Spending review Topic 4]]+Dataset[[#This Row],[2024/25 To - Other reallocations]] -> 0 | CF21: =Dataset[[#This Row],[2025/26 To - Spending review Topic 1]]+Dataset[[#This Row],[2025/26 To - Spending review Topic 2]]+Dataset[[#This Row],[2025/26 To - Spending review Topic 3]]+Dataset[[#This Row],[2025/26 To - Spending review Topic 4]]+Dataset[[#This Row],[2025/26 To - Other reallocations]] -> 0 | CG21: =Dataset[[#This Row],[2026/27 To - Spending review Topic 1]]+Dataset[[#This Row],[2026/27 To - Spending review Topic 2]]+Dataset[[#This Row],[2026/27 To - Spending review Topic 3]]+Dataset[[#This Row],[2026/27 To - Spending review Topic 4]]+Dataset[[#This Row],[2026/27 To - Other reallocations]] -> 0 | CH21: =Dataset[[#This Row],[2024/25 Reduction]]+Dataset[[#This Row],[2024/25 From - Total]] -> 0 | CI21: =Dataset[[#This Row],[2025/26 Reduction]]+Dataset[[#This Row],[2025/26 From - Total]] -> 0 | CJ21: =Dataset[[#This Row],[2026/27 Reduction]]+Dataset[[#This Row],[2026/27 From - Total]] -> 0 | CK21: =Dataset[[#This Row],[2023/24 Reduction]] -> 0 | CL21: =SUM(Dataset[[#This Row],[2024/25 Reduction]],Dataset[[#This Row],[2024/25 From - Total]],Dataset[[#This Row],[2024/25 To - Total]]) -> 0 | CM21: =SUM(Dataset[[#This Row],[2025/26 Reduction]],Dataset[[#This Row],[2025/26 From - Total]],Dataset[[#This Row],[2025/26 To - Total]]) -> 0 | CN21: =SUM(Dataset[[#This Row],[2026/27 Reduction]],Dataset[[#This Row],[2026/27 From - Total]],Dataset[[#This Row],[2026/27 To - Total]]) -> 0 | CO21: =Dataset[[#This Row],[2023/24 Baseline]]+Dataset[[#This Row],[2023/24 Total change]] -> 0 | CP21: =Dataset[[#This Row],[2024/25 Baseline]]+Dataset[[#This Row],[2024/25 Total change]] -> 7 | CQ21: =Dataset[[#This Row],[2025/26 Baseline]]+Dataset[[#This Row],[2025/26 Total change]] -> 8 | CR21: =Dataset[[#This Row],[2026/27 Baseline]]+Dataset[[#This Row],[2026/27 Total change]] -> 8
A22: NAT|Non-transfer item | B22: 32|Advertising | C22: 2024_25 | D22: MTEF2024 | E22: 32 | F22: 1 | G22: 1 | H22: 54184 | I22: 4 | J22: 32 | K22: 01 | L22: 01 | M22: 054184 | N22: 000004 | O22: 32|01|01 | P22: 01 | Q22: 01 | R22: 02 | S22: 04 | T22: 04 | U22: 01|01|02|04|04 | V22: National | W22: Forestry, Fisheries and the Environment | X22: Administration | Y22: Ministry | Z22: Non-transfer item | AA22: Current | AB22: Current payments | AC22: Goods and services | AD22: Advertising | AE22: Advertising | AF22: Economic development | AG22: Economic regulation and infrastructure | AH22: NAT | AI22: 591 | AJ22: 0 | AK22: 0 | AL22: 0 | AM22: 0 | AN22: 0 | AO22: 0 | AP22: 0 | AQ22: 334 | AR22: 349 | AS22: 365 | CB22: =Dataset[[#This Row],[2024/25 From - Spending review Topic 1]]+Dataset[[#This Row],[2024/25 From - Spending review Topic 2]]+Dataset[[#This Row],[2024/25 From - Spending review Topic 3]]+Dataset[[#This Row],[2024/25 From - Spending review Topic 4]]+Dataset[[#This Row],[2024/25 From - Other reallocations]] -> 0 | CC22: =Dataset[[#This Row],[2025/26 From - Spending review Topic 1]]+Dataset[[#This Row],[2025/26 From - Spending review Topic 2]]+Dataset[[#This Row],[2025/26 From - Spending review Topic 3]]+Dataset[[#This Row],[2025/26 From - Spending review Topic 4]]+Dataset[[#This Row],[2025/26 From - Other reallocations]] -> 0 | CD22: =Dataset[[#This Row],[2026/27 From - Spending review Topic 1]]+Dataset[[#This Row],[2026/27 From - Spending review Topic 2]]+Dataset[[#This Row],[2026/27 From - Spending review Topic 3]]+Dataset[[#This Row],[2026/27 From - Spending review Topic 4]]+Dataset[[#This Row],[2026/27 From - Other reallocations]] -> 0 | CE22: =Dataset[[#This Row],[2024/25 To - Spending review Topic 1]]+Dataset[[#This Row],[2024/25 To - Spending review Topic 2]]+Dataset[[#This Row],[2024/25 To - Spending review Topic 3]]+Dataset[[#This Row],[2024/25 To - Spending review Topic 4]]+Dataset[[#This Row],[2024/25 To - Other reallocations]] -> 0 | CF22: =Dataset[[#This Row],[2025/26 To - Spending review Topic 1]]+Dataset[[#This Row],[2025/26 To - Spending review Topic 2]]+Dataset[[#This Row],[2025/26 To - Spending review Topic 3]]+Dataset[[#This Row],[2025/26 To - Spending review Topic 4]]+Dataset[[#This Row],[2025/26 To - Other reallocations]] -> 0 | CG22: =Dataset[[#This Row],[2026/27 To - Spending review Topic 1]]+Dataset[[#This Row],[2026/27 To - Spending review Topic 2]]+Dataset[[#This Row],[2026/27 To - Spending review Topic 3]]+Dataset[[#This Row],[2026/27 To - Spending review Topic 4]]+Dataset[[#This Row],[2026/27 To - Other reallocations]] -> 0 | CH22: =Dataset[[#This Row],[2024/25 Reduction]]+Dataset[[#This Row],[2024/25 From - Total]] -> 0 | CI22: =Dataset[[#This Row],[2025/26 Reduction]]+Dataset[[#This Row],[2025/26 From - Total]] -> 0 | CJ22: =Dataset[[#This Row],[2026/27 Reduction]]+Dataset[[#This Row],[2026/27 From - Total]] -> 0 | CK22: =Dataset[[#This Row],[2023/24 Reduction]] -> 0 | CL22: =SUM(Dataset[[#This Row],[2024/25 Reduction]],Dataset[[#This Row],[2024/25 From - Total]],Dataset[[#This Row],[2024/25 To - Total]]) -> 0 | CM22: =SUM(Dataset[[#This Row],[2025/26 Reduction]],Dataset[[#This Row],[2025/26 From - Total]],Dataset[[#This Row],[2025/26 To - Total]]) -> 0 | CN22: =SUM(Dataset[[#This Row],[2026/27 Reduction]],Dataset[[#This Row],[2026/27 From - Total]],Dataset[[#This Row],[2026/27 To - Total]]) -> 0 | CO22: =Dataset[[#This Row],[2023/24 Baseline]]+Dataset[[#This Row],[2023/24 Total change]] -> 0 | CP22: =Dataset[[#This Row],[2024/25 Baseline]]+Dataset[[#This Row],[2024/25 Total change]] -> 334 | CQ22: =Dataset[[#This Row],[2025/26 Baseline]]+Dataset[[#This Row],[2025/26 Total change]] -> 349 | CR22: =Dataset[[#This Row],[2026/27 Baseline]]+Dataset[[#This Row],[2026/27 Total change]] -> 365
A23: NAT|Non-transfer item | B23: 32|Minor assets | C23: 2024_25 | D23: MTEF2024 | E23: 32 | F23: 1 | G23: 1 | H23: 54185 | I23: 5 | J23: 32 | K23: 01 | L23: 01 | M23: 054185 | N23: 000005 | O23: 32|01|01 | P23: 01 | Q23: 01 | R23: 02 | S23: 05 | T23: 05 | U23: 01|01|02|05|05 | V23: National | W23: Forestry, Fisheries and the Environment | X23: Administration | Y23: Ministry | Z23: Non-transfer item | AA23: Current | AB23: Current payments | AC23: Goods and services | AD23: Minor assets | AE23: Minor assets | AF23: Economic development | AG23: Economic regulation and infrastructure | AH23: NAT | AI23: 31 | AJ23: 0 | AK23: 0 | AL23: 0 | AM23: 0 | AN23: 0 | AO23: 0 | AP23: 0 | AQ23: 84 | AR23: 87 | AS23: 91 | CB23: =Dataset[[#This Row],[2024/25 From - Spending review Topic 1]]+Dataset[[#This Row],[2024/25 From - Spending review Topic 2]]+Dataset[[#This Row],[2024/25 From - Spending review Topic 3]]+Dataset[[#This Row],[2024/25 From - Spending review Topic 4]]+Dataset[[#This Row],[2024/25 From - Other reallocations]] -> 0 | CC23: =Dataset[[#This Row],[2025/26 From - Spending review Topic 1]]+Dataset[[#This Row],[2025/26 From - Spending review Topic 2]]+Dataset[[#This Row],[2025/26 From - Spending review Topic 3]]+Dataset[[#This Row],[2025/26 From - Spending review Topic 4]]+Dataset[[#This Row],[2025/26 From - Other reallocations]] -> 0 | CD23: =Dataset[[#This Row],[2026/27 From - Spending review Topic 1]]+Dataset[[#This Row],[2026/27 From - Spending review Topic 2]]+Dataset[[#This Row],[2026/27 From - Spending review Topic 3]]+Dataset[[#This Row],[2026/27 From - Spending review Topic 4]]+Dataset[[#This Row],[2026/27 From - Other reallocations]] -> 0 | CE23: =Dataset[[#This Row],[2024/25 To - Spending review Topic 1]]+Dataset[[#This Row],[2024/25 To - Spending review Topic 2]]+Dataset[[#This Row],[2024/25 To - Spending review Topic 3]]+Dataset[[#This Row],[2024/25 To - Spending review Topic 4]]+Dataset[[#This Row],[2024/25 To - Other reallocations]] -> 0 | CF23: =Dataset[[#This Row],[2025/26 To - Spending review Topic 1]]+Dataset[[#This Row],[2025/26 To - Spending review Topic 2]]+Dataset[[#This Row],[2025/26 To - Spending review Topic 3]]+Dataset[[#This Row],[2025/26 To - Spending review Topic 4]]+Dataset[[#This Row],[2025/26 To - Other reallocations]] -> 0 | CG23: =Dataset[[#This Row],[2026/27 To - Spending review Topic 1]]+Dataset[[#This Row],[2026/27 To - Spending review Topic 2]]+Dataset[[#This Row],[2026/27 To - Spending review Topic 3]]+Dataset[[#This Row],[2026/27 To - Spending review Topic 4]]+Dataset[[#This Row],[2026/27 To - Other reallocations]] -> 0 | CH23: =Dataset[[#This Row],[2024/25 Reduction]]+Dataset[[#This Row],[2024/25 From - Total]] -> 0 | CI23: =Dataset[[#This Row],[2025/26 Reduction]]+Dataset[[#This Row],[2025/26 From - Total]] -> 0 | CJ23: =Dataset[[#This Row],[2026/27 Reduction]]+Dataset[[#This Row],[2026/27 From - Total]] -> 0 | CK23: =Dataset[[#This Row],[2023/24 Reduction]] -> 0 | CL23: =SUM(Dataset[[#This Row],[2024/25 Reduction]],Dataset[[#This Row],[2024/25 From - Total]],Dataset[[#This Row],[2024/25 To - Total]]) -> 0 | CM23: =SUM(Dataset[[#This Row],[2025/26 Reduction]],Dataset[[#This Row],[2025/26 From - Total]],Dataset[[#This Row],[2025/26 To - Total]]) -> 0 | CN23: =SUM(Dataset[[#This Row],[2026/27 Reduction]],Dataset[[#This Row],[2026/27 From - Total]],Dataset[[#This Row],[2026/27 To - Total]]) -> 0 | CO23: =Dataset[[#This Row],[2023/24 Baseline]]+Dataset[[#This Row],[2023/24 Total change]] -> 0 | CP23: =Dataset[[#This Row],[2024/25 Baseline]]+Dataset[[#This Row],[2024/25 Total change]] -> 84 | CQ23: =Dataset[[#This Row],[2025/26 Baseline]]+Dataset[[#This Row],[2025/26 Total change]] -> 87 | CR23: =Dataset[[#This Row],[2026/27 Baseline]]+Dataset[[#This Row],[2026/27 Total change]] -> 91
A24: NAT|Non-transfer item | B24: 32|Audit costs: External | C24: 2024_25 | D24: MTEF2024 | E24: 32 | F24: 1 | G24: 1 | H24: 54186 | I24: 6 | J24: 32 | K24: 01 | L24: 01 | M24: 054186 | N24: 000006 | O24: 32|01|01 | P24: 01 | Q24: 01 | R24: 02 | S24: 06 | T24: 06 | U24: 01|01|02|06|06 | V24: National | W24: Forestry, Fisheries and the Environment | X24: Administration | Y24: Ministry | Z24: Non-transfer item | AA24: Current | AB24: Current payments | AC24: Goods and services | AD24: Audit costs: External | AE24: Audit costs: External | AF24: Economic development | AG24: Economic regulation and infrastructure | AH24: NAT | AI24: 0 | AJ24: 0 | AK24: 0 | AL24: 0 | AM24: 0 | AN24: 0 | AO24: 0 | AP24: 0 | AQ24: 1041 | AR24: 1087 | AS24: 1137 | CB24: =Dataset[[#This Row],[2024/25 From - Spending review Topic 1]]+Dataset[[#This Row],[2024/25 From - Spending review Topic 2]]+Dataset[[#This Row],[2024/25 From - Spending review Topic 3]]+Dataset[[#This Row],[2024/25 From - Spending review Topic 4]]+Dataset[[#This Row],[2024/25 From - Other reallocations]] -> 0 | CC24: =Dataset[[#This Row],[2025/26 From - Spending review Topic 1]]+Dataset[[#This Row],[2025/26 From - Spending review Topic 2]]+Dataset[[#This Row],[2025/26 From - Spending review Topic 3]]+Dataset[[#This Row],[2025/26 From - Spending review Topic 4]]+Dataset[[#This Row],[2025/26 From - Other reallocations]] -> 0 | CD24: =Dataset[[#This Row],[2026/27 From - Spending review Topic 1]]+Dataset[[#This Row],[2026/27 From - Spending review Topic 2]]+Dataset[[#This Row],[2026/27 From - Spending review Topic 3]]+Dataset[[#This Row],[2026/27 From - Spending review Topic 4]]+Dataset[[#This Row],[2026/27 From - Other reallocations]] -> 0 | CE24: =Dataset[[#This Row],[2024/25 To - Spending review Topic 1]]+Dataset[[#This Row],[2024/25 To - Spending review Topic 2]]+Dataset[[#This Row],[2024/25 To - Spending review Topic 3]]+Dataset[[#This Row],[2024/25 To - Spending review Topic 4]]+Dataset[[#This Row],[2024/25 To - Other reallocations]] -> 0 | CF24: =Dataset[[#This Row],[2025/26 To - Spending review Topic 1]]+Dataset[[#This Row],[2025/26 To - Spending review Topic 2]]+Dataset[[#This Row],[2025/26 To - Spending review Topic 3]]+Dataset[[#This Row],[2025/26 To - Spending review Topic 4]]+Dataset[[#This Row],[2025/26 To - Other reallocations]] -> 0 | CG24: =Dataset[[#This Row],[2026/27 To - Spending review Topic 1]]+Dataset[[#This Row],[2026/27 To - Spending review Topic 2]]+Dataset[[#This Row],[2026/27 To - Spending review Topic 3]]+Dataset[[#This Row],[2026/27 To - Spending review Topic 4]]+Dataset[[#This Row],[2026/27 To - Other reallocations]] -> 0 | CH24: =Dataset[[#This Row],[2024/25 Reduction]]+Dataset[[#This Row],[2024/25 From - Total]] -> 0 | CI24: =Dataset[[#This Row],[2025/26 Reduction]]+Dataset[[#This Row],[2025/26 From - Total]] -> 0 | CJ24: =Dataset[[#This Row],[2026/27 Reduction]]+Dataset[[#This Row],[2026/27 From - Total]] -> 0 | CK24: =Dataset[[#This Row],[2023/24 Reduction]] -> 0 | CL24: =SUM(Dataset[[#This Row],[2024/25 Reduction]],Dataset[[#This Row],[2024/25 From - Total]],Dataset[[#This Row],[2024/25 To - Total]]) -> 0 | CM24: =SUM(Dataset[[#This Row],[2025/26 Reduction]],Dataset[[#This Row],[2025/26 From - Total]],Dataset[[#This Row],[2025/26 To - Total]]) -> 0 | CN24: =SUM(Dataset[[#This Row],[2026/27 Reduction]],Dataset[[#This Row],[2026/27 From - Total]],Dataset[[#This Row],[2026/27 To - Total]]) -> 0 | CO24: =Dataset[[#This Row],[2023/24 Baseline]]+Dataset[[#This Row],[2023/24 Total change]] -> 0 | CP24: =Dataset[[#This Row],[2024/25 Baseline]]+Dataset[[#This Row],[2024/25 Total change]] -> 1041 | CQ24: =Dataset[[#This Row],[2025/26 Baseline]]+Dataset[[#This Row],[2025/26 Total change]] -> 1087 | CR24: =Dataset[[#This Row],[2026/27 Baseline]]+Dataset[[#This Row],[2026/27 Total change]] -> 1137
A25: NAT|Non-transfer item | B25: 32|Bursaries: Employees | C25: 2024_25 | D25: MTEF2024 | E25: 32 | F25: 1 | G25: 1 | H25: 54187 | I25: 7 | J25: 32 | K25: 01 | L25: 01 | M25: 054187 | N25: 000007 | O25: 32|01|01 | P25: 01 | Q25: 01 | R25: 02 | S25: 07 | T25: 07 | U25: 01|01|02|07|07 | V25: National | W25: Forestry, Fisheries and the Environment | X25: Administration | Y25: Ministry | Z25: Non-transfer item | AA25: Current | AB25: Current payments | AC25: Goods and services | AD25: Bursaries: Employees | AE25: Bursaries: Employees | AF25: Economic development | AG25: Economic regulation and infrastructure | AH25: NAT | AI25: 0 | AJ25: 0 | AK25: 0 | AL25: 0 | AM25: 0 | AN25: 0 | AO25: 0 | AP25: 0 | AQ25: 23 | AR25: 24 | AS25: 25 | CB25: =Dataset[[#This Row],[2024/25 From - Spending review Topic 1]]+Dataset[[#This Row],[2024/25 From - Spending review Topic 2]]+Dataset[[#This Row],[2024/25 From - Spending review Topic 3]]+Dataset[[#This Row],[2024/25 From - Spending review Topic 4]]+Dataset[[#This Row],[2024/25 From - Other reallocations]] -> 0 | CC25: =Dataset[[#This Row],[2025/26 From - Spending review Topic 1]]+Dataset[[#This Row],[2025/26 From - Spending review Topic 2]]+Dataset[[#This Row],[2025/26 From - Spending review Topic 3]]+Dataset[[#This Row],[2025/26 From - Spending review Topic 4]]+Dataset[[#This Row],[2025/26 From - Other reallocations]] -> 0 | CD25: =Dataset[[#This Row],[2026/27 From - Spending review Topic 1]]+Dataset[[#This Row],[2026/27 From - Spending review Topic 2]]+Dataset[[#This Row],[2026/27 From - Spending review Topic 3]]+Dataset[[#This Row],[2026/27 From - Spending review Topic 4]]+Dataset[[#This Row],[2026/27 From - Other reallocations]] -> 0 | CE25: =Dataset[[#This Row],[2024/25 To - Spending review Topic 1]]+Dataset[[#This Row],[2024/25 To - Spending review Topic 2]]+Dataset[[#This Row],[2024/25 To - Spending review Topic 3]]+Dataset[[#This Row],[2024/25 To - Spending review Topic 4]]+Dataset[[#This Row],[2024/25 To - Other reallocations]] -> 0 | CF25: =Dataset[[#This Row],[2025/26 To - Spending review Topic 1]]+Dataset[[#This Row],[2025/26 To - Spending review Topic 2]]+Dataset[[#This Row],[2025/26 To - Spending review Topic 3]]+Dataset[[#This Row],[2025/26 To - Spending review Topic 4]]+Dataset[[#This Row],[2025/26 To - Other reallocations]] -> 0 | CG25: =Dataset[[#This Row],[2026/27 To - Spending review Topic 1]]+Dataset[[#This Row],[2026/27 To - Spending review Topic 2]]+Dataset[[#This Row],[2026/27 To - Spending review Topic 3]]+Dataset[[#This Row],[2026/27 To - Spending review Topic 4]]+Dataset[[#This Row],[2026/27 To - Other reallocations]] -> 0 | CH25: =Dataset[[#This Row],[2024/25 Reduction]]+Dataset[[#This Row],[2024/25 From - Total]] -> 0 | CI25: =Dataset[[#This Row],[2025/26 Reduction]]+Dataset[[#This Row],[2025/26 From - Total]] -> 0 | CJ25: =Dataset[[#This Row],[2026/27 Reduction]]+Dataset[[#This Row],[2026/27 From - Total]] -> 0 | CK25: =Dataset[[#This Row],[2023/24 Reduction]] -> 0 | CL25: =SUM(Dataset[[#This Row],[2024/25 Reduction]],Dataset[[#This Row],[2024/25 From - Total]],Dataset[[#This Row],[2024/25 To - Total]]) -> 0 | CM25: =SUM(Dataset[[#This Row],[2025/26 Reduction]],Dataset[[#This Row],[2025/26 From - Total]],Dataset[[#This Row],[2025/26 To - Total]]) -> 0 | CN25: =SUM(Dataset[[#This Row],[2026/27 Reduction]],Dataset[[#This Row],[2026/27 From - Total]],Dataset[[#This Row],[2026/27 To - Total]]) -> 0 | CO25: =Dataset[[#This Row],[2023/24 Baseline]]+Dataset[[#This Row],[2023/24 Total change]] -> 0 | CP25: =Dataset[[#This Row],[2024/25 Baseline]]+Dataset[[#This Row],[2024/25 Total change]] -> 23 | CQ25: =Dataset[[#This Row],[2025/26 Baseline]]+Dataset[[#This Row],[2025/26 Total change]] -> 24 | CR25: =Dataset[[#This Row],[2026/27 Baseline]]+Dataset[[#This Row],[2026/27 Total change]] -> 25
A26: NAT|Non-transfer item | B26: 32|Catering: Departmental activities | C26: 2024_25 | D26: MTEF2024 | E26: 32 | F26: 1 | G26: 1 | H26: 54188 | I26: 8 | J26: 32 | K26: 01 | L26: 01 | M26: 054188 | N26: 000008 | O26: 32|01|01 | P26: 01 | Q26: 01 | R26: 02 | S26: 08 | T26: 08 | U26: 01|01|02|08|08 | V26: National | W26: Forestry, Fisheries and the Environment | X26: Administration | Y26: Ministry | Z26: Non-transfer item | AA26: Current | AB26: Current payments | AC26: Goods and services | AD26: Catering: Departmental activities | AE26: Catering: Departmental activities | AF26: Economic development | AG26: Economic regulation and infrastructure | AH26: NAT | AI26: 186 | AJ26: 42 | AK26: 10 | AL26: 92 | AM26: 92 | AN26: 92 | AO26: 0 | AP26: 88 | AQ26: 439 | AR26: 458 | AS26: 479 | CB26: =Dataset[[#This Row],[2024/25 From - Spending review Topic 1]]+Dataset[[#This Row],[2024/25 From - Spending review Topic 2]]+Dataset[[#This Row],[2024/25 From - Spending review Topic 3]]+Dataset[[#This Row],[2024/25 From - Spending review Topic 4]]+Dataset[[#This Row],[2024/25 From - Other reallocations]] -> 0 | CC26: =Dataset[[#This Row],[2025/26 From - Spending review Topic 1]]+Dataset[[#This Row],[2025/26 From - Spending review Topic 2]]+Dataset[[#This Row],[2025/26 From - Spending review Topic 3]]+Dataset[[#This Row],[2025/26 From - Spending review Topic 4]]+Dataset[[#This Row],[2025/26 From - Other reallocations]] -> 0 | CD26: =Dataset[[#This Row],[2026/27 From - Spending review Topic 1]]+Dataset[[#This Row],[2026/27 From - Spending review Topic 2]]+Dataset[[#This Row],[2026/27 From - Spending review Topic 3]]+Dataset[[#This Row],[2026/27 From - Spending review Topic 4]]+Dataset[[#This Row],[2026/27 From - Other reallocations]] -> 0 | CE26: =Dataset[[#This Row],[2024/25 To - Spending review Topic 1]]+Dataset[[#This Row],[2024/25 To - Spending review Topic 2]]+Dataset[[#This Row],[2024/25 To - Spending review Topic 3]]+Dataset[[#This Row],[2024/25 To - Spending review Topic 4]]+Dataset[[#This Row],[2024/25 To - Other reallocations]] -> 0 | CF26: =Dataset[[#This Row],[2025/26 To - Spending review Topic 1]]+Dataset[[#This Row],[2025/26 To - Spending review Topic 2]]+Dataset[[#This Row],[2025/26 To - Spending review Topic 3]]+Dataset[[#This Row],[2025/26 To - Spending review Topic 4]]+Dataset[[#This Row],[2025/26 To - Other reallocations]] -> 0 | CG26: =Dataset[[#This Row],[2026/27 To - Spending review Topic 1]]+Dataset[[#This Row],[2026/27 To - Spending review Topic 2]]+Dataset[[#This Row],[2026/27 To - Spending review Topic 3]]+Dataset[[#This Row],[2026/27 To - Spending review Topic 4]]+Dataset[[#This Row],[2026/27 To - Other reallocations]] -> 0 | CH26: =Dataset[[#This Row],[2024/25 Reduction]]+Dataset[[#This Row],[2024/25 From - Total]] -> 0 | CI26: =Dataset[[#This Row],[2025/26 Reduction]]+Dataset[[#This Row],[2025/26 From - Total]] -> 0 | CJ26: =Dataset[[#This Row],[2026/27 Reduction]]+Dataset[[#This Row],[2026/27 From - Total]] -> 0 | CK26: =Dataset[[#This Row],[2023/24 Reduction]] -> 0 | CL26: =SUM(Dataset[[#This Row],[2024/25 Reduction]],Dataset[[#This Row],[2024/25 From - Total]],Dataset[[#This Row],[2024/25 To - Total]]) -> 0 | CM26: =SUM(Dataset[[#This Row],[2025/26 Reduction]],Dataset[[#This Row],[2025/26 From - Total]],Dataset[[#This Row],[2025/26 To - Total]]) -> 0 | CN26: =SUM(Dataset[[#This Row],[2026/27 Reduction]],Dataset[[#This Row],[2026/27 From - Total]],Dataset[[#This Row],[2026/27 To - Total]]) -> 0 | CO26: =Dataset[[#This Row],[2023/24 Baseline]]+Dataset[[#This Row],[2023/24 Total change]] -> 88 | CP26: =Dataset[[#This Row],[2024/25 Baseline]]+Dataset[[#This Row],[2024/25 Total change]] -> 439 | CQ26: =Dataset[[#This Row],[2025/26 Baseline]]+Dataset[[#This Row],[2025/26 Total change]] -> 458 | CR26: =Dataset[[#This Row],[2026/27 Baseline]]+Dataset[[#This Row],[2026/27 Total change]] -> 479
A27: NAT|Non-transfer item | B27: 32|Communication (G&S) | C27: 2024_25 | D27: MTEF2024 | E27: 32 | F27: 1 | G27: 1 | H27: 54189 | I27: 9 | J27: 32 | K27: 01 | L27: 01 | M27: 054189 | N27: 000009 | O27: 32|01|01 | P27: 01 | Q27: 01 | R27: 02 | S27: 09 | T27: 09 | U27: 01|01|02|09|09 | V27: National | W27: Forestry, Fisheries and the Environment | X27: Administration | Y27: Ministry | Z27: Non-transfer item | AA27: Current | AB27: Current payments | AC27: Goods and services | AD27: Communication (G&S) | AE27: Communication (G&S) | AF27: Economic development | AG27: Economic regulation and infrastructure | AH27: NAT | AI27: 5 | AJ27: 4 | AK27: 1 | AL27: 0 | AM27: 0 | AN27: 0 | AO27: 0 | AP27: 5 | AQ27: 421 | AR27: 440 | AS27: 460 | CB27: =Dataset[[#This Row],[2024/25 From - Spending review Topic 1]]+Dataset[[#This Row],[2024/25 From - Spending review Topic 2]]+Dataset[[#This Row],[2024/25 From - Spending review Topic 3]]+Dataset[[#This Row],[2024/25 From - Spending review Topic 4]]+Dataset[[#This Row],[2024/25 From - Other reallocations]] -> 0 | CC27: =Dataset[[#This Row],[2025/26 From - Spending review Topic 1]]+Dataset[[#This Row],[2025/26 From - Spending review Topic 2]]+Dataset[[#This Row],[2025/26 From - Spending review Topic 3]]+Dataset[[#This Row],[2025/26 From - Spending review Topic 4]]+Dataset[[#This Row],[2025/26 From - Other reallocations]] -> 0 | CD27: =Dataset[[#This Row],[2026/27 From - Spending review Topic 1]]+Dataset[[#This Row],[2026/27 From - Spending review Topic 2]]+Dataset[[#This Row],[2026/27 From - Spending review Topic 3]]+Dataset[[#This Row],[2026/27 From - Spending review Topic 4]]+Dataset[[#This Row],[2026/27 From - Other reallocations]] -> 0 | CE27: =Dataset[[#This Row],[2024/25 To - Spending review Topic 1]]+Dataset[[#This Row],[2024/25 To - Spending review Topic 2]]+Dataset[[#This Row],[2024/25 To - Spending review Topic 3]]+Dataset[[#This Row],[2024/25 To - Spending review Topic 4]]+Dataset[[#This Row],[2024/25 To - Other reallocations]] -> 0 | CF27: =Dataset[[#This Row],[2025/26 To - Spending review Topic 1]]+Dataset[[#This Row],[2025/26 To - Spending review Topic 2]]+Dataset[[#This Row],[2025/26 To - Spending review Topic 3]]+Dataset[[#This Row],[2025/26 To - Spending review Topic 4]]+Dataset[[#This Row],[2025/26 To - Other reallocations]] -> 0 | CG27: =Dataset[[#This Row],[2026/27 To - Spending review Topic 1]]+Dataset[[#This Row],[2026/27 To - Spending review Topic 2]]+Dataset[[#This Row],[2026/27 To - Spending review Topic 3]]+Dataset[[#This Row],[2026/27 To - Spending review Topic 4]]+Dataset[[#This Row],[2026/27 To - Other reallocations]] -> 0 | CH27: =Dataset[[#This Row],[2024/25 Reduction]]+Dataset[[#This Row],[2024/25 From - Total]] -> 0 | CI27: =Dataset[[#This Row],[2025/26 Reduction]]+Dataset[[#This Row],[2025/26 From - Total]] -> 0 | CJ27: =Dataset[[#This Row],[2026/27 Reduction]]+Dataset[[#This Row],[2026/27 From - Total]] -> 0 | CK27: =Dataset[[#This Row],[2023/24 Reduction]] -> 0 | CL27: =SUM(Dataset[[#This Row],[2024/25 Reduction]],Dataset[[#This Row],[2024/25 From - Total]],Dataset[[#This Row],[2024/25 To - Total]]) -> 0 | CM27: =SUM(Dataset[[#This Row],[2025/26 Reduction]],Dataset[[#This Row],[2025/26 From - Total]],Dataset[[#This Row],[2025/26 To - Total]]) -> 0 | CN27: =SUM(Dataset[[#This Row],[2026/27 Reduction]],Dataset[[#This Row],[2026/27 From - Total]],Dataset[[#This Row],[2026/27 To - Total]]) -> 0 | CO27: =Dataset[[#This Row],[2023/24 Baseline]]+Dataset[[#This Row],[2023/24 Total change]] -> 5 | CP27: =Dataset[[#This Row],[2024/25 Baseline]]+Dataset[[#This Row],[2024/25 Total change]] -> 421 | CQ27: =Dataset[[#This Row],[2025/26 Baseline]]+Dataset[[#This Row],[2025/26 Total change]] -> 440 | CR27: =Dataset[[#This Row],[2026/27 Baseline]]+Dataset[[#This Row],[2026/27 Total change]] -> 460
A28: NAT|Non-transfer item | B28: 32|Computer services | C28: 2024_25 | D28: MTEF2024 | E28: 32 | F28: 1 | G28: 1 | H28: 54190 | I28: 10 | J28: 32 | K28: 01 | L28: 01 | M28: 054190 | N28: 000010 | O28: 32|01|01 | P28: 01 | Q28: 01 | R28: 02 | S28: 10 | T28: 10 | U28: 01|01|02|10|10 | V28: National | W28: Forestry, Fisheries and the Environment | X28: Administration | Y28: Ministry | Z28: Non-transfer item | AA28: Current | AB28: Current payments | AC28: Goods and services | AD28: Computer services | AE28: Computer services | AF28: Economic development | AG28: Economic regulation and infrastructure | AH28: NAT | AI28: 0 | AJ28: 0 | AK28: 2 | AL28: 10 | AM28: 10 | AN28: 10 | AO28: 0 | AP28: 0 | AQ28: 35 | AR28: 37 | AS28: 39 | CB28: =Dataset[[#This Row],[2024/25 From - Spending review Topic 1]]+Dataset[[#This Row],[2024/25 From - Spending review Topic 2]]+Dataset[[#This Row],[2024/25 From - Spending review Topic 3]]+Dataset[[#This Row],[2024/25 From - Spending review Topic 4]]+Dataset[[#This Row],[2024/25 From - Other reallocations]] -> 0 | CC28: =Dataset[[#This Row],[2025/26 From - Spending review Topic 1]]+Dataset[[#This Row],[2025/26 From - Spending review Topic 2]]+Dataset[[#This Row],[2025/26 From - Spending review Topic 3]]+Dataset[[#This Row],[2025/26 From - Spending review Topic 4]]+Dataset[[#This Row],[2025/26 From - Other reallocations]] -> 0 | CD28: =Dataset[[#This Row],[2026/27 From - Spending review Topic 1]]+Dataset[[#This Row],[2026/27 From - Spending review Topic 2]]+Dataset[[#This Row],[2026/27 From - Spending review Topic 3]]+Dataset[[#This Row],[2026/27 From - Spending review Topic 4]]+Dataset[[#This Row],[2026/27 From - Other reallocations]] -> 0 | CE28: =Dataset[[#This Row],[2024/25 To - Spending review Topic 1]]+Dataset[[#This Row],[2024/25 To - Spending review Topic 2]]+Dataset[[#This Row],[2024/25 To - Spending review Topic 3]]+Dataset[[#This Row],[2024/25 To - Spending review Topic 4]]+Dataset[[#This Row],[2024/25 To - Other reallocations]] -> 0 | CF28: =Dataset[[#This Row],[2025/26 To - Spending review Topic 1]]+Dataset[[#This Row],[2025/26 To - Spending review Topic 2]]+Dataset[[#This Row],[2025/26 To - Spending review Topic 3]]+Dataset[[#This Row],[2025/26 To - Spending review Topic 4]]+Dataset[[#This Row],[2025/26 To - Other reallocations]] -> 0 | CG28: =Dataset[[#This Row],[2026/27 To - Spending review Topic 1]]+Dataset[[#This Row],[2026/27 To - Spending review Topic 2]]+Dataset[[#This Row],[2026/27 To - Spending review Topic 3]]+Dataset[[#This Row],[2026/27 To - Spending review Topic 4]]+Dataset[[#This Row],[2026/27 To - Other reallocations]] -> 0 | CH28: =Dataset[[#This Row],[2024/25 Reduction]]+Dataset[[#This Row],[2024/25 From - Total]] -> 0 | CI28: =Dataset[[#This Row],[2025/26 Reduction]]+Dataset[[#This Row],[2025/26 From - Total]] -> 0 | CJ28: =Dataset[[#This Row],[2026/27 Reduction]]+Dataset[[#This Row],[2026/27 From - Total]] -> 0 | CK28: =Dataset[[#This Row],[2023/24 Reduction]] -> 0 | CL28: =SUM(Dataset[[#This Row],[2024/25 Reduction]],Dataset[[#This Row],[2024/25 From - Total]],Dataset[[#This Row],[2024/25 To - Total]]) -> 0 | CM28: =SUM(Dataset[[#This Row],[2025/26 Reduction]],Dataset[[#This Row],[2025/26 From - Total]],Dataset[[#This Row],[2025/26 To - Total]]) -> 0 | CN28: =SUM(Dataset[[#This Row],[2026/27 Reduction]],Dataset[[#This Row],[2026/27 From - Total]],Dataset[[#This Row],[2026/27 To - Total]]) -> 0 | CO28: =Dataset[[#This Row],[2023/24 Baseline]]+Dataset[[#This Row],[2023/24 Total change]] -> 0 | CP28: =Dataset[[#This Row],[2024/25 Baseline]]+Dataset[[#This Row],[2024/25 Total change]] -> 35 | CQ28: =Dataset[[#This Row],[2025/26 Baseline]]+Dataset[[#This Row],[2025/26 Total change]] -> 37 | CR28: =Dataset[[#This Row],[2026/27 Baseline]]+Dataset[[#This Row],[2026/27 Total change]] -> 39
A29: NAT|Non-transfer item | B29: 32|Consultants: Business and advisory services | C29: 2024_25 | D29: MTEF2024 | E29: 32 | F29: 1 | G29: 1 | H29: 54191 | I29: 11 | J29: 32 | K29: 01 | L29: 01 | M29: 054191 | N29: 000011 | O29: 32|01|01 | P29: 01 | Q29: 01 | R29: 02 | S29: 11 | T29: 11 | U29: 01|01|02|11|11 | V29: National | W29: Forestry, Fisheries and the Environment | X29: Administration | Y29: Ministry | Z29: Non-transfer item | AA29: Current | AB29: Current payments | AC29: Goods and services | AD29: Consultants: Business and advisory services | AE29: Consultants: Business and advisory services | AF29: Economic development | AG29: Economic regulation and infrastructure | AH29: NAT | AI29: 0 | AJ29: 0 | AK29: 0 | AL29: 1336 | AM29: 1336 | AN29: 1336 | AO29: 0 | AP29: 0 | AQ29: 219 | AR29: 395 | AS29: 413 | CB29: =Dataset[[#This Row],[2024/25 From - Spending review Topic 1]]+Dataset[[#This Row],[2024/25 From - Spending review Topic 2]]+Dataset[[#This Row],[2024/25 From - Spending review Topic 3]]+Dataset[[#This Row],[2024/25 From - Spending review Topic 4]]+Dataset[[#This Row],[2024/25 From - Other reallocations]] -> 0 | CC29: =Dataset[[#This Row],[2025/26 From - Spending review Topic 1]]+Dataset[[#This Row],[2025/26 From - Spending review Topic 2]]+Dataset[[#This Row],[2025/26 From - Spending review Topic 3]]+Dataset[[#This Row],[2025/26 From - Spending review Topic 4]]+Dataset[[#This Row],[2025/26 From - Other reallocations]] -> 0 | CD29: =Dataset[[#This Row],[2026/27 From - Spending review Topic 1]]+Dataset[[#This Row],[2026/27 From - Spending review Topic 2]]+Dataset[[#This Row],[2026/27 From - Spending review Topic 3]]+Dataset[[#This Row],[2026/27 From - Spending review Topic 4]]+Dataset[[#This Row],[2026/27 From - Other reallocations]] -> 0 | CE29: =Dataset[[#This Row],[2024/25 To - Spending review Topic 1]]+Dataset[[#This Row],[2024/25 To - Spending review Topic 2]]+Dataset[[#This Row],[2024/25 To - Spending review Topic 3]]+Dataset[[#This Row],[2024/25 To - Spending review Topic 4]]+Dataset[[#This Row],[2024/25 To - Other reallocations]] -> 0 | CF29: =Dataset[[#This Row],[2025/26 To - Spending review Topic 1]]+Dataset[[#This Row],[2025/26 To - Spending review Topic 2]]+Dataset[[#This Row],[2025/26 To - Spending review Topic 3]]+Dataset[[#This Row],[2025/26 To - Spending review Topic 4]]+Dataset[[#This Row],[2025/26 To - Other reallocations]] -> 0 | CG29: =Dataset[[#This Row],[2026/27 To - Spending review Topic 1]]+Dataset[[#This Row],[2026/27 To - Spending review Topic 2]]+Dataset[[#This Row],[2026/27 To - Spending review Topic 3]]+Dataset[[#This Row],[2026/27 To - Spending review Topic 4]]+Dataset[[#This Row],[2026/27 To - Other reallocations]] -> 0 | CH29: =Dataset[[#This Row],[2024/25 Reduction]]+Dataset[[#This Row],[2024/25 From - Total]] -> 0 | CI29: =Dataset[[#This Row],[2025/26 Reduction]]+Dataset[[#This Row],[2025/26 From - Total]] -> 0 | CJ29: =Dataset[[#This Row],[2026/27 Reduction]]+Dataset[[#This Row],[2026/27 From - Total]] -> 0 | CK29: =Dataset[[#This Row],[2023/24 Reduction]] -> 0 | CL29: =SUM(Dataset[[#This Row],[2024/25 Reduction]],Dataset[[#This Row],[2024/25 From - Total]],Dataset[[#This Row],[2024/25 To - Total]]) -> 0 | CM29: =SUM(Dataset[[#This Row],[2025/26 Reduction]],Dataset[[#This Row],[2025/26 From - Total]],Dataset[[#This Row],[2025/26 To - Total]]) -> 0 | CN29: =SUM(Dataset[[#This Row],[2026/27 Reduction]],Dataset[[#This Row],[2026/27 From - Total]],Dataset[[#This Row],[2026/27 To - Total]]) -> 0 | CO29: =Dataset[[#This Row],[2023/24 Baseline]]+Dataset[[#This Row],[2023/24 Total change]] -> 0 | CP29: =Dataset[[#This Row],[2024/25 Baseline]]+Dataset[[#This Row],[2024/25 Total change]] -> 219 | CQ29: =Dataset[[#This Row],[2025/26 Baseline]]+Dataset[[#This Row],[2025/26 Total change]] -> 395 | CR29: =Dataset[[#This Row],[2026/27 Baseline]]+Dataset[[#This Row],[2026/27 Total change]] -> 413
A30: NAT|Non-transfer item | B30: 32|Legal services (G&S) | C30: 2024_25 | D30: MTEF2024 | E30: 32 | F30: 1 | G30: 1 | H30: 54192 | I30: 12 | J30: 32 | K30: 01 | L30: 01 | M30: 054192 | N30: 000012 | O30: 32|01|01 | P30: 01 | Q30: 01 | R30: 02 | S30: 14 | T30: 14 | U30: 01|01|02|14|14 | V30: National | W30: Forestry, Fisheries and the Environment | X30: Administration | Y30: Ministry | Z30: Non-transfer item | AA30: Current | AB30: Current payments | AC30: Goods and services | AD30: Legal services (G&S) | AE30: Legal services (G&S) | AF30: Economic development | AG30: Economic regulation and infrastructure | AH30: NAT | AI30: 0 | AJ30: 0 | AK30: 5 | AL30: 0 | AM30: 0 | AN30: 0 | AO30: 0 | AP30: 120 | AQ30: 915 | AR30: 956 | AS30: 1000 | CB30: =Dataset[[#This Row],[2024/25 From - Spending review Topic 1]]+Dataset[[#This Row],[2024/25 From - Spending review Topic 2]]+Dataset[[#This Row],[2024/25 From - Spending review Topic 3]]+Dataset[[#This Row],[2024/25 From - Spending review Topic 4]]+Dataset[[#This Row],[2024/25 From - Other reallocations]] -> 0 | CC30: =Dataset[[#This Row],[2025/26 From - Spending review Topic 1]]+Dataset[[#This Row],[2025/26 From - Spending review Topic 2]]+Dataset[[#This Row],[2025/26 From - Spending review Topic 3]]+Dataset[[#This Row],[2025/26 From - Spending review Topic 4]]+Dataset[[#This Row],[2025/26 From - Other reallocations]] -> 0 | CD30: =Dataset[[#This Row],[2026/27 From - Spending review Topic 1]]+Dataset[[#This Row],[2026/27 From - Spending review Topic 2]]+Dataset[[#This Row],[2026/27 From - Spending review Topic 3]]+Dataset[[#This Row],[2026/27 From - Spending review Topic 4]]+Dataset[[#This Row],[2026/27 From - Other reallocations]] -> 0 | CE30: =Dataset[[#This Row],[2024/25 To - Spending review Topic 1]]+Dataset[[#This Row],[2024/25 To - Spending review Topic 2]]+Dataset[[#This Row],[2024/25 To - Spending review Topic 3]]+Dataset[[#This Row],[2024/25 To - Spending review Topic 4]]+Dataset[[#This Row],[2024/25 To - Other reallocations]] -> 0 | CF30: =Dataset[[#This Row],[2025/26 To - Spending review Topic 1]]+Dataset[[#This Row],[2025/26 To - Spending review Topic 2]]+Dataset[[#This Row],[2025/26 To - Spending review Topic 3]]+Dataset[[#This Row],[2025/26 To - Spending review Topic 4]]+Dataset[[#This Row],[2025/26 To - Other reallocations]] -> 0 | CG30: =Dataset[[#This Row],[2026/27 To - Spending review Topic 1]]+Dataset[[#This Row],[2026/27 To - Spending review Topic 2]]+Dataset[[#This Row],[2026/27 To - Spending review Topic 3]]+Dataset[[#This Row],[2026/27 To - Spending review Topic 4]]+Dataset[[#This Row],[2026/27 To - Other reallocations]] -> 0 | CH30: =Dataset[[#This Row],[2024/25 Reduction]]+Dataset[[#This Row],[2024/25 From - Total]] -> 0 | CI30: =Dataset[[#This Row],[2025/26 Reduction]]+Dataset[[#This Row],[2025/26 From - Total]] -> 0 | CJ30: =Dataset[[#This Row],[2026/27 Reduction]]+Dataset[[#This Row],[2026/27 From - Total]] -> 0 | CK30: =Dataset[[#This Row],[2023/24 Reduction]] -> 0 | CL30: =SUM(Dataset[[#This Row],[2024/25 Reduction]],Dataset[[#This Row],[2024/25 From - Total]],Dataset[[#This Row],[2024/25 To - Total]]) -> 0 | CM30: =SUM(Dataset[[#This Row],[2025/26 Reduction]],Dataset[[#This Row],[2025/26 From - Total]],Dataset[[#This Row],[2025/26 To - Total]]) -> 0 | CN30: =SUM(Dataset[[#This Row],[2026/27 Reduction]],Dataset[[#This Row],[2026/27 From - Total]],Dataset[[#This Row],[2026/27 To - Total]]) -> 0 | CO30: =Dataset[[#This Row],[2023/24 Baseline]]+Dataset[[#This Row],[2023/24 Total change]] -> 120 | CP30: =Dataset[[#This Row],[2024/25 Baseline]]+Dataset[[#This Row],[2024/25 Total change]] -> 915 | CQ30: =Dataset[[#This Row],[2025/26 Baseline]]+Dataset[[#This Row],[2025/26 Total change]] -> 956 | CR30: =Dataset[[#This Row],[2026/27 Baseline]]+Dataset[[#This Row],[2026/27 Total change]] -> 1000
A31: NAT|Non-transfer item | B31: 32|Contractors | C31: 2024_25 | D31: MTEF2024 | E31: 32 | F31: 1 | G31: 1 | H31: 54193 | I31: 13 | J31: 32 | K31: 01 | L31: 01 | M31: 054193 | N31: 000013 | O31: 32|01|01 | P31: 01 | Q31: 01 | R31: 02 | S31: 16 | T31: 16 | U31: 01|01|02|16|16 | V31: National | W31: Forestry, Fisheries and the Environment | X31: Administration | Y31: Ministry | Z31: Non-transfer item | AA31: Current | AB31: Current payments | AC31: Goods and services | AD31: Contractors | AE31: Contractors | AF31: Economic development | AG31: Economic regulation and infrastructure | AH31: NAT | AI31: 968 | AJ31: 0 | AK31: 13 | AL31: 12 | AM31: 12 | AN31: 12 | AO31: 0 | AP31: 2 | AQ31: 115 | AR31: 120 | AS31: 125 | CB31: =Dataset[[#This Row],[2024/25 From - Spending review Topic 1]]+Dataset[[#This Row],[2024/25 From - Spending review Topic 2]]+Dataset[[#This Row],[2024/25 From - Spending review Topic 3]]+Dataset[[#This Row],[2024/25 From - Spending review Topic 4]]+Dataset[[#This Row],[2024/25 From - Other reallocations]] -> 0 | CC31: =Dataset[[#This Row],[2025/26 From - Spending review Topic 1]]+Dataset[[#This Row],[2025/26 From - Spending review Topic 2]]+Dataset[[#This Row],[2025/26 From - Spending review Topic 3]]+Dataset[[#This Row],[2025/26 From - Spending review Topic 4]]+Dataset[[#This Row],[2025/26 From - Other reallocations]] -> 0 | CD31: =Dataset[[#This Row],[2026/27 From - Spending review Topic 1]]+Dataset[[#This Row],[2026/27 From - Spending review Topic 2]]+Dataset[[#This Row],[2026/27 From - Spending review Topic 3]]+Dataset[[#This Row],[2026/27 From - Spending review Topic 4]]+Dataset[[#This Row],[2026/27 From - Other reallocations]] -> 0 | CE31: =Dataset[[#This Row],[2024/25 To - Spending review Topic 1]]+Dataset[[#This Row],[2024/25 To - Spending review Topic 2]]+Dataset[[#This Row],[2024/25 To - Spending review Topic 3]]+Dataset[[#This Row],[2024/25 To - Spending review Topic 4]]+Dataset[[#This Row],[2024/25 To - Other reallocations]] -> 0 | CF31: =Dataset[[#This Row],[2025/26 To - Spending review Topic 1]]+Dataset[[#This Row],[2025/26 To - Spending review Topic 2]]+Dataset[[#This Row],[2025/26 To - Spending review Topic 3]]+Dataset[[#This Row],[2025/26 To - Spending review Topic 4]]+Dataset[[#This Row],[2025/26 To - Other reallocations]] -> 0 | CG31: =Dataset[[#This Row],[2026/27 To - Spending review Topic 1]]+Dataset[[#This Row],[2026/27 To - Spending review Topic 2]]+Dataset[[#This Row],[2026/27 To - Spending review Topic 3]]+Dataset[[#This Row],[2026/27 To - Spending review Topic 4]]+Dataset[[#This Row],[2026/27 To - Other reallocations]] -> 0 | CH31: =Dataset[[#This Row],[2024/25 Reduction]]+Dataset[[#This Row],[2024/25 From - Total]] -> 0 | CI31: =Dataset[[#This Row],[2025/26 Reduction]]+Dataset[[#This Row],[2025/26 From - Total]] -> 0 | CJ31: =Dataset[[#This Row],[2026/27 Reduction]]+Dataset[[#This Row],[2026/27 From - Total]] -> 0 | CK31: =Dataset[[#This Row],[2023/24 Reduction]] -> 0 | CL31: =SUM(Dataset[[#This Row],[2024/25 Reduction]],Dataset[[#This Row],[2024/25 From - Total]],Dataset[[#This Row],[2024/25 To - Total]]) -> 0 | CM31: =SUM(Dataset[[#This Row],[2025/26 Reduction]],Dataset[[#This Row],[2025/26 From - Total]],Dataset[[#This Row],[2025/26 To - Total]]) -> 0 | CN31: =SUM(Dataset[[#This Row],[2026/27 Reduction]],Dataset[[#This Row],[2026/27 From - Total]],Dataset[[#This Row],[2026/27 To - Total]]) -> 0 | CO31: =Dataset[[#This Row],[2023/24 Baseline]]+Dataset[[#This Row],[2023/24 Total change]] -> 2 | CP31: =Dataset[[#This Row],[2024/25 Baseline]]+Dataset[[#This Row],[2024/25 Total change]] -> 115 | CQ31: =Dataset[[#This Row],[2025/26 Baseline]]+Dataset[[#This Row],[2025/26 Total change]] -> 120 | CR31: =Dataset[[#This Row],[2026/27 Baseline]]+Dataset[[#This Row],[2026/27 Total change]] -> 125
A32: NAT|Non-transfer item | B32: 32|Agency and support/outsourced services | C32: 2024_25 | D32: MTEF2024 | E32: 32 | F32: 1 | G32: 1 | H32: 54194 | I32: 14 | J32: 32 | K32: 01 | L32: 01 | M32: 054194 | N32: 000014 | O32: 32|01|01 | P32: 01 | Q32: 01 | R32: 02 | S32: 17 | T32: 17 | U32: 01|01|02|17|17 | V32: National | W32: Forestry, Fisheries and the Environment | X32: Administration | Y32: Ministry | Z32: Non-transfer item | AA32: Current | AB32: Current payments | AC32: Goods and services | AD32: Agency and support/outsourced services | AE32: Agency and support/outsourced services | AF32: Economic development | AG32: Economic regulation and infrastructure | AH32: NAT | AI32: 0 | AJ32: 0 | AK32: 0 | AL32: 0 | AM32: 0 | AN32: 0 | AO32: 0 | AP32: 0 | AQ32: 34 | AR32: 35 | AS32: 37 | CB32: =Dataset[[#This Row],[2024/25 From - Spending review Topic 1]]+Dataset[[#This Row],[2024/25 From - Spending review Topic 2]]+Dataset[[#This Row],[2024/25 From - Spending review Topic 3]]+Dataset[[#This Row],[2024/25 From - Spending review Topic 4]]+Dataset[[#This Row],[2024/25 From - Other reallocations]] -> 0 | CC32: =Dataset[[#This Row],[2025/26 From - Spending review Topic 1]]+Dataset[[#This Row],[2025/26 From - Spending review Topic 2]]+Dataset[[#This Row],[2025/26 From - Spending review Topic 3]]+Dataset[[#This Row],[2025/26 From - Spending review Topic 4]]+Dataset[[#This Row],[2025/26 From - Other reallocations]] -> 0 | CD32: =Dataset[[#This Row],[2026/27 From - Spending review Topic 1]]+Dataset[[#This Row],[2026/27 From - Spending review Topic 2]]+Dataset[[#This Row],[2026/27 From - Spending review Topic 3]]+Dataset[[#This Row],[2026/27 From - Spending review Topic 4]]+Dataset[[#This Row],[2026/27 From - Other reallocations]] -> 0 | CE32: =Dataset[[#This Row],[2024/25 To - Spending review Topic 1]]+Dataset[[#This Row],[2024/25 To - Spending review Topic 2]]+Dataset[[#This Row],[2024/25 To - Spending review Topic 3]]+Dataset[[#This Row],[2024/25 To - Spending review Topic 4]]+Dataset[[#This Row],[2024/25 To - Other reallocations]] -> 0 | CF32: =Dataset[[#This Row],[2025/26 To - Spending review Topic 1]]+Dataset[[#This Row],[2025/26 To - Spending review Topic 2]]+Dataset[[#This Row],[2025/26 To - Spending review Topic 3]]+Dataset[[#This Row],[2025/26 To - Spending review Topic 4]]+Dataset[[#This Row],[2025/26 To - Other reallocations]] -> 0 | CG32: =Dataset[[#This Row],[2026/27 To - Spending review Topic 1]]+Dataset[[#This Row],[2026/27 To - Spending review Topic 2]]+Dataset[[#This Row],[2026/27 To - Spending review Topic 3]]+Dataset[[#This Row],[2026/27 To - Spending review Topic 4]]+Dataset[[#This Row],[2026/27 To - Other reallocations]] -> 0 | CH32: =Dataset[[#This Row],[2024/25 Reduction]]+Dataset[[#This Row],[2024/25 From - Total]] -> 0 | CI32: =Dataset[[#This Row],[2025/26 Reduction]]+Dataset[[#This Row],[2025/26 From - Total]] -> 0 | CJ32: =Dataset[[#This Row],[2026/27 Reduction]]+Dataset[[#This Row],[2026/27 From - Total]] -> 0 | CK32: =Dataset[[#This Row],[2023/24 Reduction]] -> 0 | CL32: =SUM(Dataset[[#This Row],[2024/25 Reduction]],Dataset[[#This Row],[2024/25 From - Total]],Dataset[[#This Row],[2024/25 To - Total]]) -> 0 | CM32: =SUM(Dataset[[#This Row],[2025/26 Reduction]],Dataset[[#This Row],[2025/26 From - Total]],Dataset[[#This Row],[2025/26 To - Total]]) -> 0 | CN32: =SUM(Dataset[[#This Row],[2026/27 Reduction]],Dataset[[#This Row],[2026/27 From - Total]],Dataset[[#This Row],[2026/27 To - Total]]) -> 0 | CO32: =Dataset[[#This Row],[2023/24 Baseline]]+Dataset[[#This Row],[2023/24 Total change]] -> 0 | CP32: =Dataset[[#This Row],[2024/25 Baseline]]+Dataset[[#This Row],[2024/25 Total change]] -> 34 | CQ32: =Dataset[[#This Row],[2025/26 Baseline]]+Dataset[[#This Row],[2025/26 Total change]] -> 35 | CR32: =Dataset[[#This Row],[2026/27 Baseline]]+Dataset[[#This Row],[2026/27 Total change]] -> 37
A33: NAT|Non-transfer item | B33: 32|Entertainment | C33: 2024_25 | D33: MTEF2024 | E33: 32 | F33: 1 | G33: 1 | H33: 54195 | I33: 15 | J33: 32 | K33: 01 | L33: 01 | M33: 054195 | N33: 000015 | O33: 32|01|01 | P33: 01 | Q33: 01 | R33: 02 | S33: 18 | T33: 18 | U33: 01|01|02|18|18 | V33: National | W33: Forestry, Fisheries and the Environment | X33: Administration | Y33: Ministry | Z33: Non-transfer item | AA33: Current | AB33: Current payments | AC33: Goods and services | AD33: Entertainment | AE33: Entertainment | AF33: Economic development | AG33: Economic regulation and infrastructure | AH33: NAT | AI33: 0 | AJ33: 0 | AK33: 0 | AL33: 0 | AM33: 0 | AN33: 0 | AO33: 0 | AP33: 50 | AQ33: 1 | AR33: 1 | AS33: 1 | CB33: =Dataset[[#This Row],[2024/25 From - Spending review Topic 1]]+Dataset[[#This Row],[2024/25 From - Spending review Topic 2]]+Dataset[[#This Row],[2024/25 From - Spending review Topic 3]]+Dataset[[#This Row],[2024/25 From - Spending review Topic 4]]+Dataset[[#This Row],[2024/25 From - Other reallocations]] -> 0 | CC33: =Dataset[[#This Row],[2025/26 From - Spending review Topic 1]]+Dataset[[#This Row],[2025/26 From - Spending review Topic 2]]+Dataset[[#This Row],[2025/26 From - Spending review Topic 3]]+Dataset[[#This Row],[2025/26 From - Spending review Topic 4]]+Dataset[[#This Row],[2025/26 From - Other reallocations]] -> 0 | CD33: =Dataset[[#This Row],[2026/27 From - Spending review Topic 1]]+Dataset[[#This Row],[2026/27 From - Spending review Topic 2]]+Dataset[[#This Row],[2026/27 From - Spending review Topic 3]]+Dataset[[#This Row],[2026/27 From - Spending review Topic 4]]+Dataset[[#This Row],[2026/27 From - Other reallocations]] -> 0 | CE33: =Dataset[[#This Row],[2024/25 To - Spending review Topic 1]]+Dataset[[#This Row],[2024/25 To - Spending review Topic 2]]+Dataset[[#This Row],[2024/25 To - Spending review Topic 3]]+Dataset[[#This Row],[2024/25 To - Spending review Topic 4]]+Dataset[[#This Row],[2024/25 To - Other reallocations]] -> 0 | CF33: =Dataset[[#This Row],[2025/26 To - Spending review Topic 1]]+Dataset[[#This Row],[2025/26 To - Spending review Topic 2]]+Dataset[[#This Row],[2025/26 To - Spending review Topic 3]]+Dataset[[#This Row],[2025/26 To - Spending review Topic 4]]+Dataset[[#This Row],[2025/26 To - Other reallocations]] -> 0 | CG33: =Dataset[[#This Row],[2026/27 To - Spending review Topic 1]]+Dataset[[#This Row],[2026/27 To - Spending review Topic 2]]+Dataset[[#This Row],[2026/27 To - Spending review Topic 3]]+Dataset[[#This Row],[2026/27 To - Spending review Topic 4]]+Dataset[[#This Row],[2026/27 To - Other reallocations]] -> 0 | CH33: =Dataset[[#This Row],[2024/25 Reduction]]+Dataset[[#This Row],[2024/25 From - Total]] -> 0 | CI33: =Dataset[[#This Row],[2025/26 Reduction]]+Dataset[[#This Row],[2025/26 From - Total]] -> 0 | CJ33: =Dataset[[#This Row],[2026/27 Reduction]]+Dataset[[#This Row],[2026/27 From - Total]] -> 0 | CK33: =Dataset[[#This Row],[2023/24 Reduction]] -> 0 | CL33: =SUM(Dataset[[#This Row],[2024/25 Reduction]],Dataset[[#This Row],[2024/25 From - Total]],Dataset[[#This Row],[2024/25 To - Total]]) -> 0 | CM33: =SUM(Dataset[[#This Row],[2025/26 Reduction]],Dataset[[#This Row],[2025/26 From - Total]],Dataset[[#This Row],[2025/26 To - Total]]) -> 0 | CN33: =SUM(Dataset[[#This Row],[2026/27 Reduction]],Dataset[[#This Row],[2026/27 From - Total]],Dataset[[#This Row],[2026/27 To - Total]]) -> 0 | CO33: =Dataset[[#This Row],[2023/24 Baseline]]+Dataset[[#This Row],[2023/24 Total change]] -> 50 | CP33: =Dataset[[#This Row],[2024/25 Baseline]]+Dataset[[#This Row],[2024/25 Total change]] -> 1 | CQ33: =Dataset[[#This Row],[2025/26 Baseline]]+Dataset[[#This Row],[2025/26 Total change]] -> 1 | CR33: =Dataset[[#This Row],[2026/27 Baseline]]+Dataset[[#This Row],[2026/27 Total change]] -> 1
A34: NAT|Non-transfer item | B34: 32|Fleet services (including government motor transport) | C34: 2024_25 | D34: MTEF2024 | E34: 32 | F34: 1 | G34: 1 | H34: 54196 | I34: 16 | J34: 32 | K34: 01 | L34: 01 | M34: 054196 | N34: 000016 | O34: 32|01|01 | P34: 01 | Q34: 01 | R34: 02 | S34: 19 | T34: 19 | U34: 01|01|02|19|19 | V34: National | W34: Forestry, Fisheries and the Environment | X34: Administration | Y34: Ministry | Z34: Non-transfer item | AA34: Current | AB34: Current payments | AC34: Goods and services | AD34: Fleet services (including government motor transport) | AE34: Fleet services (including government motor transport) | AF34: Economic development | AG34: Economic regulation and infrastructure | AH34: NAT | AI34: 145 | AJ34: 404 | AK34: 265 | AL34: 200 | AM34: 200 | AN34: 200 | AO34: 0 | AP34: 284 | AQ34: 47 | AR34: 49 | AS34: 51 | CB34: =Dataset[[#This Row],[2024/25 From - Spending review Topic 1]]+Dataset[[#This Row],[2024/25 From - Spending review Topic 2]]+Dataset[[#This Row],[2024/25 From - Spending review Topic 3]]+Dataset[[#This Row],[2024/25 From - Spending review Topic 4]]+Dataset[[#This Row],[2024/25 From - Other reallocations]] -> 0 | CC34: =Dataset[[#This Row],[2025/26 From - Spending review Topic 1]]+Dataset[[#This Row],[2025/26 From - Spending review Topic 2]]+Dataset[[#This Row],[2025/26 From - Spending review Topic 3]]+Dataset[[#This Row],[2025/26 From - Spending review Topic 4]]+Dataset[[#This Row],[2025/26 From - Other reallocations]] -> 0 | CD34: =Dataset[[#This Row],[2026/27 From - Spending review Topic 1]]+Dataset[[#This Row],[2026/27 From - Spending review Topic 2]]+Dataset[[#This Row],[2026/27 From - Spending review Topic 3]]+Dataset[[#This Row],[2026/27 From - Spending review Topic 4]]+Dataset[[#This Row],[2026/27 From - Other reallocations]] -> 0 | CE34: =Dataset[[#This Row],[2024/25 To - Spending review Topic 1]]+Dataset[[#This Row],[2024/25 To - Spending review Topic 2]]+Dataset[[#This Row],[2024/25 To - Spending review Topic 3]]+Dataset[[#This Row],[2024/25 To - Spending review Topic 4]]+Dataset[[#This Row],[2024/25 To - Other reallocations]] -> 0 | CF34: =Dataset[[#This Row],[2025/26 To - Spending review Topic 1]]+Dataset[[#This Row],[2025/26 To - Spending review Topic 2]]+Dataset[[#This Row],[2025/26 To - Spending review Topic 3]]+Dataset[[#This Row],[2025/26 To - Spending review Topic 4]]+Dataset[[#This Row],[2025/26 To - Other reallocations]] -> 0 | CG34: =Dataset[[#This Row],[2026/27 To - Spending review Topic 1]]+Dataset[[#This Row],[2026/27 To - Spending review Topic 2]]+Dataset[[#This Row],[2026/27 To - Spending review Topic 3]]+Dataset[[#This Row],[2026/27 To - Spending review Topic 4]]+Dataset[[#This Row],[2026/27 To - Other reallocations]] -> 0 | CH34: =Dataset[[#This Row],[2024/25 Reduction]]+Dataset[[#This Row],[2024/25 From - Total]] -> 0 | CI34: =Dataset[[#This Row],[2025/26 Reduction]]+Dataset[[#This Row],[2025/26 From - Total]] -> 0 | CJ34: =Dataset[[#This Row],[2026/27 Reduction]]+Dataset[[#This Row],[2026/27 From - Total]] -> 0 | CK34: =Dataset[[#This Row],[2023/24 Reduction]] -> 0 | CL34: =SUM(Dataset[[#This Row],[2024/25 Reduction]],Dataset[[#This Row],[2024/25 From - Total]],Dataset[[#This Row],[2024/25 To - Total]]) -> 0 | CM34: =SUM(Dataset[[#This Row],[2025/26 Reduction]],Dataset[[#This Row],[2025/26 From - Total]],Dataset[[#This Row],[2025/26 To - Total]]) -> 0 | CN34: =SUM(Dataset[[#This Row],[2026/27 Reduction]],Dataset[[#This Row],[2026/27 From - Total]],Dataset[[#This Row],[2026/27 To - Total]]) -> 0 | CO34: =Dataset[[#This Row],[2023/24 Baseline]]+Dataset[[#This Row],[2023/24 Total change]] -> 284 | CP34: =Dataset[[#This Row],[2024/25 Baseline]]+Dataset[[#This Row],[2024/25 Total change]] -> 47 | CQ34: =Dataset[[#This Row],[2025/26 Baseline]]+Dataset[[#This Row],[2025/26 Total change]] -> 49 | CR34: =Dataset[[#This Row],[2026/27 Baseline]]+Dataset[[#This Row],[2026/27 Total change]] -> 51
A35: NAT|Non-transfer item | B35: 32|Inventory: Other supplies | C35: 2024_25 | D35: MTEF2024 | E35: 32 | F35: 1 | G35: 1 | H35: 54197 | I35: 17 | J35: 32 | K35: 01 | L35: 01 | M35: 054197 | N35: 000017 | O35: 32|01|01 | P35: 01 | Q35: 01 | R35: 02 | S35: 30 | T35: 30 | U35: 01|01|02|30|30 | V35: National | W35: Forestry, Fisheries and the Environment | X35: Administration | Y35: Ministry | Z35: Non-transfer item | AA35: Current | AB35: Current payments | AC35: Goods and services | AD35: Inventory: Other supplies | AE35: Inventory: Other supplies | AF35: Economic development | AG35: Economic regulation and infrastructure | AH35: NAT | AI35: 0 | AJ35: 0 | AK35: 397 | AL35: 0 | AM35: 0 | AN35: 0 | AO35: 0 | AP35: 0 | AQ35: 0 | AR35: 0 | AS35: 0 | CB35: =Dataset[[#This Row],[2024/25 From - Spending review Topic 1]]+Dataset[[#This Row],[2024/25 From - Spending review Topic 2]]+Dataset[[#This Row],[2024/25 From - Spending review Topic 3]]+Dataset[[#This Row],[2024/25 From - Spending review Topic 4]]+Dataset[[#This Row],[2024/25 From - Other reallocations]] -> 0 | CC35: =Dataset[[#This Row],[2025/26 From - Spending review Topic 1]]+Dataset[[#This Row],[2025/26 From - Spending review Topic 2]]+Dataset[[#This Row],[2025/26 From - Spending review Topic 3]]+Dataset[[#This Row],[2025/26 From - Spending review Topic 4]]+Dataset[[#This Row],[2025/26 From - Other reallocations]] -> 0 | CD35: =Dataset[[#This Row],[2026/27 From - Spending review Topic 1]]+Dataset[[#This Row],[2026/27 From - Spending review Topic 2]]+Dataset[[#This Row],[2026/27 From - Spending review Topic 3]]+Dataset[[#This Row],[2026/27 From - Spending review Topic 4]]+Dataset[[#This Row],[2026/27 From - Other reallocations]] -> 0 | CE35: =Dataset[[#This Row],[2024/25 To - Spending review Topic 1]]+Dataset[[#This Row],[2024/25 To - Spending review Topic 2]]+Dataset[[#This Row],[2024/25 To - Spending review Topic 3]]+Dataset[[#This Row],[2024/25 To - Spending review Topic 4]]+Dataset[[#This Row],[2024/25 To - Other reallocations]] -> 0 | CF35: =Dataset[[#This Row],[2025/26 To - Spending review Topic 1]]+Dataset[[#This Row],[2025/26 To - Spending review Topic 2]]+Dataset[[#This Row],[2025/26 To - Spending review Topic 3]]+Dataset[[#This Row],[2025/26 To - Spending review Topic 4]]+Dataset[[#This Row],[2025/26 To - Other reallocations]] -> 0 | CG35: =Dataset[[#This Row],[2026/27 To - Spending review Topic 1]]+Dataset[[#This Row],[2026/27 To - Spending review Topic 2]]+Dataset[[#This Row],[2026/27 To - Spending review Topic 3]]+Dataset[[#This Row],[2026/27 To - Spending review Topic 4]]+Dataset[[#This Row],[2026/27 To - Other reallocations]] -> 0 | CH35: =Dataset[[#This Row],[2024/25 Reduction]]+Dataset[[#This Row],[2024/25 From - Total]] -> 0 | CI35: =Dataset[[#This Row],[2025/26 Reduction]]+Dataset[[#This Row],[2025/26 From - Total]] -> 0 | CJ35: =Dataset[[#This Row],[2026/27 Reduction]]+Dataset[[#This Row],[2026/27 From - Total]] -> 0 | CK35: =Dataset[[#This Row],[2023/24 Reduction]] -> 0 | CL35: =SUM(Dataset[[#This Row],[2024/25 Reduction]],Dataset[[#This Row],[2024/25 From - Total]],Dataset[[#This Row],[2024/25 To - Total]]) -> 0 | CM35: =SUM(Dataset[[#This Row],[2025/26 Reduction]],Dataset[[#This Row],[2025/26 From - Total]],Dataset[[#This Row],[2025/26 To - Total]]) -> 0 | CN35: =SUM(Dataset[[#This Row],[2026/27 Reduction]],Dataset[[#This Row],[2026/27 From - Total]],Dataset[[#This Row],[2026/27 To - Total]]) -> 0 | CO35: =Dataset[[#This Row],[2023/24 Baseline]]+Dataset[[#This Row],[2023/24 Total change]] -> 0 | CP35: =Dataset[[#This Row],[2024/25 Baseline]]+Dataset[[#This Row],[2024/25 Total change]] -> 0 | CQ35: =Dataset[[#This Row],[2025/26 Baseline]]+Dataset[[#This Row],[2025/26 Total change]] -> 0 | CR35: =Dataset[[#This Row],[2026/27 Baseline]]+Dataset[[#This Row],[2026/27 Total change]] -> 0
A36: NAT|Non-transfer item | B36: 32|Consumable supplies | C36: 2024_25 | D36: MTEF2024 | E36: 32 | F36: 1 | G36: 1 | H36: 54198 | I36: 18 | J36: 32 | K36: 01 | L36: 01 | M36: 054198 | N36: 000018 | O36: 32|01|01 | P36: 01 | Q36: 01 | R36: 02 | S36: 31 | T36: 31 | U36: 01|01|02|31|31 | V36: National | W36: Forestry, Fisheries and the Environment | X36: Administration | Y36: Ministry | Z36: Non-transfer item | AA36: Current | AB36: Current payments | AC36: Goods and services | AD36: Consumable supplies | AE36: Consumable supplies | AF36: Economic development | AG36: Economic regulation and infrastructure | AH36: NAT | AI36: 45 | AJ36: 8 | AK36: 26 | AL36: 60 | AM36: 60 | AN36: 60 | AO36: 0 | AP36: 30 | AQ36: 466 | AR36: 487 | AS36: 509 | CB36: =Dataset[[#This Row],[2024/25 From - Spending review Topic 1]]+Dataset[[#This Row],[2024/25 From - Spending review Topic 2]]+Dataset[[#This Row],[2024/25 From - Spending review Topic 3]]+Dataset[[#This Row],[2024/25 From - Spending review Topic 4]]+Dataset[[#This Row],[2024/25 From - Other reallocations]] -> 0 | CC36: =Dataset[[#This Row],[2025/26 From - Spending review Topic 1]]+Dataset[[#This Row],[2025/26 From - Spending review Topic 2]]+Dataset[[#This Row],[2025/26 From - Spending review Topic 3]]+Dataset[[#This Row],[2025/26 From - Spending review Topic 4]]+Dataset[[#This Row],[2025/26 From - Other reallocations]] -> 0 | CD36: =Dataset[[#This Row],[2026/27 From - Spending review Topic 1]]+Dataset[[#This Row],[2026/27 From - Spending review Topic 2]]+Dataset[[#This Row],[2026/27 From - Spending review Topic 3]]+Dataset[[#This Row],[2026/27 From - Spending review Topic 4]]+Dataset[[#This Row],[2026/27 From - Other reallocations]] -> 0 | CE36: =Dataset[[#This Row],[2024/25 To - Spending review Topic 1]]+Dataset[[#This Row],[2024/25 To - Spending review Topic 2]]+Dataset[[#This Row],[2024/25 To - Spending review Topic 3]]+Dataset[[#This Row],[2024/25 To - Spending review Topic 4]]+Dataset[[#This Row],[2024/25 To - Other reallocations]] -> 0 | CF36: =Dataset[[#This Row],[2025/26 To - Spending review Topic 1]]+Dataset[[#This Row],[2025/26 To - Spending review Topic 2]]+Dataset[[#This Row],[2025/26 To - Spending review Topic 3]]+Dataset[[#This Row],[2025/26 To - Spending review Topic 4]]+Dataset[[#This Row],[2025/26 To - Other reallocations]] -> 0 | CG36: =Dataset[[#This Row],[2026/27 To - Spending review Topic 1]]+Dataset[[#This Row],[2026/27 To - Spending review Topic 2]]+Dataset[[#This Row],[2026/27 To - Spending review Topic 3]]+Dataset[[#This Row],[2026/27 To - Spending review Topic 4]]+Dataset[[#This Row],[2026/27 To - Other reallocations]] -> 0 | CH36: =Dataset[[#This Row],[2024/25 Reduction]]+Dataset[[#This Row],[2024/25 From - Total]] -> 0 | CI36: =Dataset[[#This Row],[2025/26 Reduction]]+Dataset[[#This Row],[2025/26 From - Total]] -> 0 | CJ36: =Dataset[[#This Row],[2026/27 Reduction]]+Dataset[[#This Row],[2026/27 From - Total]] -> 0 | CK36: =Dataset[[#This Row],[2023/24 Reduction]] -> 0 | CL36: =SUM(Dataset[[#This Row],[2024/25 Reduction]],Dataset[[#This Row],[2024/25 From - Total]],Dataset[[#This Row],[2024/25 To - Total]]) -> 0 | CM36: =SUM(Dataset[[#This Row],[2025/26 Reduction]],Dataset[[#This Row],[2025/26 From - Total]],Dataset[[#This Row],[2025/26 To - Total]]) -> 0 | CN36: =SUM(Dataset[[#This Row],[2026/27 Reduction]],Dataset[[#This Row],[2026/27 From - Total]],Dataset[[#This Row],[2026/27 To - Total]]) -> 0 | CO36: =Dataset[[#This Row],[2023/24 Baseline]]+Dataset[[#This Row],[2023/24 Total change]] -> 30 | CP36: =Dataset[[#This Row],[2024/25 Baseline]]+Dataset[[#This Row],[2024/25 Total change]] -> 466 | CQ36: =Dataset[[#This Row],[2025/26 Baseline]]+Dataset[[#This Row],[2025/26 Total change]] -> 487 | CR36: =Dataset[[#This Row],[2026/27 Baseline]]+Dataset[[#This Row],[2026/27 Total change]] -> 509
A37: NAT|Non-transfer item | B37: 32|Consumables: Stationery, printing and office supplies | C37: 2024_25 | D37: MTEF2024 | E37: 32 | F37: 1 | G37: 1 | H37: 54199 | I37: 19 | J37: 32 | K37: 01 | L37: 01 | M37: 054199 | N37: 000019 | O37: 32|01|01 | P37: 01 | Q37: 01 | R37: 02 | S37: 32 | T37: 32 | U37: 01|01|02|32|32 | V37: National | W37: Forestry, Fisheries and the Environment | X37: Administration | Y37: Ministry | Z37: Non-transfer item | AA37: Current | AB37: Current payments | AC37: Goods and services | AD37: Consumables: Stationery, printing and office supplies | AE37: Consumables: Stationery, printing and office supplies | AF37: Economic development | AG37: Economic regulation and infrastructure | AH37: NAT | AI37: 116 | AJ37: 143 | AK37: 495 | AL37: 110 | AM37: 110 | AN37: 110 | AO37: 0 | AP37: 69 | AQ37: 720 | AR37: 753 | AS37: 787 | CB37: =Dataset[[#This Row],[2024/25 From - Spending review Topic 1]]+Dataset[[#This Row],[2024/25 From - Spending review Topic 2]]+Dataset[[#This Row],[2024/25 From - Spending review Topic 3]]+Dataset[[#This Row],[2024/25 From - Spending review Topic 4]]+Dataset[[#This Row],[2024/25 From - Other reallocations]] -> 0 | CC37: =Dataset[[#This Row],[2025/26 From - Spending review Topic 1]]+Dataset[[#This Row],[2025/26 From - Spending review Topic 2]]+Dataset[[#This Row],[2025/26 From - Spending review Topic 3]]+Dataset[[#This Row],[2025/26 From - Spending review Topic 4]]+Dataset[[#This Row],[2025/26 From - Other reallocations]] -> 0 | CD37: =Dataset[[#This Row],[2026/27 From - Spending review Topic 1]]+Dataset[[#This Row],[2026/27 From - Spending review Topic 2]]+Dataset[[#This Row],[2026/27 From - Spending review Topic 3]]+Dataset[[#This Row],[2026/27 From - Spending review Topic 4]]+Dataset[[#This Row],[2026/27 From - Other reallocations]] -> 0 | CE37: =Dataset[[#This Row],[2024/25 To - Spending review Topic 1]]+Dataset[[#This Row],[2024/25 To - Spending review Topic 2]]+Dataset[[#This Row],[2024/25 To - Spending review Topic 3]]+Dataset[[#This Row],[2024/25 To - Spending review Topic 4]]+Dataset[[#This Row],[2024/25 To - Other reallocations]] -> 0 | CF37: =Dataset[[#This Row],[2025/26 To - Spending review Topic 1]]+Dataset[[#This Row],[2025/26 To - Spending review Topic 2]]+Dataset[[#This Row],[2025/26 To - Spending review Topic 3]]+Dataset[[#This Row],[2025/26 To - Spending review Topic 4]]+Dataset[[#This Row],[2025/26 To - Other reallocations]] -> 0 | CG37: =Dataset[[#This Row],[2026/27 To - Spending review Topic 1]]+Dataset[[#This Row],[2026/27 To - Spending review Topic 2]]+Dataset[[#This Row],[2026/27 To - Spending review Topic 3]]+Dataset[[#This Row],[2026/27 To - Spending review Topic 4]]+Dataset[[#This Row],[2026/27 To - Other reallocations]] -> 0 | CH37: =Dataset[[#This Row],[2024/25 Reduction]]+Dataset[[#This Row],[2024/25 From - Total]] -> 0 | CI37: =Dataset[[#This Row],[2025/26 Reduction]]+Dataset[[#This Row],[2025/26 From - Total]] -> 0 | CJ37: =Dataset[[#This Row],[2026/27 Reduction]]+Dataset[[#This Row],[2026/27 From - Total]] -> 0 | CK37: =Dataset[[#This Row],[2023/24 Reduction]] -> 0 | CL37: =SUM(Dataset[[#This Row],[2024/25 Reduction]],Dataset[[#This Row],[2024/25 From - Total]],Dataset[[#This Row],[2024/25 To - Total]]) -> 0 | CM37: =SUM(Dataset[[#This Row],[2025/26 Reduction]],Dataset[[#This Row],[2025/26 From - Total]],Dataset[[#This Row],[2025/26 To - Total]]) -> 0 | CN37: =SUM(Dataset[[#This Row],[2026/27 Reduction]],Dataset[[#This Row],[2026/27 From - Total]],Dataset[[#This Row],[2026/27 To - Total]]) -> 0 | CO37: =Dataset[[#This Row],[2023/24 Baseline]]+Dataset[[#This Row],[2023/24 Total change]] -> 69 | CP37: =Dataset[[#This Row],[2024/25 Baseline]]+Dataset[[#This Row],[2024/25 Total change]] -> 720 | CQ37: =Dataset[[#This Row],[2025/26 Baseline]]+Dataset[[#This Row],[2025/26 Total change]] -> 753 | CR37: =Dataset[[#This Row],[2026/27 Baseline]]+Dataset[[#This Row],[2026/27 Total change]] -> 787
A38: NAT|Non-transfer item | B38: 32|Operating leases | C38: 2024_25 | D38: MTEF2024 | E38: 32 | F38: 1 | G38: 1 | H38: 54200 | I38: 20 | J38: 32 | K38: 01 | L38: 01 | M38: 054200 | N38: 000020 | O38: 32|01|01 | P38: 01 | Q38: 01 | R38: 02 | S38: 33 | T38: 33 | U38: 01|01|02|33|33 | V38: National | W38: Forestry, Fisheries and the Environment | X38: Administration | Y38: Ministry | Z38: Non-transfer item | AA38: Current | AB38: Current payments | AC38: Goods and services | AD38: Operating leases | AE38: Operating leases | AF38: Economic development | AG38: Economic regulation and infrastructure | AH38: NAT | AI38: 190 | AJ38: 173 | AK38: 139 | AL38: 200 | AM38: 200 | AN38: 200 | AO38: 0 | AP38: 25 | AQ38: 166 | AR38: 174 | AS38: 182 | CB38: =Dataset[[#This Row],[2024/25 From - Spending review Topic 1]]+Dataset[[#This Row],[2024/25 From - Spending review Topic 2]]+Dataset[[#This Row],[2024/25 From - Spending review Topic 3]]+Dataset[[#This Row],[2024/25 From - Spending review Topic 4]]+Dataset[[#This Row],[2024/25 From - Other reallocations]] -> 0 | CC38: =Dataset[[#This Row],[2025/26 From - Spending review Topic 1]]+Dataset[[#This Row],[2025/26 From - Spending review Topic 2]]+Dataset[[#This Row],[2025/26 From - Spending review Topic 3]]+Dataset[[#This Row],[2025/26 From - Spending review Topic 4]]+Dataset[[#This Row],[2025/26 From - Other reallocations]] -> 0 | CD38: =Dataset[[#This Row],[2026/27 From - Spending review Topic 1]]+Dataset[[#This Row],[2026/27 From - Spending review Topic 2]]+Dataset[[#This Row],[2026/27 From - Spending review Topic 3]]+Dataset[[#This Row],[2026/27 From - Spending review Topic 4]]+Dataset[[#This Row],[2026/27 From - Other reallocations]] -> 0 | CE38: =Dataset[[#This Row],[2024/25 To - Spending review Topic 1]]+Dataset[[#This Row],[2024/25 To - Spending review Topic 2]]+Dataset[[#This Row],[2024/25 To - Spending review Topic 3]]+Dataset[[#This Row],[2024/25 To - Spending review Topic 4]]+Dataset[[#This Row],[2024/25 To - Other reallocations]] -> 0 | CF38: =Dataset[[#This Row],[2025/26 To - Spending review Topic 1]]+Dataset[[#This Row],[2025/26 To - Spending review Topic 2]]+Dataset[[#This Row],[2025/26 To - Spending review Topic 3]]+Dataset[[#This Row],[2025/26 To - Spending review Topic 4]]+Dataset[[#This Row],[2025/26 To - Other reallocations]] -> 0 | CG38: =Dataset[[#This Row],[2026/27 To - Spending review Topic 1]]+Dataset[[#This Row],[2026/27 To - Spending review Topic 2]]+Dataset[[#This Row],[2026/27 To - Spending review Topic 3]]+Dataset[[#This Row],[2026/27 To - Spending review Topic 4]]+Dataset[[#This Row],[2026/27 To - Other reallocations]] -> 0 | CH38: =Dataset[[#This Row],[2024/25 Reduction]]+Dataset[[#This Row],[2024/25 From - Total]] -> 0 | CI38: =Dataset[[#This Row],[2025/26 Reduction]]+Dataset[[#This Row],[2025/26 From - Total]] -> 0 | CJ38: =Dataset[[#This Row],[2026/27 Reduction]]+Dataset[[#This Row],[2026/27 From - Total]] -> 0 | CK38: =Dataset[[#This Row],[2023/24 Reduction]] -> 0 | CL38: =SUM(Dataset[[#This Row],[2024/25 Reduction]],Dataset[[#This Row],[2024/25 From - Total]],Dataset[[#This Row],[2024/25 To - Total]]) -> 0 | CM38: =SUM(Dataset[[#This Row],[2025/26 Reduction]],Dataset[[#This Row],[2025/26 From - Total]],Dataset[[#This Row],[2025/26 To - Total]]) -> 0 | CN38: =SUM(Dataset[[#This Row],[2026/27 Reduction]],Dataset[[#This Row],[2026/27 From - Total]],Dataset[[#This Row],[2026/27 To - Total]]) -> 0 | CO38: =Dataset[[#This Row],[2023/24 Baseline]]+Dataset[[#This Row],[2023/24 Total change]] -> 25 | CP38: =Dataset[[#This Row],[2024/25 Baseline]]+Dataset[[#This Row],[2024/25 Total change]] -> 166 | CQ38: =Dataset[[#This Row],[2025/26 Baseline]]+Dataset[[#This Row],[2025/26 Total change]] -> 174 | CR38: =Dataset[[#This Row],[2026/27 Baseline]]+Dataset[[#This Row],[2026/27 Total change]] -> 182
A39: NAT|Non-transfer item | B39: 32|Rental and hiring | C39: 2024_25 | D39: MTEF2024 | E39: 32 | F39: 1 | G39: 1 | H39: 54201 | I39: 21 | J39: 32 | K39: 01 | L39: 01 | M39: 054201 | N39: 000021 | O39: 32|01|01 | P39: 01 | Q39: 01 | R39: 02 | S39: 34 | T39: 34 | U39: 01|01|02|34|34 | V39: National | W39: Forestry, Fisheries and the Environment | X39: Administration | Y39: Ministry | Z39: Non-transfer item | AA39: Current | AB39: Current payments | AC39: Goods and services | AD39: Rental and hiring | AE39: Rental and hiring | AF39: Economic development | AG39: Economic regulation and infrastructure | AH39: NAT | AI39: 3 | AJ39: 0 | AK39: 7 | AL39: 50 | AM39: 50 | AN39: 50 | AO39: 0 | AP39: 0 | AQ39: 251 | AR39: 263 | AS39: 275 | CB39: =Dataset[[#This Row],[2024/25 From - Spending review Topic 1]]+Dataset[[#This Row],[2024/25 From - Spending review Topic 2]]+Dataset[[#This Row],[2024/25 From - Spending review Topic 3]]+Dataset[[#This Row],[2024/25 From - Spending review Topic 4]]+Dataset[[#This Row],[2024/25 From - Other reallocations]] -> 0 | CC39: =Dataset[[#This Row],[2025/26 From - Spending review Topic 1]]+Dataset[[#This Row],[2025/26 From - Spending review Topic 2]]+Dataset[[#This Row],[2025/26 From - Spending review Topic 3]]+Dataset[[#This Row],[2025/26 From - Spending review Topic 4]]+Dataset[[#This Row],[2025/26 From - Other reallocations]] -> 0 | CD39: =Dataset[[#This Row],[2026/27 From - Spending review Topic 1]]+Dataset[[#This Row],[2026/27 From - Spending review Topic 2]]+Dataset[[#This Row],[2026/27 From - Spending review Topic 3]]+Dataset[[#This Row],[2026/27 From - Spending review Topic 4]]+Dataset[[#This Row],[2026/27 From - Other reallocations]] -> 0 | CE39: =Dataset[[#This Row],[2024/25 To - Spending review Topic 1]]+Dataset[[#This Row],[2024/25 To - Spending review Topic 2]]+Dataset[[#This Row],[2024/25 To - Spending review Topic 3]]+Dataset[[#This Row],[2024/25 To - Spending review Topic 4]]+Dataset[[#This Row],[2024/25 To - Other reallocations]] -> 0 | CF39: =Dataset[[#This Row],[2025/26 To - Spending review Topic 1]]+Dataset[[#This Row],[2025/26 To - Spending review Topic 2]]+Dataset[[#This Row],[2025/26 To - Spending review Topic 3]]+Dataset[[#This Row],[2025/26 To - Spending review Topic 4]]+Dataset[[#This Row],[2025/26 To - Other reallocations]] -> 0 | CG39: =Dataset[[#This Row],[2026/27 To - Spending review Topic 1]]+Dataset[[#This Row],[2026/27 To - Spending review Topic 2]]+Dataset[[#This Row],[2026/27 To - Spending review Topic 3]]+Dataset[[#This Row],[2026/27 To - Spending review Topic 4]]+Dataset[[#This Row],[2026/27 To - Other reallocations]] -> 0 | CH39: =Dataset[[#This Row],[2024/25 Reduction]]+Dataset[[#This Row],[2024/25 From - Total]] -> 0 | CI39: =Dataset[[#This Row],[2025/26 Reduction]]+Dataset[[#This Row],[2025/26 From - Total]] -> 0 | CJ39: =Dataset[[#This Row],[2026/27 Reduction]]+Dataset[[#This Row],[2026/27 From - Total]] -> 0 | CK39: =Dataset[[#This Row],[2023/24 Reduction]] -> 0 | CL39: =SUM(Dataset[[#This Row],[2024/25 Reduction]],Dataset[[#This Row],[2024/25 From - Total]],Dataset[[#This Row],[2024/25 To - Total]]) -> 0 | CM39: =SUM(Dataset[[#This Row],[2025/26 Reduction]],Dataset[[#This Row],[2025/26 From - Total]],Dataset[[#This Row],[2025/26 To - Total]]) -> 0 | CN39: =SUM(Dataset[[#This Row],[2026/27 Reduction]],Dataset[[#This Row],[2026/27 From - Total]],Dataset[[#This Row],[2026/27 To - Total]]) -> 0 | CO39: =Dataset[[#This Row],[2023/24 Baseline]]+Dataset[[#This Row],[2023/24 Total change]] -> 0 | CP39: =Dataset[[#This Row],[2024/25 Baseline]]+Dataset[[#This Row],[2024/25 Total change]] -> 251 | CQ39: =Dataset[[#This Row],[2025/26 Baseline]]+Dataset[[#This Row],[2025/26 Total change]] -> 263 | CR39: =Dataset[[#This Row],[2026/27 Baseline]]+Dataset[[#This Row],[2026/27 Total change]] -> 275
A40: NAT|Non-transfer item | B40: 32|Property payments | C40: 2024_25 | D40: MTEF2024 | E40: 32 | F40: 1 | G40: 1 | H40: 54202 | I40: 22 | J40: 32 | K40: 01 | L40: 01 | M40: 054202 | N40: 000022 | O40: 32|01|01 | P40: 01 | Q40: 01 | R40: 02 | S40: 35 | T40: 35 | U40: 01|01|02|35|35 | V40: National | W40: Forestry, Fisheries and the Environment | X40: Administration | Y40: Ministry | Z40: Non-transfer item | AA40: Current | AB40: Current payments | AC40: Goods and services | AD40: Property payments | AE40: Property payments | AF40: Economic development | AG40: Economic regulation and infrastructure | AH40: NAT | AI40: 0 | AJ40: 3 | AK40: 0 | AL40: 0 | AM40: 0 | AN40: 0 | AO40: 0 | AP40: 0 | AQ40: 0 | AR40: 0 | AS40: 0 | CB40: =Dataset[[#This Row],[2024/25 From - Spending review Topic 1]]+Dataset[[#This Row],[2024/25 From - Spending review Topic 2]]+Dataset[[#This Row],[2024/25 From - Spending review Topic 3]]+Dataset[[#This Row],[2024/25 From - Spending review Topic 4]]+Dataset[[#This Row],[2024/25 From - Other reallocations]] -> 0 | CC40: =Dataset[[#This Row],[2025/26 From - Spending review Topic 1]]+Dataset[[#This Row],[2025/26 From - Spending review Topic 2]]+Dataset[[#This Row],[2025/26 From - Spending review Topic 3]]+Dataset[[#This Row],[2025/26 From - Spending review Topic 4]]+Dataset[[#This Row],[2025/26 From - Other reallocations]] -> 0 | CD40: =Dataset[[#This Row],[2026/27 From - Spending review Topic 1]]+Dataset[[#This Row],[2026/27 From - Spending review Topic 2]]+Dataset[[#This Row],[2026/27 From - Spending review Topic 3]]+Dataset[[#This Row],[2026/27 From - Spending review Topic 4]]+Dataset[[#This Row],[2026/27 From - Other reallocations]] -> 0 | CE40: =Dataset[[#This Row],[2024/25 To - Spending review Topic 1]]+Dataset[[#This Row],[2024/25 To - Spending review Topic 2]]+Dataset[[#This Row],[2024/25 To - Spending review Topic 3]]+Dataset[[#This Row],[2024/25 To - Spending review Topic 4]]+Dataset[[#This Row],[2024/25 To - Other reallocations]] -> 0 | CF40: =Dataset[[#This Row],[2025/26 To - Spending review Topic 1]]+Dataset[[#This Row],[2025/26 To - Spending review Topic 2]]+Dataset[[#This Row],[2025/26 To - Spending review Topic 3]]+Dataset[[#This Row],[2025/26 To - Spending review Topic 4]]+Dataset[[#This Row],[2025/26 To - Other reallocations]] -> 0 | CG40: =Dataset[[#This Row],[2026/27 To - Spending review Topic 1]]+Dataset[[#This Row],[2026/27 To - Spending review Topic 2]]+Dataset[[#This Row],[2026/27 To - Spending review Topic 3]]+Dataset[[#This Row],[2026/27 To - Spending review Topic 4]]+Dataset[[#This Row],[2026/27 To - Other reallocations]] -> 0 | CH40: =Dataset[[#This Row],[2024/25 Reduction]]+Dataset[[#This Row],[2024/25 From - Total]] -> 0 | CI40: =Dataset[[#This Row],[2025/26 Reduction]]+Dataset[[#This Row],[2025/26 From - Total]] -> 0 | CJ40: =Dataset[[#This Row],[2026/27 Reduction]]+Dataset[[#This Row],[2026/27 From - Total]] -> 0 | CK40: =Dataset[[#This Row],[2023/24 Reduction]] -> 0 | CL40: =SUM(Dataset[[#This Row],[2024/25 Reduction]],Dataset[[#This Row],[2024/25 From - Total]],Dataset[[#This Row],[2024/25 To - Total]]) -> 0 | CM40: =SUM(Dataset[[#This Row],[2025/26 Reduction]],Dataset[[#This Row],[2025/26 From - Total]],Dataset[[#This Row],[2025/26 To - Total]]) -> 0 | CN40: =SUM(Dataset[[#This Row],[2026/27 Reduction]],Dataset[[#This Row],[2026/27 From - Total]],Dataset[[#This Row],[2026/27 To - Total]]) -> 0 | CO40: =Dataset[[#This Row],[2023/24 Baseline]]+Dataset[[#This Row],[2023/24 Total change]] -> 0 | CP40: =Dataset[[#This Row],[2024/25 Baseline]]+Dataset[[#This Row],[2024/25 Total change]] -> 0 | CQ40: =Dataset[[#This Row],[2025/26 Baseline]]+Dataset[[#This Row],[2025/26 Total change]] -> 0 | CR40: =Dataset[[#This Row],[2026/27 Baseline]]+Dataset[[#This Row],[2026/27 Total change]] -> 0
A41: NAT|Non-transfer item | B41: 32|Transport provided: Departmental activity | C41: 2024_25 | D41: MTEF2024 | E41: 32 | F41: 1 | G41: 1 | H41: 54203 | I41: 23 | J41: 32 | K41: 01 | L41: 01 | M41: 054203 | N41: 000023 | O41: 32|01|01 | P41: 01 | Q41: 01 | R41: 02 | S41: 36 | T41: 36 | U41: 01|01|02|36|36 | V41: National | W41: Forestry, Fisheries and the Environment | X41: Administration | Y41: Ministry | Z41: Non-transfer item | AA41: Current | AB41: Current payments | AC41: Goods and services | AD41: Transport provided: Departmental activity | AE41: Transport provided: Departmental activity | AF41: Economic development | AG41: Economic regulation and infrastructure | AH41: NAT | AI41: 0 | AJ41: 0 | AK41: 0 | AL41: 0 | AM41: 0 | AN41: 0 | AO41: 0 | AP41: 0 | AQ41: 218 | AR41: 227 | AS41: 237 | CB41: =Dataset[[#This Row],[2024/25 From - Spending review Topic 1]]+Dataset[[#This Row],[2024/25 From - Spending review Topic 2]]+Dataset[[#This Row],[2024/25 From - Spending review Topic 3]]+Dataset[[#This Row],[2024/25 From - Spending review Topic 4]]+Dataset[[#This Row],[2024/25 From - Other reallocations]] -> 0 | CC41: =Dataset[[#This Row],[2025/26 From - Spending review Topic 1]]+Dataset[[#This Row],[2025/26 From - Spending review Topic 2]]+Dataset[[#This Row],[2025/26 From - Spending review Topic 3]]+Dataset[[#This Row],[2025/26 From - Spending review Topic 4]]+Dataset[[#This Row],[2025/26 From - Other reallocations]] -> 0 | CD41: =Dataset[[#This Row],[2026/27 From - Spending review Topic 1]]+Dataset[[#This Row],[2026/27 From - Spending review Topic 2]]+Dataset[[#This Row],[2026/27 From - Spending review Topic 3]]+Dataset[[#This Row],[2026/27 From - Spending review Topic 4]]+Dataset[[#This Row],[2026/27 From - Other reallocations]] -> 0 | CE41: =Dataset[[#This Row],[2024/25 To - Spending review Topic 1]]+Dataset[[#This Row],[2024/25 To - Spending review Topic 2]]+Dataset[[#This Row],[2024/25 To - Spending review Topic 3]]+Dataset[[#This Row],[2024/25 To - Spending review Topic 4]]+Dataset[[#This Row],[2024/25 To - Other reallocations]] -> 0 | CF41: =Dataset[[#This Row],[2025/26 To - Spending review Topic 1]]+Dataset[[#This Row],[2025/26 To - Spending review Topic 2]]+Dataset[[#This Row],[2025/26 To - Spending review Topic 3]]+Dataset[[#This Row],[2025/26 To - Spending review Topic 4]]+Dataset[[#This Row],[2025/26 To - Other reallocations]] -> 0 | CG41: =Dataset[[#This Row],[2026/27 To - Spending review Topic 1]]+Dataset[[#This Row],[2026/27 To - Spending review Topic 2]]+Dataset[[#This Row],[2026/27 To - Spending review Topic 3]]+Dataset[[#This Row],[2026/27 To - Spending review Topic 4]]+Dataset[[#This Row],[2026/27 To - Other reallocations]] -> 0 | CH41: =Dataset[[#This Row],[2024/25 Reduction]]+Dataset[[#This Row],[2024/25 From - Total]] -> 0 | CI41: =Dataset[[#This Row],[2025/26 Reduction]]+Dataset[[#This Row],[2025/26 From - Total]] -> 0 | CJ41: =Dataset[[#This Row],[2026/27 Reduction]]+Dataset[[#This Row],[2026/27 From - Total]] -> 0 | CK41: =Dataset[[#This Row],[2023/24 Reduction]] -> 0 | CL41: =SUM(Dataset[[#This Row],[2024/25 Reduction]],Dataset[[#This Row],[2024/25 From - Total]],Dataset[[#This Row],[2024/25 To - Total]]) -> 0 | CM41: =SUM(Dataset[[#This Row],[2025/26 Reduction]],Dataset[[#This Row],[2025/26 From - Total]],Dataset[[#This Row],[2025/26 To - Total]]) -> 0 | CN41: =SUM(Dataset[[#This Row],[2026/27 Reduction]],Dataset[[#This Row],[2026/27 From - Total]],Dataset[[#This Row],[2026/27 To - Total]]) -> 0 | CO41: =Dataset[[#This Row],[2023/24 Baseline]]+Dataset[[#This Row],[2023/24 Total change]] -> 0 | CP41: =Dataset[[#This Row],[2024/25 Baseline]]+Dataset[[#This Row],[2024/25 Total change]] -> 218 | CQ41: =Dataset[[#This Row],[2025/26 Baseline]]+Dataset[[#This Row],[2025/26 Total change]] -> 227 | CR41: =Dataset[[#This Row],[2026/27 Baseline]]+Dataset[[#This Row],[2026/27 Total change]] -> 237
A42: NAT|Non-transfer item | B42: 32|Travel and subsistence | C42: 2024_25 | D42: MTEF2024 | E42: 32 | F42: 1 | G42: 1 | H42: 54204 | I42: 24 | J42: 32 | K42: 01 | L42: 01 | M42: 054204 | N42: 000024 | O42: 32|01|01 | P42: 01 | Q42: 01 | R42: 02 | S42: 37 | T42: 37 | U42: 01|01|02|37|37 | V42: National | W42: Forestry, Fisheries and the Environment | X42: Administration | Y42: Ministry | Z42: Non-transfer item | AA42: Current | AB42: Current payments | AC42: Goods and services | AD42: Travel and subsistence | AE42: Travel and subsistence | AF42: Economic development | AG42: Economic regulation and infrastructure | AH42: NAT | AI42: 0 | AJ42: 2774 | AK42: 5174 | AL42: 5227 | AM42: 5227 | AN42: 5227 | AO42: 0 | AP42: 9530 | AQ42: 3922 | AR42: 3585 | AS42: 3749 | CB42: =Dataset[[#This Row],[2024/25 From - Spending review Topic 1]]+Dataset[[#This Row],[2024/25 From - Spending review Topic 2]]+Dataset[[#This Row],[2024/25 From - Spending review Topic 3]]+Dataset[[#This Row],[2024/25 From - Spending review Topic 4]]+Dataset[[#This Row],[2024/25 From - Other reallocations]] -> 0 | CC42: =Dataset[[#This Row],[2025/26 From - Spending review Topic 1]]+Dataset[[#This Row],[2025/26 From - Spending review Topic 2]]+Dataset[[#This Row],[2025/26 From - Spending review Topic 3]]+Dataset[[#This Row],[2025/26 From - Spending review Topic 4]]+Dataset[[#This Row],[2025/26 From - Other reallocations]] -> 0 | CD42: =Dataset[[#This Row],[2026/27 From - Spending review Topic 1]]+Dataset[[#This Row],[2026/27 From - Spending review Topic 2]]+Dataset[[#This Row],[2026/27 From - Spending review Topic 3]]+Dataset[[#This Row],[2026/27 From - Spending review Topic 4]]+Dataset[[#This Row],[2026/27 From - Other reallocations]] -> 0 | CE42: =Dataset[[#This Row],[2024/25 To - Spending review Topic 1]]+Dataset[[#This Row],[2024/25 To - Spending review Topic 2]]+Dataset[[#This Row],[2024/25 To - Spending review Topic 3]]+Dataset[[#This Row],[2024/25 To - Spending review Topic 4]]+Dataset[[#This Row],[2024/25 To - Other reallocations]] -> 0 | CF42: =Dataset[[#This Row],[2025/26 To - Spending review Topic 1]]+Dataset[[#This Row],[2025/26 To - Spending review Topic 2]]+Dataset[[#This Row],[2025/26 To - Spending review Topic 3]]+Dataset[[#This Row],[2025/26 To - Spending review Topic 4]]+Dataset[[#This Row],[2025/26 To - Other reallocations]] -> 0 | CG42: =Dataset[[#This Row],[2026/27 To - Spending review Topic 1]]+Dataset[[#This Row],[2026/27 To - Spending review Topic 2]]+Dataset[[#This Row],[2026/27 To - Spending review Topic 3]]+Dataset[[#This Row],[2026/27 To - Spending review Topic 4]]+Dataset[[#This Row],[2026/27 To - Other reallocations]] -> 0 | CH42: =Dataset[[#This Row],[2024/25 Reduction]]+Dataset[[#This Row],[2024/25 From - Total]] -> 0 | CI42: =Dataset[[#This Row],[2025/26 Reduction]]+Dataset[[#This Row],[2025/26 From - Total]] -> 0 | CJ42: =Dataset[[#This Row],[2026/27 Reduction]]+Dataset[[#This Row],[2026/27 From - Total]] -> 0 | CK42: =Dataset[[#This Row],[2023/24 Reduction]] -> 0 | CL42: =SUM(Dataset[[#This Row],[2024/25 Reduction]],Dataset[[#This Row],[2024/25 From - Total]],Dataset[[#This Row],[2024/25 To - Total]]) -> 0 | CM42: =SUM(Dataset[[#This Row],[2025/26 Reduction]],Dataset[[#This Row],[2025/26 From - Total]],Dataset[[#This Row],[2025/26 To - Total]]) -> 0 | CN42: =SUM(Dataset[[#This Row],[2026/27 Reduction]],Dataset[[#This Row],[2026/27 From - Total]],Dataset[[#This Row],[2026/27 To - Total]]) -> 0 | CO42: =Dataset[[#This Row],[2023/24 Baseline]]+Dataset[[#This Row],[2023/24 Total change]] -> 9530 | CP42: =Dataset[[#This Row],[2024/25 Baseline]]+Dataset[[#This Row],[2024/25 Total change]] -> 3922 | CQ42: =Dataset[[#This Row],[2025/26 Baseline]]+Dataset[[#This Row],[2025/26 Total change]] -> 3585 | CR42: =Dataset[[#This Row],[2026/27 Baseline]]+Dataset[[#This Row],[2026/27 Total change]] -> 3749
A43: NAT|Non-transfer item | B43: 32|Training and development | C43: 2024_25 | D43: MTEF2024 | E43: 32 | F43: 1 | G43: 1 | H43: 54205 | I43: 25 | J43: 32 | K43: 01 | L43: 01 | M43: 054205 | N43: 000025 | O43: 32|01|01 | P43: 01 | Q43: 01 | R43: 02 | S43: 38 | T43: 38 | U43: 01|01|02|38|38 | V43: National | W43: Forestry, Fisheries and the Environment | X43: Administration | Y43: Ministry | Z43: Non-transfer item | AA43: Current | AB43: Current payments | AC43: Goods and services | AD43: Training and development | AE43: Training and development | AF43: Economic development | AG43: Economic regulation and infrastructure | AH43: NAT | AI43: 0 | AJ43: 0 | AK43: 0 | AL43: 0 | AM43: 0 | AN43: 0 | AO43: 0 | AP43: 0 | AQ43: 593 | AR43: 620 | AS43: 648 | CB43: =Dataset[[#This Row],[2024/25 From - Spending review Topic 1]]+Dataset[[#This Row],[2024/25 From - Spending review Topic 2]]+Dataset[[#This Row],[2024/25 From - Spending review Topic 3]]+Dataset[[#This Row],[2024/25 From - Spending review Topic 4]]+Dataset[[#This Row],[2024/25 From - Other reallocations]] -> 0 | CC43: =Dataset[[#This Row],[2025/26 From - Spending review Topic 1]]+Dataset[[#This Row],[2025/26 From - Spending review Topic 2]]+Dataset[[#This Row],[2025/26 From - Spending review Topic 3]]+Dataset[[#This Row],[2025/26 From - Spending review Topic 4]]+Dataset[[#This Row],[2025/26 From - Other reallocations]] -> 0 | CD43: =Dataset[[#This Row],[2026/27 From - Spending review Topic 1]]+Dataset[[#This Row],[2026/27 From - Spending review Topic 2]]+Dataset[[#This Row],[2026/27 From - Spending review Topic 3]]+Dataset[[#This Row],[2026/27 From - Spending review Topic 4]]+Dataset[[#This Row],[2026/27 From - Other reallocations]] -> 0 | CE43: =Dataset[[#This Row],[2024/25 To - Spending review Topic 1]]+Dataset[[#This Row],[2024/25 To - Spending review Topic 2]]+Dataset[[#This Row],[2024/25 To - Spending review Topic 3]]+Dataset[[#This Row],[2024/25 To - Spending review Topic 4]]+Dataset[[#This Row],[2024/25 To - Other reallocations]] -> 0 | CF43: =Dataset[[#This Row],[2025/26 To - Spending review Topic 1]]+Dataset[[#This Row],[2025/26 To - Spending review Topic 2]]+Dataset[[#This Row],[2025/26 To - Spending review Topic 3]]+Dataset[[#This Row],[2025/26 To - Spending review Topic 4]]+Dataset[[#This Row],[2025/26 To - Other reallocations]] -> 0 | CG43: =Dataset[[#This Row],[2026/27 To - Spending review Topic 1]]+Dataset[[#This Row],[2026/27 To - Spending review Topic 2]]+Dataset[[#This Row],[2026/27 To - Spending review Topic 3]]+Dataset[[#This Row],[2026/27 To - Spending review Topic 4]]+Dataset[[#This Row],[2026/27 To - Other reallocations]] -> 0 | CH43: =Dataset[[#This Row],[2024/25 Reduction]]+Dataset[[#This Row],[2024/25 From - Total]] -> 0 | CI43: =Dataset[[#This Row],[2025/26 Reduction]]+Dataset[[#This Row],[2025/26 From - Total]] -> 0 | CJ43: =Dataset[[#This Row],[2026/27 Reduction]]+Dataset[[#This Row],[2026/27 From - Total]] -> 0 | CK43: =Dataset[[#This Row],[2023/24 Reduction]] -> 0 | CL43: =SUM(Dataset[[#This Row],[2024/25 Reduction]],Dataset[[#This Row],[2024/25 From - Total]],Dataset[[#This Row],[2024/25 To - Total]]) -> 0 | CM43: =SUM(Dataset[[#This Row],[2025/26 Reduction]],Dataset[[#This Row],[2025/26 From - Total]],Dataset[[#This Row],[2025/26 To - Total]]) -> 0 | CN43: =SUM(Dataset[[#This Row],[2026/27 Reduction]],Dataset[[#This Row],[2026/27 From - Total]],Dataset[[#This Row],[2026/27 To - Total]]) -> 0 | CO43: =Dataset[[#This Row],[2023/24 Baseline]]+Dataset[[#This Row],[2023/24 Total change]] -> 0 | CP43: =Dataset[[#This Row],[2024/25 Baseline]]+Dataset[[#This Row],[2024/25 Total change]] -> 593 | CQ43: =Dataset[[#This Row],[2025/26 Baseline]]+Dataset[[#This Row],[2025/26 Total change]] -> 620 | CR43: =Dataset[[#This Row],[2026/27 Baseline]]+Dataset[[#This Row],[2026/27 Total change]] -> 648
A44: NAT|Non-transfer item | B44: 32|Operating payments | C44: 2024_25 | D44: MTEF2024 | E44: 32 | F44: 1 | G44: 1 | H44: 54206 | I44: 26 | J44: 32 | K44: 01 | L44: 01 | M44: 054206 | N44: 000026 | O44: 32|01|01 | P44: 01 | Q44: 01 | R44: 02 | S44: 39 | T44: 39 | U44: 01|01|02|39|39 | V44: National | W44: Forestry, Fisheries and the Environment | X44: Administration | Y44: Ministry | Z44: Non-transfer item | AA44: Current | AB44: Current payments | AC44: Goods and services | AD44: Operating payments | AE44: Operating payments | AF44: Economic development | AG44: Economic regulation and infrastructure | AH44: NAT | AI44: 210 | AJ44: 38 | AK44: 55 | AL44: 0 | AM44: 0 | AN44: 0 | AO44: 0 | AP44: 0 | AQ44: 284 | AR44: 297 | AS44: 311 | CB44: =Dataset[[#This Row],[2024/25 From - Spending review Topic 1]]+Dataset[[#This Row],[2024/25 From - Spending review Topic 2]]+Dataset[[#This Row],[2024/25 From - Spending review Topic 3]]+Dataset[[#This Row],[2024/25 From - Spending review Topic 4]]+Dataset[[#This Row],[2024/25 From - Other reallocations]] -> 0 | CC44: =Dataset[[#This Row],[2025/26 From - Spending review Topic 1]]+Dataset[[#This Row],[2025/26 From - Spending review Topic 2]]+Dataset[[#This Row],[2025/26 From - Spending review Topic 3]]+Dataset[[#This Row],[2025/26 From - Spending review Topic 4]]+Dataset[[#This Row],[2025/26 From - Other reallocations]] -> 0 | CD44: =Dataset[[#This Row],[2026/27 From - Spending review Topic 1]]+Dataset[[#This Row],[2026/27 From - Spending review Topic 2]]+Dataset[[#This Row],[2026/27 From - Spending review Topic 3]]+Dataset[[#This Row],[2026/27 From - Spending review Topic 4]]+Dataset[[#This Row],[2026/27 From - Other reallocations]] -> 0 | CE44: =Dataset[[#This Row],[2024/25 To - Spending review Topic 1]]+Dataset[[#This Row],[2024/25 To - Spending review Topic 2]]+Dataset[[#This Row],[2024/25 To - Spending review Topic 3]]+Dataset[[#This Row],[2024/25 To - Spending review Topic 4]]+Dataset[[#This Row],[2024/25 To - Other reallocations]] -> 0 | CF44: =Dataset[[#This Row],[2025/26 To - Spending review Topic 1]]+Dataset[[#This Row],[2025/26 To - Spending review Topic 2]]+Dataset[[#This Row],[2025/26 To - Spending review Topic 3]]+Dataset[[#This Row],[2025/26 To - Spending review Topic 4]]+Dataset[[#This Row],[2025/26 To - Other reallocations]] -> 0 | CG44: =Dataset[[#This Row],[2026/27 To - Spending review Topic 1]]+Dataset[[#This Row],[2026/27 To - Spending review Topic 2]]+Dataset[[#This Row],[2026/27 To - Spending review Topic 3]]+Dataset[[#This Row],[2026/27 To - Spending review Topic 4]]+Dataset[[#This Row],[2026/27 To - Other reallocations]] -> 0 | CH44: =Dataset[[#This Row],[2024/25 Reduction]]+Dataset[[#This Row],[2024/25 From - Total]] -> 0 | CI44: =Dataset[[#This Row],[2025/26 Reduction]]+Dataset[[#This Row],[2025/26 From - Total]] -> 0 | CJ44: =Dataset[[#This Row],[2026/27 Reduction]]+Dataset[[#This Row],[2026/27 From - Total]] -> 0 | CK44: =Dataset[[#This Row],[2023/24 Reduction]] -> 0 | CL44: =SUM(Dataset[[#This Row],[2024/25 Reduction]],Dataset[[#This Row],[2024/25 From - Total]],Dataset[[#This Row],[2024/25 To - Total]]) -> 0 | CM44: =SUM(Dataset[[#This Row],[2025/26 Reduction]],Dataset[[#This Row],[2025/26 From - Total]],Dataset[[#This Row],[2025/26 To - Total]]) -> 0 | CN44: =SUM(Dataset[[#This Row],[2026/27 Reduction]],Dataset[[#This Row],[2026/27 From - Total]],Dataset[[#This Row],[2026/27 To - Total]]) -> 0 | CO44: =Dataset[[#This Row],[2023/24 Baseline]]+Dataset[[#This Row],[2023/24 Total change]] -> 0 | CP44: =Dataset[[#This Row],[2024/25 Baseline]]+Dataset[[#This Row],[2024/25 Total change]] -> 284 | CQ44: =Dataset[[#This Row],[2025/26 Baseline]]+Dataset[[#This Row],[2025/26 Total change]] -> 297 | CR44: =Dataset[[#This Row],[2026/27 Baseline]]+Dataset[[#This Row],[2026/27 Total change]] -> 311
A45: NAT|Non-transfer item | B45: 32|Venues and facilities | C45: 2024_25 | D45: MTEF2024 | E45: 32 | F45: 1 | G45: 1 | H45: 54207 | I45: 27 | J45: 32 | K45: 01 | L45: 01 | M45: 054207 | N45: 000027 | O45: 32|01|01 | P45: 01 | Q45: 01 | R45: 02 | S45: 40 | T45: 40 | U45: 01|01|02|40|40 | V45: National | W45: Forestry, Fisheries and the Environment | X45: Administration | Y45: Ministry | Z45: Non-transfer item | AA45: Current | AB45: Current payments | AC45: Goods and services | AD45: Venues and facilities | AE45: Venues and facilities | AF45: Economic development | AG45: Economic regulation and infrastructure | AH45: NAT | AI45: 153 | AJ45: 37 | AK45: 237 | AL45: 400 | AM45: 400 | AN45: 400 | AO45: 0 | AP45: 125 | AQ45: 564 | AR45: 589 | AS45: 616 | CB45: =Dataset[[#This Row],[2024/25 From - Spending review Topic 1]]+Dataset[[#This Row],[2024/25 From - Spending review Topic 2]]+Dataset[[#This Row],[2024/25 From - Spending review Topic 3]]+Dataset[[#This Row],[2024/25 From - Spending review Topic 4]]+Dataset[[#This Row],[2024/25 From - Other reallocations]] -> 0 | CC45: =Dataset[[#This Row],[2025/26 From - Spending review Topic 1]]+Dataset[[#This Row],[2025/26 From - Spending review Topic 2]]+Dataset[[#This Row],[2025/26 From - Spending review Topic 3]]+Dataset[[#This Row],[2025/26 From - Spending review Topic 4]]+Dataset[[#This Row],[2025/26 From - Other reallocations]] -> 0 | CD45: =Dataset[[#This Row],[2026/27 From - Spending review Topic 1]]+Dataset[[#This Row],[2026/27 From - Spending review Topic 2]]+Dataset[[#This Row],[2026/27 From - Spending review Topic 3]]+Dataset[[#This Row],[2026/27 From - Spending review Topic 4]]+Dataset[[#This Row],[2026/27 From - Other reallocations]] -> 0 | CE45: =Dataset[[#This Row],[2024/25 To - Spending review Topic 1]]+Dataset[[#This Row],[2024/25 To - Spending review Topic 2]]+Dataset[[#This Row],[2024/25 To - Spending review Topic 3]]+Dataset[[#This Row],[2024/25 To - Spending review Topic 4]]+Dataset[[#This Row],[2024/25 To - Other reallocations]] -> 0 | CF45: =Dataset[[#This Row],[2025/26 To - Spending review Topic 1]]+Dataset[[#This Row],[2025/26 To - Spending review Topic 2]]+Dataset[[#This Row],[2025/26 To - Spending review Topic 3]]+Dataset[[#This Row],[2025/26 To - Spending review Topic 4]]+Dataset[[#This Row],[2025/26 To - Other reallocations]] -> 0 | CG45: =Dataset[[#This Row],[2026/27 To - Spending review Topic 1]]+Dataset[[#This Row],[2026/27 To - Spending review Topic 2]]+Dataset[[#This Row],[2026/27 To - Spending review Topic 3]]+Dataset[[#This Row],[2026/27 To - Spending review Topic 4]]+Dataset[[#This Row],[2026/27 To - Other reallocations]] -> 0 | CH45: =Dataset[[#This Row],[2024/25 Reduction]]+Dataset[[#This Row],[2024/25 From - Total]] -> 0 | CI45: =Dataset[[#This Row],[2025/26 Reduction]]+Dataset[[#This Row],[2025/26 From - Total]] -> 0 | CJ45: =Dataset[[#This Row],[2026/27 Reduction]]+Dataset[[#This Row],[2026/27 From - Total]] -> 0 | CK45: =Dataset[[#This Row],[2023/24 Reduction]] -> 0 | CL45: =SUM(Dataset[[#This Row],[2024/25 Reduction]],Dataset[[#This Row],[2024/25 From - Total]],Dataset[[#This Row],[2024/25 To - Total]]) -> 0 | CM45: =SUM(Dataset[[#This Row],[2025/26 Reduction]],Dataset[[#This Row],[2025/26 From - Total]],Dataset[[#This Row],[2025/26 To - Total]]) -> 0 | CN45: =SUM(Dataset[[#This Row],[2026/27 Reduction]],Dataset[[#This Row],[2026/27 From - Total]],Dataset[[#This Row],[2026/27 To - Total]]) -> 0 | CO45: =Dataset[[#This Row],[2023/24 Baseline]]+Dataset[[#This Row],[2023/24 Total change]] -> 125 | CP45: =Dataset[[#This Row],[2024/25 Baseline]]+Dataset[[#This Row],[2024/25 Total change]] -> 564 | CQ45: =Dataset[[#This Row],[2025/26 Baseline]]+Dataset[[#This Row],[2025/26 Total change]] -> 589 | CR45: =Dataset[[#This Row],[2026/27 Baseline]]+Dataset[[#This Row],[2026/27 Total change]] -> 616
A46: NAT|Vehicle licences | B46: 32|Provincial agencies and funds | C46: 2024_25 | D46: MTEF2024 | E46: 32 | F46: 1 | G46: 1 | H46: 54208 | I46: 28 | J46: 32 | K46: 01 | L46: 01 | M46: 054208 | N46: 000028 | O46: 32|01|01 | P46: 01 | Q46: 02 | R46: 04 | S46: 43 | T46: 44 | U46: 01|02|04|43|44 | V46: National | W46: Forestry, Fisheries and the Environment | X46: Administration | Y46: Ministry | Z46: Vehicle licences | AA46: Current | AB46: Transfers and subsidies | AC46: Provinces and municipalities | AD46: Provinces | AE46: Provincial agencies and funds | AF46: Economic development | AG46: Economic regulation and infrastructure | AH46: NAT | AI46: 3 | AJ46: 5 | AK46: 0 | AL46: 0 | AM46: 0 | AN46: 0 | AO46: 0 | AP46: 0 | AQ46: 0 | AR46: 0 | AS46: 0 | CB46: =Dataset[[#This Row],[2024/25 From - Spending review Topic 1]]+Dataset[[#This Row],[2024/25 From - Spending review Topic 2]]+Dataset[[#This Row],[2024/25 From - Spending review Topic 3]]+Dataset[[#This Row],[2024/25 From - Spending review Topic 4]]+Dataset[[#This Row],[2024/25 From - Other reallocations]] -> 0 | CC46: =Dataset[[#This Row],[2025/26 From - Spending review Topic 1]]+Dataset[[#This Row],[2025/26 From - Spending review Topic 2]]+Dataset[[#This Row],[2025/26 From - Spending review Topic 3]]+Dataset[[#This Row],[2025/26 From - Spending review Topic 4]]+Dataset[[#This Row],[2025/26 From - Other reallocations]] -> 0 | CD46: =Dataset[[#This Row],[2026/27 From - Spending review Topic 1]]+Dataset[[#This Row],[2026/27 From - Spending review Topic 2]]+Dataset[[#This Row],[2026/27 From - Spending review Topic 3]]+Dataset[[#This Row],[2026/27 From - Spending review Topic 4]]+Dataset[[#This Row],[2026/27 From - Other reallocations]] -> 0 | CE46: =Dataset[[#This Row],[2024/25 To - Spending review Topic 1]]+Dataset[[#This Row],[2024/25 To - Spending review Topic 2]]+Dataset[[#This Row],[2024/25 To - Spending review Topic 3]]+Dataset[[#This Row],[2024/25 To - Spending review Topic 4]]+Dataset[[#This Row],[2024/25 To - Other reallocations]] -> 0 | CF46: =Dataset[[#This Row],[2025/26 To - Spending review Topic 1]]+Dataset[[#This Row],[2025/26 To - Spending review Topic 2]]+Dataset[[#This Row],[2025/26 To - Spending review Topic 3]]+Dataset[[#This Row],[2025/26 To - Spending review Topic 4]]+Dataset[[#This Row],[2025/26 To - Other reallocations]] -> 0 | CG46: =Dataset[[#This Row],[2026/27 To - Spending review Topic 1]]+Dataset[[#This Row],[2026/27 To - Spending review Topic 2]]+Dataset[[#This Row],[2026/27 To - Spending review Topic 3]]+Dataset[[#This Row],[2026/27 To - Spending review Topic 4]]+Dataset[[#This Row],[2026/27 To - Other reallocations]] -> 0 | CH46: =Dataset[[#This Row],[2024/25 Reduction]]+Dataset[[#This Row],[2024/25 From - Total]] -> 0 | CI46: =Dataset[[#This Row],[2025/26 Reduction]]+Dataset[[#This Row],[2025/26 From - Total]] -> 0 | CJ46: =Dataset[[#This Row],[2026/27 Reduction]]+Dataset[[#This Row],[2026/27 From - Total]] -> 0 | CK46: =Dataset[[#This Row],[2023/24 Reduction]] -> 0 | CL46: =SUM(Dataset[[#This Row],[2024/25 Reduction]],Dataset[[#This Row],[2024/25 From - Total]],Dataset[[#This Row],[2024/25 To - Total]]) -> 0 | CM46: =SUM(Dataset[[#This Row],[2025/26 Reduction]],Dataset[[#This Row],[2025/26 From - Total]],Dataset[[#This Row],[2025/26 To - Total]]) -> 0 | CN46: =SUM(Dataset[[#This Row],[2026/27 Reduction]],Dataset[[#This Row],[2026/27 From - Total]],Dataset[[#This Row],[2026/27 To - Total]]) -> 0 | CO46: =Dataset[[#This Row],[2023/24 Baseline]]+Dataset[[#This Row],[2023/24 Total change]] -> 0 | CP46: =Dataset[[#This Row],[2024/25 Baseline]]+Dataset[[#This Row],[2024/25 Total change]] -> 0 | CQ46: =Dataset[[#This Row],[2025/26 Baseline]]+Dataset[[#This Row],[2025/26 Total change]] -> 0 | CR46: =Dataset[[#This Row],[2026/27 Baseline]]+Dataset[[#This Row],[2026/27 Total change]] -> 0
A47: NAT|Vehicle licences | B47: 32|Municipal agencies and funds | C47: 2024_25 | D47: MTEF2024 | E47: 32 | F47: 1 | G47: 1 | H47: 54209 | I47: 29 | J47: 32 | K47: 01 | L47: 01 | M47: 054209 | N47: 000029 | O47: 32|01|01 | P47: 01 | Q47: 02 | R47: 04 | S47: 44 | T47: 46 | U47: 01|02|04|44|46 | V47: National | W47: Forestry, Fisheries and the Environment | X47: Administration | Y47: Ministry | Z47: Vehicle licences | AA47: Current | AB47: Transfers and subsidies | AC47: Provinces and municipalities | AD47: Municipalities | AE47: Municipal agencies and funds | AF47: Economic development | AG47: Economic regulation and infrastructure | AH47: NAT | AI47: 0 | AJ47: 0 | AK47: 4 | AL47: 0 | AM47: 0 | AN47: 0 | AO47: 0 | AP47: 0 | AQ47: 0 | AR47: 0 | AS47: 0 | CB47: =Dataset[[#This Row],[2024/25 From - Spending review Topic 1]]+Dataset[[#This Row],[2024/25 From - Spending review Topic 2]]+Dataset[[#This Row],[2024/25 From - Spending review Topic 3]]+Dataset[[#This Row],[2024/25 From - Spending review Topic 4]]+Dataset[[#This Row],[2024/25 From - Other reallocations]] -> 0 | CC47: =Dataset[[#This Row],[2025/26 From - Spending review Topic 1]]+Dataset[[#This Row],[2025/26 From - Spending review Topic 2]]+Dataset[[#This Row],[2025/26 From - Spending review Topic 3]]+Dataset[[#This Row],[2025/26 From - Spending review Topic 4]]+Dataset[[#This Row],[2025/26 From - Other reallocations]] -> 0 | CD47: =Dataset[[#This Row],[2026/27 From - Spending review Topic 1]]+Dataset[[#This Row],[2026/27 From - Spending review Topic 2]]+Dataset[[#This Row],[2026/27 From - Spending review Topic 3]]+Dataset[[#This Row],[2026/27 From - Spending review Topic 4]]+Dataset[[#This Row],[2026/27 From - Other reallocations]] -> 0 | CE47: =Dataset[[#This Row],[2024/25 To - Spending review Topic 1]]+Dataset[[#This Row],[2024/25 To - Spending review Topic 2]]+Dataset[[#This Row],[2024/25 To - Spending review Topic 3]]+Dataset[[#This Row],[2024/25 To - Spending review Topic 4]]+Dataset[[#This Row],[2024/25 To - Other reallocations]] -> 0 | CF47: =Dataset[[#This Row],[2025/26 To - Spending review Topic 1]]+Dataset[[#This Row],[2025/26 To - Spending review Topic 2]]+Dataset[[#This Row],[2025/26 To - Spending review Topic 3]]+Dataset[[#This Row],[2025/26 To - Spending review Topic 4]]+Dataset[[#This Row],[2025/26 To - Other reallocations]] -> 0 | CG47: =Dataset[[#This Row],[2026/27 To - Spending review Topic 1]]+Dataset[[#This Row],[2026/27 To - Spending review Topic 2]]+Dataset[[#This Row],[2026/27 To - Spending review Topic 3]]+Dataset[[#This Row],[2026/27 To - Spending review Topic 4]]+Dataset[[#This Row],[2026/27 To - Other reallocations]] -> 0 | CH47: =Dataset[[#This Row],[2024/25 Reduction]]+Dataset[[#This Row],[2024/25 From - Total]] -> 0 | CI47: =Dataset[[#This Row],[2025/26 Reduction]]+Dataset[[#This Row],[2025/26 From - Total]] -> 0 | CJ47: =Dataset[[#This Row],[2026/27 Reduction]]+Dataset[[#This Row],[2026/27 From - Total]] -> 0 | CK47: =Dataset[[#This Row],[2023/24 Reduction]] -> 0 | CL47: =SUM(Dataset[[#This Row],[2024/25 Reduction]],Dataset[[#This Row],[2024/25 From - Total]],Dataset[[#This Row],[2024/25 To - Total]]) -> 0 | CM47: =SUM(Dataset[[#This Row],[2025/26 Reduction]],Dataset[[#This Row],[2025/26 From - Total]],Dataset[[#This Row],[2025/26 To - Total]]) -> 0 | CN47: =SUM(Dataset[[#This Row],[2026/27 Reduction]],Dataset[[#This Row],[2026/27 From - Total]],Dataset[[#This Row],[2026/27 To - Total]]) -> 0 | CO47: =Dataset[[#This Row],[2023/24 Baseline]]+Dataset[[#This Row],[2023/24 Total change]] -> 0 | CP47: =Dataset[[#This Row],[2024/25 Baseline]]+Dataset[[#This Row],[2024/25 Total change]] -> 0 | CQ47: =Dataset[[#This Row],[2025/26 Baseline]]+Dataset[[#This Row],[2025/26 Total change]] -> 0 | CR47: =Dataset[[#This Row],[2026/27 Baseline]]+Dataset[[#This Row],[2026/27 Total change]] -> 0
A48: NAT|Employee social benefits | B48: 32|Social benefits | C48: 2024_25 | D48: MTEF2024 | E48: 32 | F48: 1 | G48: 1 | H48: 54210 | I48: 30 | J48: 32 | K48: 01 | L48: 01 | M48: 054210 | N48: 000030 | O48: 32|01|01 | P48: 01 | Q48: 02 | R48: 10 | S48: 52 | T48: 56 | U48: 01|02|10|52|56 | V48: National | W48: Forestry, Fisheries and the Environment | X48: Administration | Y48: Ministry | Z48: Employee social benefits | AA48: Current | AB48: Transfers and subsidies | AC48: Households | AD48: Social benefits | AE48: Social benefits | AF48: Economic development | AG48: Economic regulation and infrastructure | AH48: NAT | AI48: 0 | AJ48: 155 | AK48: 0 | AL48: 0 | AM48: 0 | AN48: 0 | AO48: 0 | AP48: 0 | AQ48: 0 | AR48: 0 | AS48: 0 | CB48: =Dataset[[#This Row],[2024/25 From - Spending review Topic 1]]+Dataset[[#This Row],[2024/25 From - Spending review Topic 2]]+Dataset[[#This Row],[2024/25 From - Spending review Topic 3]]+Dataset[[#This Row],[2024/25 From - Spending review Topic 4]]+Dataset[[#This Row],[2024/25 From - Other reallocations]] -> 0 | CC48: =Dataset[[#This Row],[2025/26 From - Spending review Topic 1]]+Dataset[[#This Row],[2025/26 From - Spending review Topic 2]]+Dataset[[#This Row],[2025/26 From - Spending review Topic 3]]+Dataset[[#This Row],[2025/26 From - Spending review Topic 4]]+Dataset[[#This Row],[2025/26 From - Other reallocations]] -> 0 | CD48: =Dataset[[#This Row],[2026/27 From - Spending review Topic 1]]+Dataset[[#This Row],[2026/27 From - Spending review Topic 2]]+Dataset[[#This Row],[2026/27 From - Spending review Topic 3]]+Dataset[[#This Row],[2026/27 From - Spending review Topic 4]]+Dataset[[#This Row],[2026/27 From - Other reallocations]] -> 0 | CE48: =Dataset[[#This Row],[2024/25 To - Spending review Topic 1]]+Dataset[[#This Row],[2024/25 To - Spending review Topic 2]]+Dataset[[#This Row],[2024/25 To - Spending review Topic 3]]+Dataset[[#This Row],[2024/25 To - Spending review Topic 4]]+Dataset[[#This Row],[2024/25 To - Other reallocations]] -> 0 | CF48: =Dataset[[#This Row],[2025/26 To - Spending review Topic 1]]+Dataset[[#This Row],[2025/26 To - Spending review Topic 2]]+Dataset[[#This Row],[2025/26 To - Spending review Topic 3]]+Dataset[[#This Row],[2025/26 To - Spending review Topic 4]]+Dataset[[#This Row],[2025/26 To - Other reallocations]] -> 0 | CG48: =Dataset[[#This Row],[2026/27 To - Spending review Topic 1]]+Dataset[[#This Row],[2026/27 To - Spending review Topic 2]]+Dataset[[#This Row],[2026/27 To - Spending review Topic 3]]+Dataset[[#This Row],[2026/27 To - Spending review Topic 4]]+Dataset[[#This Row],[2026/27 To - Other reallocations]] -> 0 | CH48: =Dataset[[#This Row],[2024/25 Reduction]]+Dataset[[#This Row],[2024/25 From - Total]] -> 0 | CI48: =Dataset[[#This Row],[2025/26 Reduction]]+Dataset[[#This Row],[2025/26 From - Total]] -> 0 | CJ48: =Dataset[[#This Row],[2026/27 Reduction]]+Dataset[[#This Row],[2026/27 From - Total]] -> 0 | CK48: =Dataset[[#This Row],[2023/24 Reduction]] -> 0 | CL48: =SUM(Dataset[[#This Row],[2024/25 Reduction]],Dataset[[#This Row],[2024/25 From - Total]],Dataset[[#This Row],[2024/25 To - Total]]) -> 0 | CM48: =SUM(Dataset[[#This Row],[2025/26 Reduction]],Dataset[[#This Row],[2025/26 From - Total]],Dataset[[#This Row],[2025/26 To - Total]]) -> 0 | CN48: =SUM(Dataset[[#This Row],[2026/27 Reduction]],Dataset[[#This Row],[2026/27 From - Total]],Dataset[[#This Row],[2026/27 To - Total]]) -> 0 | CO48: =Dataset[[#This Row],[2023/24 Baseline]]+Dataset[[#This Row],[2023/24 Total change]] -> 0 | CP48: =Dataset[[#This Row],[2024/25 Baseline]]+Dataset[[#This Row],[2024/25 Total change]] -> 0 | CQ48: =Dataset[[#This Row],[2025/26 Baseline]]+Dataset[[#This Row],[2025/26 Total change]] -> 0 | CR48: =Dataset[[#This Row],[2026/27 Baseline]]+Dataset[[#This Row],[2026/27 Total change]] -> 0
A49: NAT|other transfers to | B49: 32|Other transfers to households | C49: 2024_25 | D49: MTEF2024 | E49: 32 | F49: 1 | G49: 1 | H49: 54211 | I49: 31 | J49: 32 | K49: 01 | L49: 01 | M49: 054211 | N49: 000031 | O49: 32|01|01 | P49: 01 | Q49: 02 | R49: 10 | S49: 53 | T49: 57 | U49: 01|02|10|53|57 | V49: National | W49: Forestry, Fisheries and the Environment | X49: Administration | Y49: Ministry | Z49: other transfers to | AA49: Current | AB49: Transfers and subsidies | AC49: Households | AD49: Other transfers to households | AE49: Other transfers to households | AF49: Economic development | AG49: Economic regulation and infrastructure | AH49: NAT | AI49: 4352 | AJ49: 0 | AK49: 0 | AL49: 0 | AM49: 0 | AN49: 0 | AO49: 0 | AP49: 0 | AQ49: 0 | AR49: 0 | AS49: 0 | CB49: =Dataset[[#This Row],[2024/25 From - Spending review Topic 1]]+Dataset[[#This Row],[2024/25 From - Spending review Topic 2]]+Dataset[[#This Row],[2024/25 From - Spending review Topic 3]]+Dataset[[#This Row],[2024/25 From - Spending review Topic 4]]+Dataset[[#This Row],[2024/25 From - Other reallocations]] -> 0 | CC49: =Dataset[[#This Row],[2025/26 From - Spending review Topic 1]]+Dataset[[#This Row],[2025/26 From - Spending review Topic 2]]+Dataset[[#This Row],[2025/26 From - Spending review Topic 3]]+Dataset[[#This Row],[2025/26 From - Spending review Topic 4]]+Dataset[[#This Row],[2025/26 From - Other reallocations]] -> 0 | CD49: =Dataset[[#This Row],[2026/27 From - Spending review Topic 1]]+Dataset[[#This Row],[2026/27 From - Spending review Topic 2]]+Dataset[[#This Row],[2026/27 From - Spending review Topic 3]]+Dataset[[#This Row],[2026/27 From - Spending review Topic 4]]+Dataset[[#This Row],[2026/27 From - Other reallocations]] -> 0 | CE49: =Dataset[[#This Row],[2024/25 To - Spending review Topic 1]]+Dataset[[#This Row],[2024/25 To - Spending review Topic 2]]+Dataset[[#This Row],[2024/25 To - Spending review Topic 3]]+Dataset[[#This Row],[2024/25 To - Spending review Topic 4]]+Dataset[[#This Row],[2024/25 To - Other reallocations]] -> 0 | CF49: =Dataset[[#This Row],[2025/26 To - Spending review Topic 1]]+Dataset[[#This Row],[2025/26 To - Spending review Topic 2]]+Dataset[[#This Row],[2025/26 To - Spending review Topic 3]]+Dataset[[#This Row],[2025/26 To - Spending review Topic 4]]+Dataset[[#This Row],[2025/26 To - Other reallocations]] -> 0 | CG49: =Dataset[[#This Row],[2026/27 To - Spending review Topic 1]]+Dataset[[#This Row],[2026/27 To - Spending review Topic 2]]+Dataset[[#This Row],[2026/27 To - Spending review Topic 3]]+Dataset[[#This Row],[2026/27 To - Spending review Topic 4]]+Dataset[[#This Row],[2026/27 To - Other reallocations]] -> 0 | CH49: =Dataset[[#This Row],[2024/25 Reduction]]+Dataset[[#This Row],[2024/25 From - Total]] -> 0 | CI49: =Dataset[[#This Row],[2025/26 Reduction]]+Dataset[[#This Row],[2025/26 From - Total]] -> 0 | CJ49: =Dataset[[#This Row],[2026/27 Reduction]]+Dataset[[#This Row],[2026/27 From - Total]] -> 0 | CK49: =Dataset[[#This Row],[2023/24 Reduction]] -> 0 | CL49: =SUM(Dataset[[#This Row],[2024/25 Reduction]],Dataset[[#This Row],[2024/25 From - Total]],Dataset[[#This Row],[2024/25 To - Total]]) -> 0 | CM49: =SUM(Dataset[[#This Row],[2025/26 Reduction]],Dataset[[#This Row],[2025/26 From - Total]],Dataset[[#This Row],[2025/26 To - Total]]) -> 0 | CN49: =SUM(Dataset[[#This Row],[2026/27 Reduction]],Dataset[[#This Row],[2026/27 From - Total]],Dataset[[#This Row],[2026/27 To - Total]]) -> 0 | CO49: =Dataset[[#This Row],[2023/24 Baseline]]+Dataset[[#This Row],[2023/24 Total change]] -> 0 | CP49: =Dataset[[#This Row],[2024/25 Baseline]]+Dataset[[#This Row],[2024/25 Total change]] -> 0 | CQ49: =Dataset[[#This Row],[2025/26 Baseline]]+Dataset[[#This Row],[2025/26 Total change]] -> 0 | CR49: =Dataset[[#This Row],[2026/27 Baseline]]+Dataset[[#This Row],[2026/27 Total change]] -> 0
A50: NAT|Non-transfer item | B50: 32|Other machinery and equipment | C50: 2024_25 | D50: MTEF2024 | E50: 32 | F50: 1 | G50: 1 | H50: 54212 | I50: 32 | J50: 32 | K50: 01 | L50: 01 | M50: 054212 | N50: 000032 | O50: 32|01|01 | P50: 02 | Q50: 03 | R50: 12 | S50: 57 | T50: 61 | U50: 02|03|12|57|61 | V50: National | W50: Forestry, Fisheries and the Environment | X50: Administration | Y50: Ministry | Z50: Non-transfer item | AA50: Capital | AB50: Payments for capital assets | AC50: Machinery and equipment | AD50: Other machinery and equipment | AE50: Other machinery and equipment | AF50: Economic development | AG50: Economic regulation and infrastructure | AH50: NAT | AI50: 443 | AJ50: 152 | AK50: 0 | AL50: 0 | AM50: 0 | AN50: 0 | AO50: 0 | AP50: 0 | AQ50: 0 | AR50: 993 | AS50: 1038 | CB50: =Dataset[[#This Row],[2024/25 From - Spending review Topic 1]]+Dataset[[#This Row],[2024/25 From - Spending review Topic 2]]+Dataset[[#This Row],[2024/25 From - Spending review Topic 3]]+Dataset[[#This Row],[2024/25 From - Spending review Topic 4]]+Dataset[[#This Row],[2024/25 From - Other reallocations]] -> 0 | CC50: =Dataset[[#This Row],[2025/26 From - Spending review Topic 1]]+Dataset[[#This Row],[2025/26 From - Spending review Topic 2]]+Dataset[[#This Row],[2025/26 From - Spending review Topic 3]]+Dataset[[#This Row],[2025/26 From - Spending review Topic 4]]+Dataset[[#This Row],[2025/26 From - Other reallocations]] -> 0 | CD50: =Dataset[[#This Row],[2026/27 From - Spending review Topic 1]]+Dataset[[#This Row],[2026/27 From - Spending review Topic 2]]+Dataset[[#This Row],[2026/27 From - Spending review Topic 3]]+Dataset[[#This Row],[2026/27 From - Spending review Topic 4]]+Dataset[[#This Row],[2026/27 From - Other reallocations]] -> 0 | CE50: =Dataset[[#This Row],[2024/25 To - Spending review Topic 1]]+Dataset[[#This Row],[2024/25 To - Spending review Topic 2]]+Dataset[[#This Row],[2024/25 To - Spending review Topic 3]]+Dataset[[#This Row],[2024/25 To - Spending review Topic 4]]+Dataset[[#This Row],[2024/25 To - Other reallocations]] -> 0 | CF50: =Dataset[[#This Row],[2025/26 To - Spending review Topic 1]]+Dataset[[#This Row],[2025/26 To - Spending review Topic 2]]+Dataset[[#This Row],[2025/26 To - Spending review Topic 3]]+Dataset[[#This Row],[2025/26 To - Spending review Topic 4]]+Dataset[[#This Row],[2025/26 To - Other reallocations]] -> 0 | CG50: =Dataset[[#This Row],[2026/27 To - Spending review Topic 1]]+Dataset[[#This Row],[2026/27 To - Spending review Topic 2]]+Dataset[[#This Row],[2026/27 To - Spending review Topic 3]]+Dataset[[#This Row],[2026/27 To - Spending review Topic 4]]+Dataset[[#This Row],[2026/27 To - Other reallocations]] -> 0 | CH50: =Dataset[[#This Row],[2024/25 Reduction]]+Dataset[[#This Row],[2024/25 From - Total]] -> 0 | CI50: =Dataset[[#This Row],[2025/26 Reduction]]+Dataset[[#This Row],[2025/26 From - Total]] -> 0 | CJ50: =Dataset[[#This Row],[2026/27 Reduction]]+Dataset[[#This Row],[2026/27 From - Total]] -> 0 | CK50: =Dataset[[#This Row],[2023/24 Reduction]] -> 0 | CL50: =SUM(Dataset[[#This Row],[2024/25 Reduction]],Dataset[[#This Row],[2024/25 From - Total]],Dataset[[#This Row],[2024/25 To - Total]]) -> 0 | CM50: =SUM(Dataset[[#This Row],[2025/26 Reduction]],Dataset[[#This Row],[2025/26 From - Total]],Dataset[[#This Row],[2025/26 To - Total]]) -> 0 | CN50: =SUM(Dataset[[#This Row],[2026/27 Reduction]],Dataset[[#This Row],[2026/27 From - Total]],Dataset[[#This Row],[2026/27 To - Total]]) -> 0 | CO50: =Dataset[[#This Row],[2023/24 Baseline]]+Dataset[[#This Row],[2023/24 Total change]] -> 0 | CP50: =Dataset[[#This Row],[2024/25 Baseline]]+Dataset[[#This Row],[2024/25 Total change]] -> 0 | CQ50: =Dataset[[#This Row],[2025/26 Baseline]]+Dataset[[#This Row],[2025/26 Total change]] -> 993 | CR50: =Dataset[[#This Row],[2026/27 Baseline]]+Dataset[[#This Row],[2026/27 Total change]] -> 1038
A51: NAT|Thefts and losses | B51: 32|Payments for financial assets | C51: 2024_25 | D51: MTEF2024 | E51: 32 | F51: 1 | G51: 1 | H51: 54213 | I51: 33 | J51: 32 | K51: 01 | L51: 01 | M51: 054213 | N51: 000033 | O51: 32|01|01 | P51: 03 | Q51: 04 | R51: 18 | S51: 63 | T51: 67 | U51: 03|04|18|63|67 | V51: National | W51: Forestry, Fisheries and the Environment | X51: Administration | Y51: Ministry | Z51: Thefts and losses | AA51: Payments for financial assets | AB51: Payments for financial assets | AC51: Payments for financial assets | AD51: Payments for financial assets | AE51: Payments for financial assets | AF51: Economic development | AG51: Economic regulation and infrastructure | AH51: NAT | AI51: 0 | AJ51: 0 | AK51: 3 | AL51: 0 | AM51: 0 | AN51: 0 | AO51: 0 | AP51: 0 | AQ51: 0 | AR51: 0 | AS51: 0 | CB51: =Dataset[[#This Row],[2024/25 From - Spending review Topic 1]]+Dataset[[#This Row],[2024/25 From - Spending review Topic 2]]+Dataset[[#This Row],[2024/25 From - Spending review Topic 3]]+Dataset[[#This Row],[2024/25 From - Spending review Topic 4]]+Dataset[[#This Row],[2024/25 From - Other reallocations]] -> 0 | CC51: =Dataset[[#This Row],[2025/26 From - Spending review Topic 1]]+Dataset[[#This Row],[2025/26 From - Spending review Topic 2]]+Dataset[[#This Row],[2025/26 From - Spending review Topic 3]]+Dataset[[#This Row],[2025/26 From - Spending review Topic 4]]+Dataset[[#This Row],[2025/26 From - Other reallocations]] -> 0 | CD51: =Dataset[[#This Row],[2026/27 From - Spending review Topic 1]]+Dataset[[#This Row],[2026/27 From - Spending review Topic 2]]+Dataset[[#This Row],[2026/27 From - Spending review Topic 3]]+Dataset[[#This Row],[2026/27 From - Spending review Topic 4]]+Dataset[[#This Row],[2026/27 From - Other reallocations]] -> 0 | CE51: =Dataset[[#This Row],[2024/25 To - Spending review Topic 1]]+Dataset[[#This Row],[2024/25 To - Spending review Topic 2]]+Dataset[[#This Row],[2024/25 To - Spending review Topic 3]]+Dataset[[#This Row],[2024/25 To - Spending review Topic 4]]+Dataset[[#This Row],[2024/25 To - Other reallocations]] -> 0 | CF51: =Dataset[[#This Row],[2025/26 To - Spending review Topic 1]]+Dataset[[#This Row],[2025/26 To - Spending review Topic 2]]+Dataset[[#This Row],[2025/26 To - Spending review Topic 3]]+Dataset[[#This Row],[2025/26 To - Spending review Topic 4]]+Dataset[[#This Row],[2025/26 To - Other reallocations]] -> 0 | CG51: =Dataset[[#This Row],[2026/27 To - Spending review Topic 1]]+Dataset[[#This Row],[2026/27 To - Spending review Topic 2]]+Dataset[[#This Row],[2026/27 To - Spending review Topic 3]]+Dataset[[#This Row],[2026/27 To - Spending review Topic 4]]+Dataset[[#This Row],[2026/27 To - Other reallocations]] -> 0 | CH51: =Dataset[[#This Row],[2024/25 Reduction]]+Dataset[[#This Row],[2024/25 From - Total]] -> 0 | CI51: =Dataset[[#This Row],[2025/26 Reduction]]+Dataset[[#This Row],[2025/26 From - Total]] -> 0 | CJ51: =Dataset[[#This Row],[2026/27 Reduction]]+Dataset[[#This Row],[2026/27 From - Total]] -> 0 | CK51: =Dataset[[#This Row],[2023/24 Reduction]] -> 0 | CL51: =SUM(Dataset[[#This Row],[2024/25 Reduction]],Dataset[[#This Row],[2024/25 From - Total]],Dataset[[#This Row],[2024/25 To - Total]]) -> 0 | CM51: =SUM(Dataset[[#This Row],[2025/26 Reduction]],Dataset[[#This Row],[2025/26 From - Total]],Dataset[[#This Row],[2025/26 To - Total]]) -> 0 | CN51: =SUM(Dataset[[#This Row],[2026/27 Reduction]],Dataset[[#This Row],[2026/27 From - Total]],Dataset[[#This Row],[2026/27 To - Total]]) -> 0 | CO51: =Dataset[[#This Row],[2023/24 Baseline]]+Dataset[[#This Row],[2023/24 Total change]] -> 0 | CP51: =Dataset[[#This Row],[2024/25 Baseline]]+Dataset[[#This Row],[2024/25 Total change]] -> 0 | CQ51: =Dataset[[#This Row],[2025/26 Baseline]]+Dataset[[#This Row],[2025/26 Total change]] -> 0 | CR51: =Dataset[[#This Row],[2026/27 Baseline]]+Dataset[[#This Row],[2026/27 Total change]] -> 0
A52: NAT|Non-transfer item | B52: 32|Salaries and wages | C52: 2024_25 | D52: MTEF2024 | E52: 32 | F52: 1 | G52: 2 | H52: 54214 | I52: 34 | J52: 32 | K52: 01 | L52: 02 | M52: 054214 | N52: 000034 | O52: 32|01|02 | P52: 01 | Q52: 01 | R52: 01 | S52: 01 | T52: 01 | U52: 01|01|01|01|01 | V52: National | W52: Forestry, Fisheries and the Environment | X52: Administration | Y52: Departmental Management | Z52: Non-transfer item | AA52: Current | AB52: Current payments | AC52: Compensation of employees | AD52: Salaries and wages | AE52: Salaries and wages | AF52: Economic development | AG52: Economic regulation and infrastructure | AH52: NAT | AI52: 6777 | AJ52: 30195 | AK52: 32111 | AL52: 23599 | AM52: 23599 | AN52: 23599 | AO52: 0 | AP52: 23639 | AQ52: 24273 | AR52: 26130 | AS52: 27327 | CB52: =Dataset[[#This Row],[2024/25 From - Spending review Topic 1]]+Dataset[[#This Row],[2024/25 From - Spending review Topic 2]]+Dataset[[#This Row],[2024/25 From - Spending review Topic 3]]+Dataset[[#This Row],[2024/25 From - Spending review Topic 4]]+Dataset[[#This Row],[2024/25 From - Other reallocations]] -> 0 | CC52: =Dataset[[#This Row],[2025/26 From - Spending review Topic 1]]+Dataset[[#This Row],[2025/26 From - Spending review Topic 2]]+Dataset[[#This Row],[2025/26 From - Spending review Topic 3]]+Dataset[[#This Row],[2025/26 From - Spending review Topic 4]]+Dataset[[#This Row],[2025/26 From - Other reallocations]] -> 0 | CD52: =Dataset[[#This Row],[2026/27 From - Spending review Topic 1]]+Dataset[[#This Row],[2026/27 From - Spending review Topic 2]]+Dataset[[#This Row],[2026/27 From - Spending review Topic 3]]+Dataset[[#This Row],[2026/27 From - Spending review Topic 4]]+Dataset[[#This Row],[2026/27 From - Other reallocations]] -> 0 | CE52: =Dataset[[#This Row],[2024/25 To - Spending review Topic 1]]+Dataset[[#This Row],[2024/25 To - Spending review Topic 2]]+Dataset[[#This Row],[2024/25 To - Spending review Topic 3]]+Dataset[[#This Row],[2024/25 To - Spending review Topic 4]]+Dataset[[#This Row],[2024/25 To - Other reallocations]] -> 0 | CF52: =Dataset[[#This Row],[2025/26 To - Spending review Topic 1]]+Dataset[[#This Row],[2025/26 To - Spending review Topic 2]]+Dataset[[#This Row],[2025/26 To - Spending review Topic 3]]+Dataset[[#This Row],[2025/26 To - Spending review Topic 4]]+Dataset[[#This Row],[2025/26 To - Other reallocations]] -> 0 | CG52: =Dataset[[#This Row],[2026/27 To - Spending review Topic 1]]+Dataset[[#This Row],[2026/27 To - Spending review Topic 2]]+Dataset[[#This Row],[2026/27 To - Spending review Topic 3]]+Dataset[[#This Row],[2026/27 To - Spending review Topic 4]]+Dataset[[#This Row],[2026/27 To - Other reallocations]] -> 0 | CH52: =Dataset[[#This Row],[2024/25 Reduction]]+Dataset[[#This Row],[2024/25 From - Total]] -> 0 | CI52: =Dataset[[#This Row],[2025/26 Reduction]]+Dataset[[#This Row],[2025/26 From - Total]] -> 0 | CJ52: =Dataset[[#This Row],[2026/27 Reduction]]+Dataset[[#This Row],[2026/27 From - Total]] -> 0 | CK52: =Dataset[[#This Row],[2023/24 Reduction]] -> 0 | CL52: =SUM(Dataset[[#This Row],[2024/25 Reduction]],Dataset[[#This Row],[2024/25 From - Total]],Dataset[[#This Row],[2024/25 To - Total]]) -> 0 | CM52: =SUM(Dataset[[#This Row],[2025/26 Reduction]],Dataset[[#This Row],[2025/26 From - Total]],Dataset[[#This Row],[2025/26 To - Total]]) -> 0 | CN52: =SUM(Dataset[[#This Row],[2026/27 Reduction]],Dataset[[#This Row],[2026/27 From - Total]],Dataset[[#This Row],[2026/27 To - Total]]) -> 0 | CO52: =Dataset[[#This Row],[2023/24 Baseline]]+Dataset[[#This Row],[2023/24 Total change]] -> 23639 | CP52: =Dataset[[#This Row],[2024/25 Baseline]]+Dataset[[#This Row],[2024/25 Total change]] -> 24273 | CQ52: =Dataset[[#This Row],[2025/26 Baseline]]+Dataset[[#This Row],[2025/26 Total change]] -> 26130 | CR52: =Dataset[[#This Row],[2026/27 Baseline]]+Dataset[[#This Row],[2026/27 Total change]] -> 27327
A53: NAT|Non-transfer item | B53: 32|Social contributions | C53: 2024_25 | D53: MTEF2024 | E53: 32 | F53: 1 | G53: 2 | H53: 54215 | I53: 35 | J53: 32 | K53: 01 | L53: 02 | M53: 054215 | N53: 000035 | O53: 32|01|02 | P53: 01 | Q53: 01 | R53: 01 | S53: 02 | T53: 02 | U53: 01|01|01|02|02 | V53: National | W53: Forestry, Fisheries and the Environment | X53: Administration | Y53: Departmental Management | Z53: Non-transfer item | AA53: Current | AB53: Current payments | AC53: Compensation of employees | AD53: Social contributions | AE53: Social contributions | AF53: Economic development | AG53: Economic regulation and infrastructure | AH53: NAT | AI53: 452 | AJ53: 5844 | AK53: 4117 | AL53: 14866 | AM53: 14866 | AN53: 14866 | AO53: 0 | AP53: 9469 | AQ53: 9886 | AR53: 10320 | AS53: 10793 | CB53: =Dataset[[#This Row],[2024/25 From - Spending review Topic 1]]+Dataset[[#This Row],[2024/25 From - Spending review Topic 2]]+Dataset[[#This Row],[2024/25 From - Spending review Topic 3]]+Dataset[[#This Row],[2024/25 From - Spending review Topic 4]]+Dataset[[#This Row],[2024/25 From - Other reallocations]] -> 0 | CC53: =Dataset[[#This Row],[2025/26 From - Spending review Topic 1]]+Dataset[[#This Row],[2025/26 From - Spending review Topic 2]]+Dataset[[#This Row],[2025/26 From - Spending review Topic 3]]+Dataset[[#This Row],[2025/26 From - Spending review Topic 4]]+Dataset[[#This Row],[2025/26 From - Other reallocations]] -> 0 | CD53: =Dataset[[#This Row],[2026/27 From - Spending review Topic 1]]+Dataset[[#This Row],[2026/27 From - Spending review Topic 2]]+Dataset[[#This Row],[2026/27 From - Spending review Topic 3]]+Dataset[[#This Row],[2026/27 From - Spending review Topic 4]]+Dataset[[#This Row],[2026/27 From - Other reallocations]] -> 0 | CE53: =Dataset[[#This Row],[2024/25 To - Spending review Topic 1]]+Dataset[[#This Row],[2024/25 To - Spending review Topic 2]]+Dataset[[#This Row],[2024/25 To - Spending review Topic 3]]+Dataset[[#This Row],[2024/25 To - Spending review Topic 4]]+Dataset[[#This Row],[2024/25 To - Other reallocations]] -> 0 | CF53: =Dataset[[#This Row],[2025/26 To - Spending review Topic 1]]+Dataset[[#This Row],[2025/26 To - Spending review Topic 2]]+Dataset[[#This Row],[2025/26 To - Spending review Topic 3]]+Dataset[[#This Row],[2025/26 To - Spending review Topic 4]]+Dataset[[#This Row],[2025/26 To - Other reallocations]] -> 0 | CG53: =Dataset[[#This Row],[2026/27 To - Spending review Topic 1]]+Dataset[[#This Row],[2026/27 To - Spending review Topic 2]]+Dataset[[#This Row],[2026/27 To - Spending review Topic 3]]+Dataset[[#This Row],[2026/27 To - Spending review Topic 4]]+Dataset[[#This Row],[2026/27 To - Other reallocations]] -> 0 | CH53: =Dataset[[#This Row],[2024/25 Reduction]]+Dataset[[#This Row],[2024/25 From - Total]] -> 0 | CI53: =Dataset[[#This Row],[2025/26 Reduction]]+Dataset[[#This Row],[2025/26 From - Total]] -> 0 | CJ53: =Dataset[[#This Row],[2026/27 Reduction]]+Dataset[[#This Row],[2026/27 From - Total]] -> 0 | CK53: =Dataset[[#This Row],[2023/24 Reduction]] -> 0 | CL53: =SUM(Dataset[[#This Row],[2024/25 Reduction]],Dataset[[#This Row],[2024/25 From - Total]],Dataset[[#This Row],[2024/25 To - Total]]) -> 0 | CM53: =SUM(Dataset[[#This Row],[2025/26 Reduction]],Dataset[[#This Row],[2025/26 From - Total]],Dataset[[#This Row],[2025/26 To - Total]]) -> 0 | CN53: =SUM(Dataset[[#This Row],[2026/27 Reduction]],Dataset[[#This Row],[2026/27 From - Total]],Dataset[[#This Row],[2026/27 To - Total]]) -> 0 | CO53: =Dataset[[#This Row],[2023/24 Baseline]]+Dataset[[#This Row],[2023/24 Total change]] -> 9469 | CP53: =Dataset[[#This Row],[2024/25 Baseline]]+Dataset[[#This Row],[2024/25 Total change]] -> 9886 | CQ53: =Dataset[[#This Row],[2025/26 Baseline]]+Dataset[[#This Row],[2025/26 Total change]] -> 10320 | CR53: =Dataset[[#This Row],[2026/27 Baseline]]+Dataset[[#This Row],[2026/27 Total change]] -> 10793
A54: NAT|Non-transfer item | B54: 32|Administrative fees | C54: 2024_25 | D54: MTEF2024 | E54: 32 | F54: 1 | G54: 2 | H54: 54216 | I54: 36 | J54: 32 | K54: 01 | L54: 02 | M54: 054216 | N54: 000036 | O54: 32|01|02 | P54: 01 | Q54: 01 | R54: 02 | S54: 03 | T54: 03 | U54: 01|01|02|03|03 | V54: National | W54: Forestry, Fisheries and the Environment | X54: Administration | Y54: Departmental Management | Z54: Non-transfer item | AA54: Current | AB54: Current payments | AC54: Goods and services | AD54: Administrative fees | AE54: Administrative fees | AF54: Economic development | AG54: Economic regulation and infrastructure | AH54: NAT | AI54: 0 | AJ54: 0 | AK54: 0 | AL54: 4 | AM54: 4 | AN54: 4 | AO54: 0 | AP54: 173 | AQ54: 14 | AR54: 15 | AS54: 16 | CB54: =Dataset[[#This Row],[2024/25 From - Spending review Topic 1]]+Dataset[[#This Row],[2024/25 From - Spending review Topic 2]]+Dataset[[#This Row],[2024/25 From - Spending review Topic 3]]+Dataset[[#This Row],[2024/25 From - Spending review Topic 4]]+Dataset[[#This Row],[2024/25 From - Other reallocations]] -> 0 | CC54: =Dataset[[#This Row],[2025/26 From - Spending review Topic 1]]+Dataset[[#This Row],[2025/26 From - Spending review Topic 2]]+Dataset[[#This Row],[2025/26 From - Spending review Topic 3]]+Dataset[[#This Row],[2025/26 From - Spending review Topic 4]]+Dataset[[#This Row],[2025/26 From - Other reallocations]] -> 0 | CD54: =Dataset[[#This Row],[2026/27 From - Spending review Topic 1]]+Dataset[[#This Row],[2026/27 From - Spending review Topic 2]]+Dataset[[#This Row],[2026/27 From - Spending review Topic 3]]+Dataset[[#This Row],[2026/27 From - Spending review Topic 4]]+Dataset[[#This Row],[2026/27 From - Other reallocations]] -> 0 | CE54: =Dataset[[#This Row],[2024/25 To - Spending review Topic 1]]+Dataset[[#This Row],[2024/25 To - Spending review Topic 2]]+Dataset[[#This Row],[2024/25 To - Spending review Topic 3]]+Dataset[[#This Row],[2024/25 To - Spending review Topic 4]]+Dataset[[#This Row],[2024/25 To - Other reallocations]] -> 0 | CF54: =Dataset[[#This Row],[2025/26 To - Spending review Topic 1]]+Dataset[[#This Row],[2025/26 To - Spending review Topic 2]]+Dataset[[#This Row],[2025/26 To - Spending review Topic 3]]+Dataset[[#This Row],[2025/26 To - Spending review Topic 4]]+Dataset[[#This Row],[2025/26 To - Other reallocations]] -> 0 | CG54: =Dataset[[#This Row],[2026/27 To - Spending review Topic 1]]+Dataset[[#This Row],[2026/27 To - Spending review Topic 2]]+Dataset[[#This Row],[2026/27 To - Spending review Topic 3]]+Dataset[[#This Row],[2026/27 To - Spending review Topic 4]]+Dataset[[#This Row],[2026/27 To - Other reallocations]] -> 0 | CH54: =Dataset[[#This Row],[2024/25 Reduction]]+Dataset[[#This Row],[2024/25 From - Total]] -> 0 | CI54: =Dataset[[#This Row],[2025/26 Reduction]]+Dataset[[#This Row],[2025/26 From - Total]] -> 0 | CJ54: =Dataset[[#This Row],[2026/27 Reduction]]+Dataset[[#This Row],[2026/27 From - Total]] -> 0 | CK54: =Dataset[[#This Row],[2023/24 Reduction]] -> 0 | CL54: =SUM(Dataset[[#This Row],[2024/25 Reduction]],Dataset[[#This Row],[2024/25 From - Total]],Dataset[[#This Row],[2024/25 To - Total]]) -> 0 | CM54: =SUM(Dataset[[#This Row],[2025/26 Reduction]],Dataset[[#This Row],[2025/26 From - Total]],Dataset[[#This Row],[2025/26 To - Total]]) -> 0 | CN54: =SUM(Dataset[[#This Row],[2026/27 Reduction]],Dataset[[#This Row],[2026/27 From - Total]],Dataset[[#This Row],[2026/27 To - Total]]) -> 0 | CO54: =Dataset[[#This Row],[2023/24 Baseline]]+Dataset[[#This Row],[2023/24 Total change]] -> 173 | CP54: =Dataset[[#This Row],[2024/25 Baseline]]+Dataset[[#This Row],[2024/25 Total change]] -> 14 | CQ54: =Dataset[[#This Row],[2025/26 Baseline]]+Dataset[[#This Row],[2025/26 Total change]] -> 15 | CR54: =Dataset[[#This Row],[2026/27 Baseline]]+Dataset[[#This Row],[2026/27 Total change]] -> 16
A55: NAT|Non-transfer item | B55: 32|Advertising | C55: 2024_25 | D55: MTEF2024 | E55: 32 | F55: 1 | G55: 2 | H55: 54217 | I55: 37 | J55: 32 | K55: 01 | L55: 02 | M55: 054217 | N55: 000037 | O55: 32|01|02 | P55: 01 | Q55: 01 | R55: 02 | S55: 04 | T55: 04 | U55: 01|01|02|04|04 | V55: National | W55: Forestry, Fisheries and the Environment | X55: Administration | Y55: Departmental Management | Z55: Non-transfer item | AA55: Current | AB55: Current payments | AC55: Goods and services | AD55: Advertising | AE55: Advertising | AF55: Economic development | AG55: Economic regulation and infrastructure | AH55: NAT | AI55: 1 | AJ55: 3 | AK55: 306 | AL55: 39 | AM55: 39 | AN55: 39 | AO55: 0 | AP55: 250 | AQ55: 668 | AR55: 698 | AS55: 730 | CB55: =Dataset[[#This Row],[2024/25 From - Spending review Topic 1]]+Dataset[[#This Row],[2024/25 From - Spending review Topic 2]]+Dataset[[#This Row],[2024/25 From - Spending review Topic 3]]+Dataset[[#This Row],[2024/25 From - Spending review Topic 4]]+Dataset[[#This Row],[2024/25 From - Other reallocations]] -> 0 | CC55: =Dataset[[#This Row],[2025/26 From - Spending review Topic 1]]+Dataset[[#This Row],[2025/26 From - Spending review Topic 2]]+Dataset[[#This Row],[2025/26 From - Spending review Topic 3]]+Dataset[[#This Row],[2025/26 From - Spending review Topic 4]]+Dataset[[#This Row],[2025/26 From - Other reallocations]] -> 0 | CD55: =Dataset[[#This Row],[2026/27 From - Spending review Topic 1]]+Dataset[[#This Row],[2026/27 From - Spending review Topic 2]]+Dataset[[#This Row],[2026/27 From - Spending review Topic 3]]+Dataset[[#This Row],[2026/27 From - Spending review Topic 4]]+Dataset[[#This Row],[2026/27 From - Other reallocations]] -> 0 | CE55: =Dataset[[#This Row],[2024/25 To - Spending review Topic 1]]+Dataset[[#This Row],[2024/25 To - Spending review Topic 2]]+Dataset[[#This Row],[2024/25 To - Spending review Topic 3]]+Dataset[[#This Row],[2024/25 To - Spending review Topic 4]]+Dataset[[#This Row],[2024/25 To - Other reallocations]] -> 0 | CF55: =Dataset[[#This Row],[2025/26 To - Spending review Topic 1]]+Dataset[[#This Row],[2025/26 To - Spending review Topic 2]]+Dataset[[#This Row],[2025/26 To - Spending review Topic 3]]+Dataset[[#This Row],[2025/26 To - Spending review Topic 4]]+Dataset[[#This Row],[2025/26 To - Other reallocations]] -> 0 | CG55: =Dataset[[#This Row],[2026/27 To - Spending review Topic 1]]+Dataset[[#This Row],[2026/27 To - Spending review Topic 2]]+Dataset[[#This Row],[2026/27 To - Spending review Topic 3]]+Dataset[[#This Row],[2026/27 To - Spending review Topic 4]]+Dataset[[#This Row],[2026/27 To - Other reallocations]] -> 0 | CH55: =Dataset[[#This Row],[2024/25 Reduction]]+Dataset[[#This Row],[2024/25 From - Total]] -> 0 | CI55: =Dataset[[#This Row],[2025/26 Reduction]]+Dataset[[#This Row],[2025/26 From - Total]] -> 0 | CJ55: =Dataset[[#This Row],[2026/27 Reduction]]+Dataset[[#This Row],[2026/27 From - Total]] -> 0 | CK55: =Dataset[[#This Row],[2023/24 Reduction]] -> 0 | CL55: =SUM(Dataset[[#This Row],[2024/25 Reduction]],Dataset[[#This Row],[2024/25 From - Total]],Dataset[[#This Row],[2024/25 To - Total]]) -> 0 | CM55: =SUM(Dataset[[#This Row],[2025/26 Reduction]],Dataset[[#This Row],[2025/26 From - Total]],Dataset[[#This Row],[2025/26 To - Total]]) -> 0 | CN55: =SUM(Dataset[[#This Row],[2026/27 Reduction]],Dataset[[#This Row],[2026/27 From - Total]],Dataset[[#This Row],[2026/27 To - Total]]) -> 0 | CO55: =Dataset[[#This Row],[2023/24 Baseline]]+Dataset[[#This Row],[2023/24 Total change]] -> 250 | CP55: =Dataset[[#This Row],[2024/25 Baseline]]+Dataset[[#This Row],[2024/25 Total change]] -> 668 | CQ55: =Dataset[[#This Row],[2025/26 Baseline]]+Dataset[[#This Row],[2025/26 Total change]] -> 698 | CR55: =Dataset[[#This Row],[2026/27 Baseline]]+Dataset[[#This Row],[2026/27 Total change]] -> 730
A56: NAT|Non-transfer item | B56: 32|Minor assets | C56: 2024_25 | D56: MTEF2024 | E56: 32 | F56: 1 | G56: 2 | H56: 54218 | I56: 38 | J56: 32 | K56: 01 | L56: 02 | M56: 054218 | N56: 000038 | O56: 32|01|02 | P56: 01 | Q56: 01 | R56: 02 | S56: 05 | T56: 05 | U56: 01|01|02|05|05 | V56: National | W56: Forestry, Fisheries and the Environment | X56: Administration | Y56: Departmental Management | Z56: Non-transfer item | AA56: Current | AB56: Current payments | AC56: Goods and services | AD56: Minor assets | AE56: Minor assets | AF56: Economic development | AG56: Economic regulation and infrastructure | AH56: NAT | AI56: 5 | AJ56: 28 | AK56: 22 | AL56: 160 | AM56: 100 | AN56: 100 | AO56: 0 | AP56: 670 | AQ56: 167 | AR56: 175 | AS56: 183 | CB56: =Dataset[[#This Row],[2024/25 From - Spending review Topic 1]]+Dataset[[#This Row],[2024/25 From - Spending review Topic 2]]+Dataset[[#This Row],[2024/25 From - Spending review Topic 3]]+Dataset[[#This Row],[2024/25 From - Spending review Topic 4]]+Dataset[[#This Row],[2024/25 From - Other reallocations]] -> 0 | CC56: =Dataset[[#This Row],[2025/26 From - Spending review Topic 1]]+Dataset[[#This Row],[2025/26 From - Spending review Topic 2]]+Dataset[[#This Row],[2025/26 From - Spending review Topic 3]]+Dataset[[#This Row],[2025/26 From - Spending review Topic 4]]+Dataset[[#This Row],[2025/26 From - Other reallocations]] -> 0 | CD56: =Dataset[[#This Row],[2026/27 From - Spending review Topic 1]]+Dataset[[#This Row],[2026/27 From - Spending review Topic 2]]+Dataset[[#This Row],[2026/27 From - Spending review Topic 3]]+Dataset[[#This Row],[2026/27 From - Spending review Topic 4]]+Dataset[[#This Row],[2026/27 From - Other reallocations]] -> 0 | CE56: =Dataset[[#This Row],[2024/25 To - Spending review Topic 1]]+Dataset[[#This Row],[2024/25 To - Spending review Topic 2]]+Dataset[[#This Row],[2024/25 To - Spending review Topic 3]]+Dataset[[#This Row],[2024/25 To - Spending review Topic 4]]+Dataset[[#This Row],[2024/25 To - Other reallocations]] -> 0 | CF56: =Dataset[[#This Row],[2025/26 To - Spending review Topic 1]]+Dataset[[#This Row],[2025/26 To - Spending review Topic 2]]+Dataset[[#This Row],[2025/26 To - Spending review Topic 3]]+Dataset[[#This Row],[2025/26 To - Spending review Topic 4]]+Dataset[[#This Row],[2025/26 To - Other reallocations]] -> 0 | CG56: =Dataset[[#This Row],[2026/27 To - Spending review Topic 1]]+Dataset[[#This Row],[2026/27 To - Spending review Topic 2]]+Dataset[[#This Row],[2026/27 To - Spending review Topic 3]]+Dataset[[#This Row],[2026/27 To - Spending review Topic 4]]+Dataset[[#This Row],[2026/27 To - Other reallocations]] -> 0 | CH56: =Dataset[[#This Row],[2024/25 Reduction]]+Dataset[[#This Row],[2024/25 From - Total]] -> 0 | CI56: =Dataset[[#This Row],[2025/26 Reduction]]+Dataset[[#This Row],[2025/26 From - Total]] -> 0 | CJ56: =Dataset[[#This Row],[2026/27 Reduction]]+Dataset[[#This Row],[2026/27 From - Total]] -> 0 | CK56: =Dataset[[#This Row],[2023/24 Reduction]] -> 0 | CL56: =SUM(Dataset[[#This Row],[2024/25 Reduction]],Dataset[[#This Row],[2024/25 From - Total]],Dataset[[#This Row],[2024/25 To - Total]]) -> 0 | CM56: =SUM(Dataset[[#This Row],[2025/26 Reduction]],Dataset[[#This Row],[2025/26 From - Total]],Dataset[[#This Row],[2025/26 To - Total]]) -> 0 | CN56: =SUM(Dataset[[#This Row],[2026/27 Reduction]],Dataset[[#This Row],[2026/27 From - Total]],Dataset[[#This Row],[2026/27 To - Total]]) -> 0 | CO56: =Dataset[[#This Row],[2023/24 Baseline]]+Dataset[[#This Row],[2023/24 Total change]] -> 670 | CP56: =Dataset[[#This Row],[2024/25 Baseline]]+Dataset[[#This Row],[2024/25 Total change]] -> 167 | CQ56: =Dataset[[#This Row],[2025/26 Baseline]]+Dataset[[#This Row],[2025/26 Total change]] -> 175 | CR56: =Dataset[[#This Row],[2026/27 Baseline]]+Dataset[[#This Row],[2026/27 Total change]] -> 183
A57: NAT|Non-transfer item | B57: 32|Audit costs: External | C57: 2024_25 | D57: MTEF2024 | E57: 32 | F57: 1 | G57: 2 | H57: 54219 | I57: 39 | J57: 32 | K57: 01 | L57: 02 | M57: 054219 | N57: 000039 | O57: 32|01|02 | P57: 01 | Q57: 01 | R57: 02 | S57: 06 | T57: 06 | U57: 01|01|02|06|06 | V57: National | W57: Forestry, Fisheries and the Environment | X57: Administration | Y57: Departmental Management | Z57: Non-transfer item | AA57: Current | AB57: Current payments | AC57: Goods and services | AD57: Audit costs: External | AE57: Audit costs: External | AF57: Economic development | AG57: Economic regulation and infrastructure | AH57: NAT | AI57: 1551 | AJ57: 0 | AK57: 593 | AL57: 3600 | AM57: 4294 | AN57: 4294 | AO57: 0 | AP57: 9077 | AQ57: 2081 | AR57: 2174 | AS57: 2274 | CB57: =Dataset[[#This Row],[2024/25 From - Spending review Topic 1]]+Dataset[[#This Row],[2024/25 From - Spending review Topic 2]]+Dataset[[#This Row],[2024/25 From - Spending review Topic 3]]+Dataset[[#This Row],[2024/25 From - Spending review Topic 4]]+Dataset[[#This Row],[2024/25 From - Other reallocations]] -> 0 | CC57: =Dataset[[#This Row],[2025/26 From - Spending review Topic 1]]+Dataset[[#This Row],[2025/26 From - Spending review Topic 2]]+Dataset[[#This Row],[2025/26 From - Spending review Topic 3]]+Dataset[[#This Row],[2025/26 From - Spending review Topic 4]]+Dataset[[#This Row],[2025/26 From - Other reallocations]] -> 0 | CD57: =Dataset[[#This Row],[2026/27 From - Spending review Topic 1]]+Dataset[[#This Row],[2026/27 From - Spending review Topic 2]]+Dataset[[#This Row],[2026/27 From - Spending review Topic 3]]+Dataset[[#This Row],[2026/27 From - Spending review Topic 4]]+Dataset[[#This Row],[2026/27 From - Other reallocations]] -> 0 | CE57: =Dataset[[#This Row],[2024/25 To - Spending review Topic 1]]+Dataset[[#This Row],[2024/25 To - Spending review Topic 2]]+Dataset[[#This Row],[2024/25 To - Spending review Topic 3]]+Dataset[[#This Row],[2024/25 To - Spending review Topic 4]]+Dataset[[#This Row],[2024/25 To - Other reallocations]] -> 0 | CF57: =Dataset[[#This Row],[2025/26 To - Spending review Topic 1]]+Dataset[[#This Row],[2025/26 To - Spending review Topic 2]]+Dataset[[#This Row],[2025/26 To - Spending review Topic 3]]+Dataset[[#This Row],[2025/26 To - Spending review Topic 4]]+Dataset[[#This Row],[2025/26 To - Other reallocations]] -> 0 | CG57: =Dataset[[#This Row],[2026/27 To - Spending review Topic 1]]+Dataset[[#This Row],[2026/27 To - Spending review Topic 2]]+Dataset[[#This Row],[2026/27 To - Spending review Topic 3]]+Dataset[[#This Row],[2026/27 To - Spending review Topic 4]]+Dataset[[#This Row],[2026/27 To - Other reallocations]] -> 0 | CH57: =Dataset[[#This Row],[2024/25 Reduction]]+Dataset[[#This Row],[2024/25 From - Total]] -> 0 | CI57: =Dataset[[#This Row],[2025/26 Reduction]]+Dataset[[#This Row],[2025/26 From - Total]] -> 0 | CJ57: =Dataset[[#This Row],[2026/27 Reduction]]+Dataset[[#This Row],[2026/27 From - Total]] -> 0 | CK57: =Dataset[[#This Row],[2023/24 Reduction]] -> 0 | CL57: =SUM(Dataset[[#This Row],[2024/25 Reduction]],Dataset[[#This Row],[2024/25 From - Total]],Dataset[[#This Row],[2024/25 To - Total]]) -> 0 | CM57: =SUM(Dataset[[#This Row],[2025/26 Reduction]],Dataset[[#This Row],[2025/26 From - Total]],Dataset[[#This Row],[2025/26 To - Total]]) -> 0 | CN57: =SUM(Dataset[[#This Row],[2026/27 Reduction]],Dataset[[#This Row],[2026/27 From - Total]],Dataset[[#This Row],[2026/27 To - Total]]) -> 0 | CO57: =Dataset[[#This Row],[2023/24 Baseline]]+Dataset[[#This Row],[2023/24 Total change]] -> 9077 | CP57: =Dataset[[#This Row],[2024/25 Baseline]]+Dataset[[#This Row],[2024/25 Total change]] -> 2081 | CQ57: =Dataset[[#This Row],[2025/26 Baseline]]+Dataset[[#This Row],[2025/26 Total change]] -> 2174 | CR57: =Dataset[[#This Row],[2026/27 Baseline]]+Dataset[[#This Row],[2026/27 Total change]] -> 2274
A58: NAT|Non-transfer item | B58: 32|Bursaries: Employees | C58: 2024_25 | D58: MTEF2024 | E58: 32 | F58: 1 | G58: 2 | H58: 54220 | I58: 40 | J58: 32 | K58: 01 | L58: 02 | M58: 054220 | N58: 000040 | O58: 32|01|02 | P58: 01 | Q58: 01 | R58: 02 | S58: 07 | T58: 07 | U58: 01|01|02|07|07 | V58: National | W58: Forestry, Fisheries and the Environment | X58: Administration | Y58: Departmental Management | Z58: Non-transfer item | AA58: Current | AB58: Current payments | AC58: Goods and services | AD58: Bursaries: Employees | AE58: Bursaries: Employees | AF58: Economic development | AG58: Economic regulation and infrastructure | AH58: NAT | AI58: 0 | AJ58: 11 | AK58: 0 | AL58: 500 | AM58: 400 | AN58: 400 | AO58: 0 | AP58: 100 | AQ58: 46 | AR58: 48 | AS58: 50 | CB58: =Dataset[[#This Row],[2024/25 From - Spending review Topic 1]]+Dataset[[#This Row],[2024/25 From - Spending review Topic 2]]+Dataset[[#This Row],[2024/25 From - Spending review Topic 3]]+Dataset[[#This Row],[2024/25 From - Spending review Topic 4]]+Dataset[[#This Row],[2024/25 From - Other reallocations]] -> 0 | CC58: =Dataset[[#This Row],[2025/26 From - Spending review Topic 1]]+Dataset[[#This Row],[2025/26 From - Spending review Topic 2]]+Dataset[[#This Row],[2025/26 From - Spending review Topic 3]]+Dataset[[#This Row],[2025/26 From - Spending review Topic 4]]+Dataset[[#This Row],[2025/26 From - Other reallocations]] -> 0 | CD58: =Dataset[[#This Row],[2026/27 From - Spending review Topic 1]]+Dataset[[#This Row],[2026/27 From - Spending review Topic 2]]+Dataset[[#This Row],[2026/27 From - Spending review Topic 3]]+Dataset[[#This Row],[2026/27 From - Spending review Topic 4]]+Dataset[[#This Row],[2026/27 From - Other reallocations]] -> 0 | CE58: =Dataset[[#This Row],[2024/25 To - Spending review Topic 1]]+Dataset[[#This Row],[2024/25 To - Spending review Topic 2]]+Dataset[[#This Row],[2024/25 To - Spending review Topic 3]]+Dataset[[#This Row],[2024/25 To - Spending review Topic 4]]+Dataset[[#This Row],[2024/25 To - Other reallocations]] -> 0 | CF58: =Dataset[[#This Row],[2025/26 To - Spending review Topic 1]]+Dataset[[#This Row],[2025/26 To - Spending review Topic 2]]+Dataset[[#This Row],[2025/26 To - Spending review Topic 3]]+Dataset[[#This Row],[2025/26 To - Spending review Topic 4]]+Dataset[[#This Row],[2025/26 To - Other reallocations]] -> 0 | CG58: =Dataset[[#This Row],[2026/27 To - Spending review Topic 1]]+Dataset[[#This Row],[2026/27 To - Spending review Topic 2]]+Dataset[[#This Row],[2026/27 To - Spending review Topic 3]]+Dataset[[#This Row],[2026/27 To - Spending review Topic 4]]+Dataset[[#This Row],[2026/27 To - Other reallocations]] -> 0 | CH58: =Dataset[[#This Row],[2024/25 Reduction]]+Dataset[[#This Row],[2024/25 From - Total]] -> 0 | CI58: =Dataset[[#This Row],[2025/26 Reduction]]+Dataset[[#This Row],[2025/26 From - Total]] -> 0 | CJ58: =Dataset[[#This Row],[2026/27 Reduction]]+Dataset[[#This Row],[2026/27 From - Total]] -> 0 | CK58: =Dataset[[#This Row],[2023/24 Reduction]] -> 0 | CL58: =SUM(Dataset[[#This Row],[2024/25 Reduction]],Dataset[[#This Row],[2024/25 From - Total]],Dataset[[#This Row],[2024/25 To - Total]]) -> 0 | CM58: =SUM(Dataset[[#This Row],[2025/26 Reduction]],Dataset[[#This Row],[2025/26 From - Total]],Dataset[[#This Row],[2025/26 To - Total]]) -> 0 | CN58: =SUM(Dataset[[#This Row],[2026/27 Reduction]],Dataset[[#This Row],[2026/27 From - Total]],Dataset[[#This Row],[2026/27 To - Total]]) -> 0 | CO58: =Dataset[[#This Row],[2023/24 Baseline]]+Dataset[[#This Row],[2023/24 Total change]] -> 100 | CP58: =Dataset[[#This Row],[2024/25 Baseline]]+Dataset[[#This Row],[2024/25 Total change]] -> 46 | CQ58: =Dataset[[#This Row],[2025/26 Baseline]]+Dataset[[#This Row],[2025/26 Total change]] -> 48 | CR58: =Dataset[[#This Row],[2026/27 Baseline]]+Dataset[[#This Row],[2026/27 Total change]] -> 50
A59: NAT|Non-transfer item | B59: 32|Catering: Departmental activities | C59: 2024_25 | D59: MTEF2024 | E59: 32 | F59: 1 | G59: 2 | H59: 54221 | I59: 41 | J59: 32 | K59: 01 | L59: 02 | M59: 054221 | N59: 000041 | O59: 32|01|02 | P59: 01 | Q59: 01 | R59: 02 | S59: 08 | T59: 08 | U59: 01|01|02|08|08 | V59: National | W59: Forestry, Fisheries and the Environment | X59: Administration | Y59: Departmental Management | Z59: Non-transfer item | AA59: Current | AB59: Current payments | AC59: Goods and services | AD59: Catering: Departmental activities | AE59: Catering: Departmental activities | AF59: Economic development | AG59: Economic regulation and infrastructure | AH59: NAT | AI59: 213 | AJ59: 1333 | AK59: 131 | AL59: 796 | AM59: 696 | AN59: 696 | AO59: 0 | AP59: 420 | AQ59: 877 | AR59: 916 | AS59: 958 | CB59: =Dataset[[#This Row],[2024/25 From - Spending review Topic 1]]+Dataset[[#This Row],[2024/25 From - Spending review Topic 2]]+Dataset[[#This Row],[2024/25 From - Spending review Topic 3]]+Dataset[[#This Row],[2024/25 From - Spending review Topic 4]]+Dataset[[#This Row],[2024/25 From - Other reallocations]] -> 0 | CC59: =Dataset[[#This Row],[2025/26 From - Spending review Topic 1]]+Dataset[[#This Row],[2025/26 From - Spending review Topic 2]]+Dataset[[#This Row],[2025/26 From - Spending review Topic 3]]+Dataset[[#This Row],[2025/26 From - Spending review Topic 4]]+Dataset[[#This Row],[2025/26 From - Other reallocations]] -> 0 | CD59: =Dataset[[#This Row],[2026/27 From - Spending review Topic 1]]+Dataset[[#This Row],[2026/27 From - Spending review Topic 2]]+Dataset[[#This Row],[2026/27 From - Spending review Topic 3]]+Dataset[[#This Row],[2026/27 From - Spending review Topic 4]]+Dataset[[#This Row],[2026/27 From - Other reallocations]] -> 0 | CE59: =Dataset[[#This Row],[2024/25 To - Spending review Topic 1]]+Dataset[[#This Row],[2024/25 To - Spending review Topic 2]]+Dataset[[#This Row],[2024/25 To - Spending review Topic 3]]+Dataset[[#This Row],[2024/25 To - Spending review Topic 4]]+Dataset[[#This Row],[2024/25 To - Other reallocations]] -> 0 | CF59: =Dataset[[#This Row],[2025/26 To - Spending review Topic 1]]+Dataset[[#This Row],[2025/26 To - Spending review Topic 2]]+Dataset[[#This Row],[2025/26 To - Spending review Topic 3]]+Dataset[[#This Row],[2025/26 To - Spending review Topic 4]]+Dataset[[#This Row],[2025/26 To - Other reallocations]] -> 0 | CG59: =Dataset[[#This Row],[2026/27 To - Spending review Topic 1]]+Dataset[[#This Row],[2026/27 To - Spending review Topic 2]]+Dataset[[#This Row],[2026/27 To - Spending review Topic 3]]+Dataset[[#This Row],[2026/27 To - Spending review Topic 4]]+Dataset[[#This Row],[2026/27 To - Other reallocations]] -> 0 | CH59: =Dataset[[#This Row],[2024/25 Reduction]]+Dataset[[#This Row],[2024/25 From - Total]] -> 0 | CI59: =Dataset[[#This Row],[2025/26 Reduction]]+Dataset[[#This Row],[2025/26 From - Total]] -> 0 | CJ59: =Dataset[[#This Row],[2026/27 Reduction]]+Dataset[[#This Row],[2026/27 From - Total]] -> 0 | CK59: =Dataset[[#This Row],[2023/24 Reduction]] -> 0 | CL59: =SUM(Dataset[[#This Row],[2024/25 Reduction]],Dataset[[#This Row],[2024/25 From - Total]],Dataset[[#This Row],[2024/25 To - Total]]) -> 0 | CM59: =SUM(Dataset[[#This Row],[2025/26 Reduction]],Dataset[[#This Row],[2025/26 From - Total]],Dataset[[#This Row],[2025/26 To - Total]]) -> 0 | CN59: =SUM(Dataset[[#This Row],[2026/27 Reduction]],Dataset[[#This Row],[2026/27 From - Total]],Dataset[[#This Row],[2026/27 To - Total]]) -> 0 | CO59: =Dataset[[#This Row],[2023/24 Baseline]]+Dataset[[#This Row],[2023/24 Total change]] -> 420 | CP59: =Dataset[[#This Row],[2024/25 Baseline]]+Dataset[[#This Row],[2024/25 Total change]] -> 877 | CQ59: =Dataset[[#This Row],[2025/26 Baseline]]+Dataset[[#This Row],[2025/26 Total change]] -> 916 | CR59: =Dataset[[#This Row],[2026/27 Baseline]]+Dataset[[#This Row],[2026/27 Total change]] -> 958
A60: NAT|Non-transfer item | B60: 32|Communication (G&S) | C60: 2024_25 | D60: MTEF2024 | E60: 32 | F60: 1 | G60: 2 | H60: 54222 | I60: 42 | J60: 32 | K60: 01 | L60: 02 | M60: 054222 | N60: 000042 | O60: 32|01|02 | P60: 01 | Q60: 01 | R60: 02 | S60: 09 | T60: 09 | U60: 01|01|02|09|09 | V60: National | W60: Forestry, Fisheries and the Environment | X60: Administration | Y60: Departmental Management | Z60: Non-transfer item | AA60: Current | AB60: Current payments | AC60: Goods and services | AD60: Communication (G&S) | AE60: Communication (G&S) | AF60: Economic development | AG60: Economic regulation and infrastructure | AH60: NAT | AI60: 65 | AJ60: 68 | AK60: 48 | AL60: 562 | AM60: 557 | AN60: 557 | AO60: 0 | AP60: 45 | AQ60: 842 | AR60: 880 | AS60: 920 | CB60: =Dataset[[#This Row],[2024/25 From - Spending review Topic 1]]+Dataset[[#This Row],[2024/25 From - Spending review Topic 2]]+Dataset[[#This Row],[2024/25 From - Spending review Topic 3]]+Dataset[[#This Row],[2024/25 From - Spending review Topic 4]]+Dataset[[#This Row],[2024/25 From - Other reallocations]] -> 0 | CC60: =Dataset[[#This Row],[2025/26 From - Spending review Topic 1]]+Dataset[[#This Row],[2025/26 From - Spending review Topic 2]]+Dataset[[#This Row],[2025/26 From - Spending review Topic 3]]+Dataset[[#This Row],[2025/26 From - Spending review Topic 4]]+Dataset[[#This Row],[2025/26 From - Other reallocations]] -> 0 | CD60: =Dataset[[#This Row],[2026/27 From - Spending review Topic 1]]+Dataset[[#This Row],[2026/27 From - Spending review Topic 2]]+Dataset[[#This Row],[2026/27 From - Spending review Topic 3]]+Dataset[[#This Row],[2026/27 From - Spending review Topic 4]]+Dataset[[#This Row],[2026/27 From - Other reallocations]] -> 0 | CE60: =Dataset[[#This Row],[2024/25 To - Spending review Topic 1]]+Dataset[[#This Row],[2024/25 To - Spending review Topic 2]]+Dataset[[#This Row],[2024/25 To - Spending review Topic 3]]+Dataset[[#This Row],[2024/25 To - Spending review Topic 4]]+Dataset[[#This Row],[2024/25 To - Other reallocations]] -> 0 | CF60: =Dataset[[#This Row],[2025/26 To - Spending review Topic 1]]+Dataset[[#This Row],[2025/26 To - Spending review Topic 2]]+Dataset[[#This Row],[2025/26 To - Spending review Topic 3]]+Dataset[[#This Row],[2025/26 To - Spending review Topic 4]]+Dataset[[#This Row],[2025/26 To - Other reallocations]] -> 0 | CG60: =Dataset[[#This Row],[2026/27 To - Spending review Topic 1]]+Dataset[[#This Row],[2026/27 To - Spending review Topic 2]]+Dataset[[#This Row],[2026/27 To - Spending review Topic 3]]+Dataset[[#This Row],[2026/27 To - Spending review Topic 4]]+Dataset[[#This Row],[2026/27 To - Other reallocations]] -> 0 | CH60: =Dataset[[#This Row],[2024/25 Reduction]]+Dataset[[#This Row],[2024/25 From - Total]] -> 0 | CI60: =Dataset[[#This Row],[2025/26 Reduction]]+Dataset[[#This Row],[2025/26 From - Total]] -> 0 | CJ60: =Dataset[[#This Row],[2026/27 Reduction]]+Dataset[[#This Row],[2026/27 From - Total]] -> 0 | CK60: =Dataset[[#This Row],[2023/24 Reduction]] -> 0 | CL60: =SUM(Dataset[[#This Row],[2024/25 Reduction]],Dataset[[#This Row],[2024/25 From - Total]],Dataset[[#This Row],[2024/25 To - Total]]) -> 0 | CM60: =SUM(Dataset[[#This Row],[2025/26 Reduction]],Dataset[[#This Row],[2025/26 From - Total]],Dataset[[#This Row],[2025/26 To - Total]]) -> 0 | CN60: =SUM(Dataset[[#This Row],[2026/27 Reduction]],Dataset[[#This Row],[2026/27 From - Total]],Dataset[[#This Row],[2026/27 To - Total]]) -> 0 | CO60: =Dataset[[#This Row],[2023/24 Baseline]]+Dataset[[#This Row],[2023/24 Total change]] -> 45 | CP60: =Dataset[[#This Row],[2024/25 Baseline]]+Dataset[[#This Row],[2024/25 Total change]] -> 842 | CQ60: =Dataset[[#This Row],[2025/26 Baseline]]+Dataset[[#This Row],[2025/26 Total change]] -> 880 | CR60: =Dataset[[#This Row],[2026/27 Baseline]]+Dataset[[#This Row],[2026/27 Total change]] -> 920
A61: NAT|Non-transfer item | B61: 32|Computer services | C61: 2024_25 | D61: MTEF2024 | E61: 32 | F61: 1 | G61: 2 | H61: 54223 | I61: 43 | J61: 32 | K61: 01 | L61: 02 | M61: 054223 | N61: 000043 | O61: 32|01|02 | P61: 01 | Q61: 01 | R61: 02 | S61: 10 | T61: 10 | U61: 01|01|02|10|10 | V61: National | W61: Forestry, Fisheries and the Environment | X61: Administration | Y61: Departmental Management | Z61: Non-transfer item | AA61: Current | AB61: Current payments | AC61: Goods and services | AD61: Computer services | AE61: Computer services | AF61: Economic development | AG61: Economic regulation and infrastructure | AH61: NAT | AI61: 0 | AJ61: 0 | AK61: 22 | AL61: 0 | AM61: 0 | AN61: 0 | AO61: 0 | AP61: 0 | AQ61: 70 | AR61: 73 | AS61: 76 | CB61: =Dataset[[#This Row],[2024/25 From - Spending review Topic 1]]+Dataset[[#This Row],[2024/25 From - Spending review Topic 2]]+Dataset[[#This Row],[2024/25 From - Spending review Topic 3]]+Dataset[[#This Row],[2024/25 From - Spending review Topic 4]]+Dataset[[#This Row],[2024/25 From - Other reallocations]] -> 0 | CC61: =Dataset[[#This Row],[2025/26 From - Spending review Topic 1]]+Dataset[[#This Row],[2025/26 From - Spending review Topic 2]]+Dataset[[#This Row],[2025/26 From - Spending review Topic 3]]+Dataset[[#This Row],[2025/26 From - Spending review Topic 4]]+Dataset[[#This Row],[2025/26 From - Other reallocations]] -> 0 | CD61: =Dataset[[#This Row],[2026/27 From - Spending review Topic 1]]+Dataset[[#This Row],[2026/27 From - Spending review Topic 2]]+Dataset[[#This Row],[2026/27 From - Spending review Topic 3]]+Dataset[[#This Row],[2026/27 From - Spending review Topic 4]]+Dataset[[#This Row],[2026/27 From - Other reallocations]] -> 0 | CE61: =Dataset[[#This Row],[2024/25 To - Spending review Topic 1]]+Dataset[[#This Row],[2024/25 To - Spending review Topic 2]]+Dataset[[#This Row],[2024/25 To - Spending review Topic 3]]+Dataset[[#This Row],[2024/25 To - Spending review Topic 4]]+Dataset[[#This Row],[2024/25 To - Other reallocations]] -> 0 | CF61: =Dataset[[#This Row],[2025/26 To - Spending review Topic 1]]+Dataset[[#This Row],[2025/26 To - Spending review Topic 2]]+Dataset[[#This Row],[2025/26 To - Spending review Topic 3]]+Dataset[[#This Row],[2025/26 To - Spending review Topic 4]]+Dataset[[#This Row],[2025/26 To - Other reallocations]] -> 0 | CG61: =Dataset[[#This Row],[2026/27 To - Spending review Topic 1]]+Dataset[[#This Row],[2026/27 To - Spending review Topic 2]]+Dataset[[#This Row],[2026/27 To - Spending review Topic 3]]+Dataset[[#This Row],[2026/27 To - Spending review Topic 4]]+Dataset[[#This Row],[2026/27 To - Other reallocations]] -> 0 | CH61: =Dataset[[#This Row],[2024/25 Reduction]]+Dataset[[#This Row],[2024/25 From - Total]] -> 0 | CI61: =Dataset[[#This Row],[2025/26 Reduction]]+Dataset[[#This Row],[2025/26 From - Total]] -> 0 | CJ61: =Dataset[[#This Row],[2026/27 Reduction]]+Dataset[[#This Row],[2026/27 From - Total]] -> 0 | CK61: =Dataset[[#This Row],[2023/24 Reduction]] -> 0 | CL61: =SUM(Dataset[[#This Row],[2024/25 Reduction]],Dataset[[#This Row],[2024/25 From - Total]],Dataset[[#This Row],[2024/25 To - Total]]) -> 0 | CM61: =SUM(Dataset[[#This Row],[2025/26 Reduction]],Dataset[[#This Row],[2025/26 From - Total]],Dataset[[#This Row],[2025/26 To - Total]]) -> 0 | CN61: =SUM(Dataset[[#This Row],[2026/27 Reduction]],Dataset[[#This Row],[2026/27 From - Total]],Dataset[[#This Row],[2026/27 To - Total]]) -> 0 | CO61: =Dataset[[#This Row],[2023/24 Baseline]]+Dataset[[#This Row],[2023/24 Total change]] -> 0 | CP61: =Dataset[[#This Row],[2024/25 Baseline]]+Dataset[[#This Row],[2024/25 Total change]] -> 70 | CQ61: =Dataset[[#This Row],[2025/26 Baseline]]+Dataset[[#This Row],[2025/26 Total change]] -> 73 | CR61: =Dataset[[#This Row],[2026/27 Baseline]]+Dataset[[#This Row],[2026/27 Total change]] -> 76
A62: NAT|Non-transfer item | B62: 32|Consultants: Business and advisory services | C62: 2024_25 | D62: MTEF2024 | E62: 32 | F62: 1 | G62: 2 | H62: 54224 | I62: 44 | J62: 32 | K62: 01 | L62: 02 | M62: 054224 | N62: 000044 | O62: 32|01|02 | P62: 01 | Q62: 01 | R62: 02 | S62: 11 | T62: 11 | U62: 01|01|02|11|11 | V62: National | W62: Forestry, Fisheries and the Environment | X62: Administration | Y62: Departmental Management | Z62: Non-transfer item | AA62: Current | AB62: Current payments | AC62: Goods and services | AD62: Consultants: Business and advisory services | AE62: Consultants: Business and advisory services | AF62: Economic development | AG62: Economic regulation and infrastructure | AH62: NAT | AI62: 3470 | AJ62: 1453 | AK62: 83 | AL62: 91 | AM62: 2435 | AN62: 2435 | AO62: 0 | AP62: 1200 | AQ62: 3337 | AR62: 1555 | AS62: 1626 | CB62: =Dataset[[#This Row],[2024/25 From - Spending review Topic 1]]+Dataset[[#This Row],[2024/25 From - Spending review Topic 2]]+Dataset[[#This Row],[2024/25 From - Spending review Topic 3]]+Dataset[[#This Row],[2024/25 From - Spending review Topic 4]]+Dataset[[#This Row],[2024/25 From - Other reallocations]] -> 0 | CC62: =Dataset[[#This Row],[2025/26 From - Spending review Topic 1]]+Dataset[[#This Row],[2025/26 From - Spending review Topic 2]]+Dataset[[#This Row],[2025/26 From - Spending review Topic 3]]+Dataset[[#This Row],[2025/26 From - Spending review Topic 4]]+Dataset[[#This Row],[2025/26 From - Other reallocations]] -> 0 | CD62: =Dataset[[#This Row],[2026/27 From - Spending review Topic 1]]+Dataset[[#This Row],[2026/27 From - Spending review Topic 2]]+Dataset[[#This Row],[2026/27 From - Spending review Topic 3]]+Dataset[[#This Row],[2026/27 From - Spending review Topic 4]]+Dataset[[#This Row],[2026/27 From - Other reallocations]] -> 0 | CE62: =Dataset[[#This Row],[2024/25 To - Spending review Topic 1]]+Dataset[[#This Row],[2024/25 To - Spending review Topic 2]]+Dataset[[#This Row],[2024/25 To - Spending review Topic 3]]+Dataset[[#This Row],[2024/25 To - Spending review Topic 4]]+Dataset[[#This Row],[2024/25 To - Other reallocations]] -> 0 | CF62: =Dataset[[#This Row],[2025/26 To - Spending review Topic 1]]+Dataset[[#This Row],[2025/26 To - Spending review Topic 2]]+Dataset[[#This Row],[2025/26 To - Spending review Topic 3]]+Dataset[[#This Row],[2025/26 To - Spending review Topic 4]]+Dataset[[#This Row],[2025/26 To - Other reallocations]] -> 0 | CG62: =Dataset[[#This Row],[2026/27 To - Spending review Topic 1]]+Dataset[[#This Row],[2026/27 To - Spending review Topic 2]]+Dataset[[#This Row],[2026/27 To - Spending review Topic 3]]+Dataset[[#This Row],[2026/27 To - Spending review Topic 4]]+Dataset[[#This Row],[2026/27 To - Other reallocations]] -> 0 | CH62: =Dataset[[#This Row],[2024/25 Reduction]]+Dataset[[#This Row],[2024/25 From - Total]] -> 0 | CI62: =Dataset[[#This Row],[2025/26 Reduction]]+Dataset[[#This Row],[2025/26 From - Total]] -> 0 | CJ62: =Dataset[[#This Row],[2026/27 Reduction]]+Dataset[[#This Row],[2026/27 From - Total]] -> 0 | CK62: =Dataset[[#This Row],[2023/24 Reduction]] -> 0 | CL62: =SUM(Dataset[[#This Row],[2024/25 Reduction]],Dataset[[#This Row],[2024/25 From - Total]],Dataset[[#This Row],[2024/25 To - Total]]) -> 0 | CM62: =SUM(Dataset[[#This Row],[2025/26 Reduction]],Dataset[[#This Row],[2025/26 From - Total]],Dataset[[#This Row],[2025/26 To - Total]]) -> 0 | CN62: =SUM(Dataset[[#This Row],[2026/27 Reduction]],Dataset[[#This Row],[2026/27 From - Total]],Dataset[[#This Row],[2026/27 To - Total]]) -> 0 | CO62: =Dataset[[#This Row],[2023/24 Baseline]]+Dataset[[#This Row],[2023/24 Total change]] -> 1200 | CP62: =Dataset[[#This Row],[2024/25 Baseline]]+Dataset[[#This Row],[2024/25 Total change]] -> 3337 | CQ62: =Dataset[[#This Row],[2025/26 Baseline]]+Dataset[[#This Row],[2025/26 Total change]] -> 1555 | CR62: =Dataset[[#This Row],[2026/27 Baseline]]+Dataset[[#This Row],[2026/27 Total change]] -> 1626
A63: NAT|Non-transfer item | B63: 32|Infrastructure and planning services | C63: 2024_25 | D63: MTEF2024 | E63: 32 | F63: 1 | G63: 2 | H63: 54225 | I63: 45 | J63: 32 | K63: 01 | L63: 02 | M63: 054225 | N63: 000045 | O63: 32|01|02 | P63: 01 | Q63: 01 | R63: 02 | S63: 12 | T63: 12 | U63: 01|01|02|12|12 | V63: National | W63: Forestry, Fisheries and the Environment | X63: Administration | Y63: Corporate Management Services | Z63: Non-transfer item | AA63: Current | AB63: Current payments | AC63: Goods and services | AD63: Infrastructure and planning services | AE63: Infrastructure and planning services | AF63: Economic development | AG63: Economic regulation and infrastructure | AH63: NAT | AI63: 0 | AJ63: 0 | AK63: 0 | AL63: 0 | AM63: 0 | AN63: 0 | AO63: 0 | AP63: 0 | AQ63: 0 | AR63: 0 | AS63: 0 | CB63: =Dataset[[#This Row],[2024/25 From - Spending review Topic 1]]+Dataset[[#This Row],[2024/25 From - Spending review Topic 2]]+Dataset[[#This Row],[2024/25 From - Spending review Topic 3]]+Dataset[[#This Row],[2024/25 From - Spending review Topic 4]]+Dataset[[#This Row],[2024/25 From - Other reallocations]] -> 0 | CC63: =Dataset[[#This Row],[2025/26 From - Spending review Topic 1]]+Dataset[[#This Row],[2025/26 From - Spending review Topic 2]]+Dataset[[#This Row],[2025/26 From - Spending review Topic 3]]+Dataset[[#This Row],[2025/26 From - Spending review Topic 4]]+Dataset[[#This Row],[2025/26 From - Other reallocations]] -> 0 | CD63: =Dataset[[#This Row],[2026/27 From - Spending review Topic 1]]+Dataset[[#This Row],[2026/27 From - Spending review Topic 2]]+Dataset[[#This Row],[2026/27 From - Spending review Topic 3]]+Dataset[[#This Row],[2026/27 From - Spending review Topic 4]]+Dataset[[#This Row],[2026/27 From - Other reallocations]] -> 0 | CE63: =Dataset[[#This Row],[2024/25 To - Spending review Topic 1]]+Dataset[[#This Row],[2024/25 To - Spending review Topic 2]]+Dataset[[#This Row],[2024/25 To - Spending review Topic 3]]+Dataset[[#This Row],[2024/25 To - Spending review Topic 4]]+Dataset[[#This Row],[2024/25 To - Other reallocations]] -> 0 | CF63: =Dataset[[#This Row],[2025/26 To - Spending review Topic 1]]+Dataset[[#This Row],[2025/26 To - Spending review Topic 2]]+Dataset[[#This Row],[2025/26 To - Spending review Topic 3]]+Dataset[[#This Row],[2025/26 To - Spending review Topic 4]]+Dataset[[#This Row],[2025/26 To - Other reallocations]] -> 0 | CG63: =Dataset[[#This Row],[2026/27 To - Spending review Topic 1]]+Dataset[[#This Row],[2026/27 To - Spending review Topic 2]]+Dataset[[#This Row],[2026/27 To - Spending review Topic 3]]+Dataset[[#This Row],[2026/27 To - Spending review Topic 4]]+Dataset[[#This Row],[2026/27 To - Other reallocations]] -> 0 | CH63: =Dataset[[#This Row],[2024/25 Reduction]]+Dataset[[#This Row],[2024/25 From - Total]] -> 0 | CI63: =Dataset[[#This Row],[2025/26 Reduction]]+Dataset[[#This Row],[2025/26 From - Total]] -> 0 | CJ63: =Dataset[[#This Row],[2026/27 Reduction]]+Dataset[[#This Row],[2026/27 From - Total]] -> 0 | CK63: =Dataset[[#This Row],[2023/24 Reduction]] -> 0 | CL63: =SUM(Dataset[[#This Row],[2024/25 Reduction]],Dataset[[#This Row],[2024/25 From - Total]],Dataset[[#This Row],[2024/25 To - Total]]) -> 0 | CM63: =SUM(Dataset[[#This Row],[2025/26 Reduction]],Dataset[[#This Row],[2025/26 From - Total]],Dataset[[#This Row],[2025/26 To - Total]]) -> 0 | CN63: =SUM(Dataset[[#This Row],[2026/27 Reduction]],Dataset[[#This Row],[2026/27 From - Total]],Dataset[[#This Row],[2026/27 To - Total]]) -> 0 | CO63: =Dataset[[#This Row],[2023/24 Baseline]]+Dataset[[#This Row],[2023/24 Total change]] -> 0 | CP63: =Dataset[[#This Row],[2024/25 Baseline]]+Dataset[[#This Row],[2024/25 Total change]] -> 0 | CQ63: =Dataset[[#This Row],[2025/26 Baseline]]+Dataset[[#This Row],[2025/26 Total change]] -> 0 | CR63: =Dataset[[#This Row],[2026/27 Baseline]]+Dataset[[#This Row],[2026/27 Total change]] -> 0
A64: NAT|Non-transfer item | B64: 32|Laboratory services | C64: 2024_25 | D64: MTEF2024 | E64: 32 | F64: 1 | G64: 2 | H64: 54226 | I64: 46 | J64: 32 | K64: 01 | L64: 02 | M64: 054226 | N64: 000046 | O64: 32|01|02 | P64: 01 | Q64: 01 | R64: 02 | S64: 13 | T64: 13 | U64: 01|01|02|13|13 | V64: National | W64: Forestry, Fisheries and the Environment | X64: Administration | Y64: Corporate Management Services | Z64: Non-transfer item | AA64: Current | AB64: Current payments | AC64: Goods and services | AD64: Laboratory services | AE64: Laboratory services | AF64: Economic development | AG64: Economic regulation and infrastructure | AH64: NAT | AI64: 0 | AJ64: 0 | AK64: 0 | AL64: 0 | AM64: 0 | AN64: 0 | AO64: 0 | AP64: 0 | AQ64: 0 | AR64: 0 | AS64: 0 | CB64: =Dataset[[#This Row],[2024/25 From - Spending review Topic 1]]+Dataset[[#This Row],[2024/25 From - Spending review Topic 2]]+Dataset[[#This Row],[2024/25 From - Spending review Topic 3]]+Dataset[[#This Row],[2024/25 From - Spending review Topic 4]]+Dataset[[#This Row],[2024/25 From - Other reallocations]] -> 0 | CC64: =Dataset[[#This Row],[2025/26 From - Spending review Topic 1]]+Dataset[[#This Row],[2025/26 From - Spending review Topic 2]]+Dataset[[#This Row],[2025/26 From - Spending review Topic 3]]+Dataset[[#This Row],[2025/26 From - Spending review Topic 4]]+Dataset[[#This Row],[2025/26 From - Other reallocations]] -> 0 | CD64: =Dataset[[#This Row],[2026/27 From - Spending review Topic 1]]+Dataset[[#This Row],[2026/27 From - Spending review Topic 2]]+Dataset[[#This Row],[2026/27 From - Spending review Topic 3]]+Dataset[[#This Row],[2026/27 From - Spending review Topic 4]]+Dataset[[#This Row],[2026/27 From - Other reallocations]] -> 0 | CE64: =Dataset[[#This Row],[2024/25 To - Spending review Topic 1]]+Dataset[[#This Row],[2024/25 To - Spending review Topic 2]]+Dataset[[#This Row],[2024/25 To - Spending review Topic 3]]+Dataset[[#This Row],[2024/25 To - Spending review Topic 4]]+Dataset[[#This Row],[2024/25 To - Other reallocations]] -> 0 | CF64: =Dataset[[#This Row],[2025/26 To - Spending review Topic 1]]+Dataset[[#This Row],[2025/26 To - Spending review Topic 2]]+Dataset[[#This Row],[2025/26 To - Spending review Topic 3]]+Dataset[[#This Row],[2025/26 To - Spending review Topic 4]]+Dataset[[#This Row],[2025/26 To - Other reallocations]] -> 0 | CG64: =Dataset[[#This Row],[2026/27 To - Spending review Topic 1]]+Dataset[[#This Row],[2026/27 To - Spending review Topic 2]]+Dataset[[#This Row],[2026/27 To - Spending review Topic 3]]+Dataset[[#This Row],[2026/27 To - Spending review Topic 4]]+Dataset[[#This Row],[2026/27 To - Other reallocations]] -> 0 | CH64: =Dataset[[#This Row],[2024/25 Reduction]]+Dataset[[#This Row],[2024/25 From - Total]] -> 0 | CI64: =Dataset[[#This Row],[2025/26 Reduction]]+Dataset[[#This Row],[2025/26 From - Total]] -> 0 | CJ64: =Dataset[[#This Row],[2026/27 Reduction]]+Dataset[[#This Row],[2026/27 From - Total]] -> 0 | CK64: =Dataset[[#This Row],[2023/24 Reduction]] -> 0 | CL64: =SUM(Dataset[[#This Row],[2024/25 Reduction]],Dataset[[#This Row],[2024/25 From - Total]],Dataset[[#This Row],[2024/25 To - Total]]) -> 0 | CM64: =SUM(Dataset[[#This Row],[2025/26 Reduction]],Dataset[[#This Row],[2025/26 From - Total]],Dataset[[#This Row],[2025/26 To - Total]]) -> 0 | CN64: =SUM(Dataset[[#This Row],[2026/27 Reduction]],Dataset[[#This Row],[2026/27 From - Total]],Dataset[[#This Row],[2026/27 To - Total]]) -> 0 | CO64: =Dataset[[#This Row],[2023/24 Baseline]]+Dataset[[#This Row],[2023/24 Total change]] -> 0 | CP64: =Dataset[[#This Row],[2024/25 Baseline]]+Dataset[[#This Row],[2024/25 Total change]] -> 0 | CQ64: =Dataset[[#This Row],[2025/26 Baseline]]+Dataset[[#This Row],[2025/26 Total change]] -> 0 | CR64: =Dataset[[#This Row],[2026/27 Baseline]]+Dataset[[#This Row],[2026/27 Total change]] -> 0
A65: NAT|Non-transfer item | B65: 32|Legal services (G&S) | C65: 2024_25 | D65: MTEF2024 | E65: 32 | F65: 1 | G65: 2 | H65: 54227 | I65: 47 | J65: 32 | K65: 01 | L65: 02 | M65: 054227 | N65: 000047 | O65: 32|01|02 | P65: 01 | Q65: 01 | R65: 02 | S65: 14 | T65: 14 | U65: 01|01|02|14|14 | V65: National | W65: Forestry, Fisheries and the Environment | X65: Administration | Y65: Departmental Management | Z65: Non-transfer item | AA65: Current | AB65: Current payments | AC65: Goods and services | AD65: Legal services (G&S) | AE65: Legal services (G&S) | AF65: Economic development | AG65: Economic regulation and infrastructure | AH65: NAT | AI65: 0 | AJ65: 19144 | AK65: 1195 | AL65: 2600 | AM65: 2600 | AN65: 2600 | AO65: 0 | AP65: 0 | AQ65: 1831 | AR65: 1913 | AS65: 2001 | CB65: =Dataset[[#This Row],[2024/25 From - Spending review Topic 1]]+Dataset[[#This Row],[2024/25 From - Spending review Topic 2]]+Dataset[[#This Row],[2024/25 From - Spending review Topic 3]]+Dataset[[#This Row],[2024/25 From - Spending review Topic 4]]+Dataset[[#This Row],[2024/25 From - Other reallocations]] -> 0 | CC65: =Dataset[[#This Row],[2025/26 From - Spending review Topic 1]]+Dataset[[#This Row],[2025/26 From - Spending review Topic 2]]+Dataset[[#This Row],[2025/26 From - Spending review Topic 3]]+Dataset[[#This Row],[2025/26 From - Spending review Topic 4]]+Dataset[[#This Row],[2025/26 From - Other reallocations]] -> 0 | CD65: =Dataset[[#This Row],[2026/27 From - Spending review Topic 1]]+Dataset[[#This Row],[2026/27 From - Spending review Topic 2]]+Dataset[[#This Row],[2026/27 From - Spending review Topic 3]]+Dataset[[#This Row],[2026/27 From - Spending review Topic 4]]+Dataset[[#This Row],[2026/27 From - Other reallocations]] -> 0 | CE65: =Dataset[[#This Row],[2024/25 To - Spending review Topic 1]]+Dataset[[#This Row],[2024/25 To - Spending review Topic 2]]+Dataset[[#This Row],[2024/25 To - Spending review Topic 3]]+Dataset[[#This Row],[2024/25 To - Spending review Topic 4]]+Dataset[[#This Row],[2024/25 To - Other reallocations]] -> 0 | CF65: =Dataset[[#This Row],[2025/26 To - Spending review Topic 1]]+Dataset[[#This Row],[2025/26 To - Spending review Topic 2]]+Dataset[[#This Row],[2025/26 To - Spending review Topic 3]]+Dataset[[#This Row],[2025/26 To - Spending review Topic 4]]+Dataset[[#This Row],[2025/26 To - Other reallocations]] -> 0 | CG65: =Dataset[[#This Row],[2026/27 To - Spending review Topic 1]]+Dataset[[#This Row],[2026/27 To - Spending review Topic 2]]+Dataset[[#This Row],[2026/27 To - Spending review Topic 3]]+Dataset[[#This Row],[2026/27 To - Spending review Topic 4]]+Dataset[[#This Row],[2026/27 To - Other reallocations]] -> 0 | CH65: =Dataset[[#This Row],[2024/25 Reduction]]+Dataset[[#This Row],[2024/25 From - Total]] -> 0 | CI65: =Dataset[[#This Row],[2025/26 Reduction]]+Dataset[[#This Row],[2025/26 From - Total]] -> 0 | CJ65: =Dataset[[#This Row],[2026/27 Reduction]]+Dataset[[#This Row],[2026/27 From - Total]] -> 0 | CK65: =Dataset[[#This Row],[2023/24 Reduction]] -> 0 | CL65: =SUM(Dataset[[#This Row],[2024/25 Reduction]],Dataset[[#This Row],[2024/25 From - Total]],Dataset[[#This Row],[2024/25 To - Total]]) -> 0 | CM65: =SUM(Dataset[[#This Row],[2025/26 Reduction]],Dataset[[#This Row],[2025/26 From - Total]],Dataset[[#This Row],[2025/26 To - Total]]) -> 0 | CN65: =SUM(Dataset[[#This Row],[2026/27 Reduction]],Dataset[[#This Row],[2026/27 From - Total]],Dataset[[#This Row],[2026/27 To - Total]]) -> 0 | CO65: =Dataset[[#This Row],[2023/24 Baseline]]+Dataset[[#This Row],[2023/24 Total change]] -> 0 | CP65: =Dataset[[#This Row],[2024/25 Baseline]]+Dataset[[#This Row],[2024/25 Total change]] -> 1831 | CQ65: =Dataset[[#This Row],[2025/26 Baseline]]+Dataset[[#This Row],[2025/26 Total change]] -> 1913 | CR65: =Dataset[[#This Row],[2026/27 Baseline]]+Dataset[[#This Row],[2026/27 Total change]] -> 2001
A66: NAT|Non-transfer item | B66: 32|Science and technological services | C66: 2024_25 | D66: MTEF2024 | E66: 32 | F66: 1 | G66: 2 | H66: 54228 | I66: 48 | J66: 32 | K66: 01 | L66: 02 | M66: 054228 | N66: 000048 | O66: 32|01|02 | P66: 01 | Q66: 01 | R66: 02 | S66: 15 | T66: 15 | U66: 01|01|02|15|15 | V66: National | W66: Forestry, Fisheries and the Environment | X66: Administration | Y66: Corporate Management Services | Z66: Non-transfer item | AA66: Current | AB66: Current payments | AC66: Goods and services | AD66: Science and technological services | AE66: Science and technological services | AF66: Economic development | AG66: Economic regulation and infrastructure | AH66: NAT | AI66: 0 | AJ66: 0 | AK66: 0 | AL66: 0 | AM66: 0 | AN66: 0 | AO66: 0 | AP66: 0 | AQ66: 0 | AR66: 0 | AS66: 0 | CB66: =Dataset[[#This Row],[2024/25 From - Spending review Topic 1]]+Dataset[[#This Row],[2024/25 From - Spending review Topic 2]]+Dataset[[#This Row],[2024/25 From - Spending review Topic 3]]+Dataset[[#This Row],[2024/25 From - Spending review Topic 4]]+Dataset[[#This Row],[2024/25 From - Other reallocations]] -> 0 | CC66: =Dataset[[#This Row],[2025/26 From - Spending review Topic 1]]+Dataset[[#This Row],[2025/26 From - Spending review Topic 2]]+Dataset[[#This Row],[2025/26 From - Spending review Topic 3]]+Dataset[[#This Row],[2025/26 From - Spending review Topic 4]]+Dataset[[#This Row],[2025/26 From - Other reallocations]] -> 0 | CD66: =Dataset[[#This Row],[2026/27 From - Spending review Topic 1]]+Dataset[[#This Row],[2026/27 From - Spending review Topic 2]]+Dataset[[#This Row],[2026/27 From - Spending review Topic 3]]+Dataset[[#This Row],[2026/27 From - Spending review Topic 4]]+Dataset[[#This Row],[2026/27 From - Other reallocations]] -> 0 | CE66: =Dataset[[#This Row],[2024/25 To - Spending review Topic 1]]+Dataset[[#This Row],[2024/25 To - Spending review Topic 2]]+Dataset[[#This Row],[2024/25 To - Spending review Topic 3]]+Dataset[[#This Row],[2024/25 To - Spending review Topic 4]]+Dataset[[#This Row],[2024/25 To - Other reallocations]] -> 0 | CF66: =Dataset[[#This Row],[2025/26 To - Spending review Topic 1]]+Dataset[[#This Row],[2025/26 To - Spending review Topic 2]]+Dataset[[#This Row],[2025/26 To - Spending review Topic 3]]+Dataset[[#This Row],[2025/26 To - Spending review Topic 4]]+Dataset[[#This Row],[2025/26 To - Other reallocations]] -> 0 | CG66: =Dataset[[#This Row],[2026/27 To - Spending review Topic 1]]+Dataset[[#This Row],[2026/27 To - Spending review Topic 2]]+Dataset[[#This Row],[2026/27 To - Spending review Topic 3]]+Dataset[[#This Row],[2026/27 To - Spending review Topic 4]]+Dataset[[#This Row],[2026/27 To - Other reallocations]] -> 0 | CH66: =Dataset[[#This Row],[2024/25 Reduction]]+Dataset[[#This Row],[2024/25 From - Total]] -> 0 | CI66: =Dataset[[#This Row],[2025/26 Reduction]]+Dataset[[#This Row],[2025/26 From - Total]] -> 0 | CJ66: =Dataset[[#This Row],[2026/27 Reduction]]+Dataset[[#This Row],[2026/27 From - Total]] -> 0 | CK66: =Dataset[[#This Row],[2023/24 Reduction]] -> 0 | CL66: =SUM(Dataset[[#This Row],[2024/25 Reduction]],Dataset[[#This Row],[2024/25 From - Total]],Dataset[[#This Row],[2024/25 To - Total]]) -> 0 | CM66: =SUM(Dataset[[#This Row],[2025/26 Reduction]],Dataset[[#This Row],[2025/26 From - Total]],Dataset[[#This Row],[2025/26 To - Total]]) -> 0 | CN66: =SUM(Dataset[[#This Row],[2026/27 Reduction]],Dataset[[#This Row],[2026/27 From - Total]],Dataset[[#This Row],[2026/27 To - Total]]) -> 0 | CO66: =Dataset[[#This Row],[2023/24 Baseline]]+Dataset[[#This Row],[2023/24 Total change]] -> 0 | CP66: =Dataset[[#This Row],[2024/25 Baseline]]+Dataset[[#This Row],[2024/25 Total change]] -> 0 | CQ66: =Dataset[[#This Row],[2025/26 Baseline]]+Dataset[[#This Row],[2025/26 Total change]] -> 0 | CR66: =Dataset[[#This Row],[2026/27 Baseline]]+Dataset[[#This Row],[2026/27 Total change]] -> 0
A67: NAT|Non-transfer item | B67: 32|Contractors | C67: 2024_25 | D67: MTEF2024 | E67: 32 | F67: 1 | G67: 2 | H67: 54229 | I67: 49 | J67: 32 | K67: 01 | L67: 02 | M67: 054229 | N67: 000049 | O67: 32|01|02 | P67: 01 | Q67: 01 | R67: 02 | S67: 16 | T67: 16 | U67: 01|01|02|16|16 | V67: National | W67: Forestry, Fisheries and the Environment | X67: Administration | Y67: Departmental Management | Z67: Non-transfer item | AA67: Current | AB67: Current payments | AC67: Goods and services | AD67: Contractors | AE67: Contractors | AF67: Economic development | AG67: Economic regulation and infrastructure | AH67: NAT | AI67: 0 | AJ67: 62 | AK67: 35 | AL67: 5 | AM67: 5 | AN67: 5 | AO67: 0 | AP67: 500 | AQ67: 230 | AR67: 240 | AS67: 251 | CB67: =Dataset[[#This Row],[2024/25 From - Spending review Topic 1]]+Dataset[[#This Row],[2024/25 From - Spending review Topic 2]]+Dataset[[#This Row],[2024/25 From - Spending review Topic 3]]+Dataset[[#This Row],[2024/25 From - Spending review Topic 4]]+Dataset[[#This Row],[2024/25 From - Other reallocations]] -> 0 | CC67: =Dataset[[#This Row],[2025/26 From - Spending review Topic 1]]+Dataset[[#This Row],[2025/26 From - Spending review Topic 2]]+Dataset[[#This Row],[2025/26 From - Spending review Topic 3]]+Dataset[[#This Row],[2025/26 From - Spending review Topic 4]]+Dataset[[#This Row],[2025/26 From - Other reallocations]] -> 0 | CD67: =Dataset[[#This Row],[2026/27 From - Spending review Topic 1]]+Dataset[[#This Row],[2026/27 From - Spending review Topic 2]]+Dataset[[#This Row],[2026/27 From - Spending review Topic 3]]+Dataset[[#This Row],[2026/27 From - Spending review Topic 4]]+Dataset[[#This Row],[2026/27 From - Other reallocations]] -> 0 | CE67: =Dataset[[#This Row],[2024/25 To - Spending review Topic 1]]+Dataset[[#This Row],[2024/25 To - Spending review Topic 2]]+Dataset[[#This Row],[2024/25 To - Spending review Topic 3]]+Dataset[[#This Row],[2024/25 To - Spending review Topic 4]]+Dataset[[#This Row],[2024/25 To - Other reallocations]] -> 0 | CF67: =Dataset[[#This Row],[2025/26 To - Spending review Topic 1]]+Dataset[[#This Row],[2025/26 To - Spending review Topic 2]]+Dataset[[#This Row],[2025/26 To - Spending review Topic 3]]+Dataset[[#This Row],[2025/26 To - Spending review Topic 4]]+Dataset[[#This Row],[2025/26 To - Other reallocations]] -> 0 | CG67: =Dataset[[#This Row],[2026/27 To - Spending review Topic 1]]+Dataset[[#This Row],[2026/27 To - Spending review Topic 2]]+Dataset[[#This Row],[2026/27 To - Spending review Topic 3]]+Dataset[[#This Row],[2026/27 To - Spending review Topic 4]]+Dataset[[#This Row],[2026/27 To - Other reallocations]] -> 0 | CH67: =Dataset[[#This Row],[2024/25 Reduction]]+Dataset[[#This Row],[2024/25 From - Total]] -> 0 | CI67: =Dataset[[#This Row],[2025/26 Reduction]]+Dataset[[#This Row],[2025/26 From - Total]] -> 0 | CJ67: =Dataset[[#This Row],[2026/27 Reduction]]+Dataset[[#This Row],[2026/27 From - Total]] -> 0 | CK67: =Dataset[[#This Row],[2023/24 Reduction]] -> 0 | CL67: =SUM(Dataset[[#This Row],[2024/25 Reduction]],Dataset[[#This Row],[2024/25 From - Total]],Dataset[[#This Row],[2024/25 To - Total]]) -> 0 | CM67: =SUM(Dataset[[#This Row],[2025/26 Reduction]],Dataset[[#This Row],[2025/26 From - Total]],Dataset[[#This Row],[2025/26 To - Total]]) -> 0 | CN67: =SUM(Dataset[[#This Row],[2026/27 Reduction]],Dataset[[#This Row],[2026/27 From - Total]],Dataset[[#This Row],[2026/27 To - Total]]) -> 0 | CO67: =Dataset[[#This Row],[2023/24 Baseline]]+Dataset[[#This Row],[2023/24 Total change]] -> 500 | CP67: =Dataset[[#This Row],[2024/25 Baseline]]+Dataset[[#This Row],[2024/25 Total change]] -> 230 | CQ67: =Dataset[[#This Row],[2025/26 Baseline]]+Dataset[[#This Row],[2025/26 Total change]] -> 240 | CR67: =Dataset[[#This Row],[2026/27 Baseline]]+Dataset[[#This Row],[2026/27 Total change]] -> 251
A68: NAT|Non-transfer item | B68: 32|Agency and support/outsourced services | C68: 2024_25 | D68: MTEF2024 | E68: 32 | F68: 1 | G68: 2 | H68: 54230 | I68: 50 | J68: 32 | K68: 01 | L68: 02 | M68: 054230 | N68: 000050 | O68: 32|01|02 | P68: 01 | Q68: 01 | R68: 02 | S68: 17 | T68: 17 | U68: 01|01|02|17|17 | V68: National | W68: Forestry, Fisheries and the Environment | X68: Administration | Y68: Departmental Management | Z68: Non-transfer item | AA68: Current | AB68: Current payments | AC68: Goods and services | AD68: Agency and support/outsourced services | AE68: Agency and support/outsourced services | AF68: Economic development | AG68: Economic regulation and infrastructure | AH68: NAT | AI68: 0 | AJ68: 6281 | AK68: 0 | AL68: 0 | AM68: 0 | AN68: 0 | AO68: 0 | AP68: 0 | AQ68: 67 | AR68: 70 | AS68: 73 | CB68: =Dataset[[#This Row],[2024/25 From - Spending review Topic 1]]+Dataset[[#This Row],[2024/25 From - Spending review Topic 2]]+Dataset[[#This Row],[2024/25 From - Spending review Topic 3]]+Dataset[[#This Row],[2024/25 From - Spending review Topic 4]]+Dataset[[#This Row],[2024/25 From - Other reallocations]] -> 0 | CC68: =Dataset[[#This Row],[2025/26 From - Spending review Topic 1]]+Dataset[[#This Row],[2025/26 From - Spending review Topic 2]]+Dataset[[#This Row],[2025/26 From - Spending review Topic 3]]+Dataset[[#This Row],[2025/26 From - Spending review Topic 4]]+Dataset[[#This Row],[2025/26 From - Other reallocations]] -> 0 | CD68: =Dataset[[#This Row],[2026/27 From - Spending review Topic 1]]+Dataset[[#This Row],[2026/27 From - Spending review Topic 2]]+Dataset[[#This Row],[2026/27 From - Spending review Topic 3]]+Dataset[[#This Row],[2026/27 From - Spending review Topic 4]]+Dataset[[#This Row],[2026/27 From - Other reallocations]] -> 0 | CE68: =Dataset[[#This Row],[2024/25 To - Spending review Topic 1]]+Dataset[[#This Row],[2024/25 To - Spending review Topic 2]]+Dataset[[#This Row],[2024/25 To - Spending review Topic 3]]+Dataset[[#This Row],[2024/25 To - Spending review Topic 4]]+Dataset[[#This Row],[2024/25 To - Other reallocations]] -> 0 | CF68: =Dataset[[#This Row],[2025/26 To - Spending review Topic 1]]+Dataset[[#This Row],[2025/26 To - Spending review Topic 2]]+Dataset[[#This Row],[2025/26 To - Spending review Topic 3]]+Dataset[[#This Row],[2025/26 To - Spending review Topic 4]]+Dataset[[#This Row],[2025/26 To - Other reallocations]] -> 0 | CG68: =Dataset[[#This Row],[2026/27 To - Spending review Topic 1]]+Dataset[[#This Row],[2026/27 To - Spending review Topic 2]]+Dataset[[#This Row],[2026/27 To - Spending review Topic 3]]+Dataset[[#This Row],[2026/27 To - Spending review Topic 4]]+Dataset[[#This Row],[2026/27 To - Other reallocations]] -> 0 | CH68: =Dataset[[#This Row],[2024/25 Reduction]]+Dataset[[#This Row],[2024/25 From - Total]] -> 0 | CI68: =Dataset[[#This Row],[2025/26 Reduction]]+Dataset[[#This Row],[2025/26 From - Total]] -> 0 | CJ68: =Dataset[[#This Row],[2026/27 Reduction]]+Dataset[[#This Row],[2026/27 From - Total]] -> 0 | CK68: =Dataset[[#This Row],[2023/24 Reduction]] -> 0 | CL68: =SUM(Dataset[[#This Row],[2024/25 Reduction]],Dataset[[#This Row],[2024/25 From - Total]],Dataset[[#This Row],[2024/25 To - Total]]) -> 0 | CM68: =SUM(Dataset[[#This Row],[2025/26 Reduction]],Dataset[[#This Row],[2025/26 From - Total]],Dataset[[#This Row],[2025/26 To - Total]]) -> 0 | CN68: =SUM(Dataset[[#This Row],[2026/27 Reduction]],Dataset[[#This Row],[2026/27 From - Total]],Dataset[[#This Row],[2026/27 To - Total]]) -> 0 | CO68: =Dataset[[#This Row],[2023/24 Baseline]]+Dataset[[#This Row],[2023/24 Total change]] -> 0 | CP68: =Dataset[[#This Row],[2024/25 Baseline]]+Dataset[[#This Row],[2024/25 Total change]] -> 67 | CQ68: =Dataset[[#This Row],[2025/26 Baseline]]+Dataset[[#This Row],[2025/26 Total change]] -> 70 | CR68: =Dataset[[#This Row],[2026/27 Baseline]]+Dataset[[#This Row],[2026/27 Total change]] -> 73
A69: NAT|Non-transfer item | B69: 32|Entertainment | C69: 2024_25 | D69: MTEF2024 | E69: 32 | F69: 1 | G69: 2 | H69: 54231 | I69: 51 | J69: 32 | K69: 01 | L69: 02 | M69: 054231 | N69: 000051 | O69: 32|01|02 | P69: 01 | Q69: 01 | R69: 02 | S69: 18 | T69: 18 | U69: 01|01|02|18|18 | V69: National | W69: Forestry, Fisheries and the Environment | X69: Administration | Y69: Departmental Management | Z69: Non-transfer item | AA69: Current | AB69: Current payments | AC69: Goods and services | AD69: Entertainment | AE69: Entertainment | AF69: Economic development | AG69: Economic regulation and infrastructure | AH69: NAT | AI69: 0 | AJ69: 0 | AK69: 0 | AL69: 20 | AM69: 20 | AN69: 20 | AO69: 0 | AP69: 0 | AQ69: 2 | AR69: 2 | AS69: 2 | CB69: =Dataset[[#This Row],[2024/25 From - Spending review Topic 1]]+Dataset[[#This Row],[2024/25 From - Spending review Topic 2]]+Dataset[[#This Row],[2024/25 From - Spending review Topic 3]]+Dataset[[#This Row],[2024/25 From - Spending review Topic 4]]+Dataset[[#This Row],[2024/25 From - Other reallocations]] -> 0 | CC69: =Dataset[[#This Row],[2025/26 From - Spending review Topic 1]]+Dataset[[#This Row],[2025/26 From - Spending review Topic 2]]+Dataset[[#This Row],[2025/26 From - Spending review Topic 3]]+Dataset[[#This Row],[2025/26 From - Spending review Topic 4]]+Dataset[[#This Row],[2025/26 From - Other reallocations]] -> 0 | CD69: =Dataset[[#This Row],[2026/27 From - Spending review Topic 1]]+Dataset[[#This Row],[2026/27 From - Spending review Topic 2]]+Dataset[[#This Row],[2026/27 From - Spending review Topic 3]]+Dataset[[#This Row],[2026/27 From - Spending review Topic 4]]+Dataset[[#This Row],[2026/27 From - Other reallocations]] -> 0 | CE69: =Dataset[[#This Row],[2024/25 To - Spending review Topic 1]]+Dataset[[#This Row],[2024/25 To - Spending review Topic 2]]+Dataset[[#This Row],[2024/25 To - Spending review Topic 3]]+Dataset[[#This Row],[2024/25 To - Spending review Topic 4]]+Dataset[[#This Row],[2024/25 To - Other reallocations]] -> 0 | CF69: =Dataset[[#This Row],[2025/26 To - Spending review Topic 1]]+Dataset[[#This Row],[2025/26 To - Spending review Topic 2]]+Dataset[[#This Row],[2025/26 To - Spending review Topic 3]]+Dataset[[#This Row],[2025/26 To - Spending review Topic 4]]+Dataset[[#This Row],[2025/26 To - Other reallocations]] -> 0 | CG69: =Dataset[[#This Row],[2026/27 To - Spending review Topic 1]]+Dataset[[#This Row],[2026/27 To - Spending review Topic 2]]+Dataset[[#This Row],[2026/27 To - Spending review Topic 3]]+Dataset[[#This Row],[2026/27 To - Spending review Topic 4]]+Dataset[[#This Row],[2026/27 To - Other reallocations]] -> 0 | CH69: =Dataset[[#This Row],[2024/25 Reduction]]+Dataset[[#This Row],[2024/25 From - Total]] -> 0 | CI69: =Dataset[[#This Row],[2025/26 Reduction]]+Dataset[[#This Row],[2025/26 From - Total]] -> 0 | CJ69: =Dataset[[#This Row],[2026/27 Reduction]]+Dataset[[#This Row],[2026/27 From - Total]] -> 0 | CK69: =Dataset[[#This Row],[2023/24 Reduction]] -> 0 | CL69: =SUM(Dataset[[#This Row],[2024/25 Reduction]],Dataset[[#This Row],[2024/25 From - Total]],Dataset[[#This Row],[2024/25 To - Total]]) -> 0 | CM69: =SUM(Dataset[[#This Row],[2025/26 Reduction]],Dataset[[#This Row],[2025/26 From - Total]],Dataset[[#This Row],[2025/26 To - Total]]) -> 0 | CN69: =SUM(Dataset[[#This Row],[2026/27 Reduction]],Dataset[[#This Row],[2026/27 From - Total]],Dataset[[#This Row],[2026/27 To - Total]]) -> 0 | CO69: =Dataset[[#This Row],[2023/24 Baseline]]+Dataset[[#This Row],[2023/24 Total change]] -> 0 | CP69: =Dataset[[#This Row],[2024/25 Baseline]]+Dataset[[#This Row],[2024/25 Total change]] -> 2 | CQ69: =Dataset[[#This Row],[2025/26 Baseline]]+Dataset[[#This Row],[2025/26 Total change]] -> 2 | CR69: =Dataset[[#This Row],[2026/27 Baseline]]+Dataset[[#This Row],[2026/27 Total change]] -> 2
A70: NAT|Non-transfer item | B70: 32|Fleet services (including government motor transport) | C70: 2024_25 | D70: MTEF2024 | E70: 32 | F70: 1 | G70: 2 | H70: 54232 | I70: 52 | J70: 32 | K70: 01 | L70: 02 | M70: 054232 | N70: 000052 | O70: 32|01|02 | P70: 01 | Q70: 01 | R70: 02 | S70: 19 | T70: 19 | U70: 01|01|02|19|19 | V70: National | W70: Forestry, Fisheries and the Environment | X70: Administration | Y70: Departmental Management | Z70: Non-transfer item | AA70: Current | AB70: Current payments | AC70: Goods and services | AD70: Fleet services (including government motor transport) | AE70: Fleet services (including government motor transport) | AF70: Economic development | AG70: Economic regulation and infrastructure | AH70: NAT | AI70: 0 | AJ70: 8 | AK70: 0 | AL70: 15 | AM70: 15 | AN70: 15 | AO70: 0 | AP70: 0 | AQ70: 94 | AR70: 98 | AS70: 102 | CB70: =Dataset[[#This Row],[2024/25 From - Spending review Topic 1]]+Dataset[[#This Row],[2024/25 From - Spending review Topic 2]]+Dataset[[#This Row],[2024/25 From - Spending review Topic 3]]+Dataset[[#This Row],[2024/25 From - Spending review Topic 4]]+Dataset[[#This Row],[2024/25 From - Other reallocations]] -> 0 | CC70: =Dataset[[#This Row],[2025/26 From - Spending review Topic 1]]+Dataset[[#This Row],[2025/26 From - Spending review Topic 2]]+Dataset[[#This Row],[2025/26 From - Spending review Topic 3]]+Dataset[[#This Row],[2025/26 From - Spending review Topic 4]]+Dataset[[#This Row],[2025/26 From - Other reallocations]] -> 0 | CD70: =Dataset[[#This Row],[2026/27 From - Spending review Topic 1]]+Dataset[[#This Row],[2026/27 From - Spending review Topic 2]]+Dataset[[#This Row],[2026/27 From - Spending review Topic 3]]+Dataset[[#This Row],[2026/27 From - Spending review Topic 4]]+Dataset[[#This Row],[2026/27 From - Other reallocations]] -> 0 | CE70: =Dataset[[#This Row],[2024/25 To - Spending review Topic 1]]+Dataset[[#This Row],[2024/25 To - Spending review Topic 2]]+Dataset[[#This Row],[2024/25 To - Spending review Topic 3]]+Dataset[[#This Row],[2024/25 To - Spending review Topic 4]]+Dataset[[#This Row],[2024/25 To - Other reallocations]] -> 0 | CF70: =Dataset[[#This Row],[2025/26 To - Spending review Topic 1]]+Dataset[[#This Row],[2025/26 To - Spending review Topic 2]]+Dataset[[#This Row],[2025/26 To - Spending review Topic 3]]+Dataset[[#This Row],[2025/26 To - Spending review Topic 4]]+Dataset[[#This Row],[2025/26 To - Other reallocations]] -> 0 | CG70: =Dataset[[#This Row],[2026/27 To - Spending review Topic 1]]+Dataset[[#This Row],[2026/27 To - Spending review Topic 2]]+Dataset[[#This Row],[2026/27 To - Spending review Topic 3]]+Dataset[[#This Row],[2026/27 To - Spending review Topic 4]]+Dataset[[#This Row],[2026/27 To - Other reallocations]] -> 0 | CH70: =Dataset[[#This Row],[2024/25 Reduction]]+Dataset[[#This Row],[2024/25 From - Total]] -> 0 | CI70: =Dataset[[#This Row],[2025/26 Reduction]]+Dataset[[#This Row],[2025/26 From - Total]] -> 0 | CJ70: =Dataset[[#This Row],[2026/27 Reduction]]+Dataset[[#This Row],[2026/27 From - Total]] -> 0 | CK70: =Dataset[[#This Row],[2023/24 Reduction]] -> 0 | CL70: =SUM(Dataset[[#This Row],[2024/25 Reduction]],Dataset[[#This Row],[2024/25 From - Total]],Dataset[[#This Row],[2024/25 To - Total]]) -> 0 | CM70: =SUM(Dataset[[#This Row],[2025/26 Reduction]],Dataset[[#This Row],[2025/26 From - Total]],Dataset[[#This Row],[2025/26 To - Total]]) -> 0 | CN70: =SUM(Dataset[[#This Row],[2026/27 Reduction]],Dataset[[#This Row],[2026/27 From - Total]],Dataset[[#This Row],[2026/27 To - Total]]) -> 0 | CO70: =Dataset[[#This Row],[2023/24 Baseline]]+Dataset[[#This Row],[2023/24 Total change]] -> 0 | CP70: =Dataset[[#This Row],[2024/25 Baseline]]+Dataset[[#This Row],[2024/25 Total change]] -> 94 | CQ70: =Dataset[[#This Row],[2025/26 Baseline]]+Dataset[[#This Row],[2025/26 Total change]] -> 98 | CR70: =Dataset[[#This Row],[2026/27 Baseline]]+Dataset[[#This Row],[2026/27 Total change]] -> 102
A71: NAT|Non-transfer item | B71: 32|Housing | C71: 2024_25 | D71: MTEF2024 | E71: 32 | F71: 1 | G71: 2 | H71: 54233 | I71: 53 | J71: 32 | K71: 01 | L71: 02 | M71: 054233 | N71: 000053 | O71: 32|01|02 | P71: 01 | Q71: 01 | R71: 02 | S71: 20 | T71: 20 | U71: 01|01|02|20|20 | V71: National | W71: Forestry, Fisheries and the Environment | X71: Administration | Y71: Corporate Management Services | Z71: Non-transfer item | AA71: Current | AB71: Current payments | AC71: Goods and services | AD71: Housing | AE71: Housing | AF71: Economic development | AG71: Economic regulation and infrastructure | AH71: NAT | AI71: 0 | AJ71: 0 | AK71: 0 | AL71: 0 | AM71: 0 | AN71: 0 | AO71: 0 | AP71: 0 | AQ71: 0 | AR71: 0 | AS71: 0 | CB71: =Dataset[[#This Row],[2024/25 From - Spending review Topic 1]]+Dataset[[#This Row],[2024/25 From - Spending review Topic 2]]+Dataset[[#This Row],[2024/25 From - Spending review Topic 3]]+Dataset[[#This Row],[2024/25 From - Spending review Topic 4]]+Dataset[[#This Row],[2024/25 From - Other reallocations]] -> 0 | CC71: =Dataset[[#This Row],[2025/26 From - Spending review Topic 1]]+Dataset[[#This Row],[2025/26 From - Spending review Topic 2]]+Dataset[[#This Row],[2025/26 From - Spending review Topic 3]]+Dataset[[#This Row],[2025/26 From - Spending review Topic 4]]+Dataset[[#This Row],[2025/26 From - Other reallocations]] -> 0 | CD71: =Dataset[[#This Row],[2026/27 From - Spending review Topic 1]]+Dataset[[#This Row],[2026/27 From - Spending review Topic 2]]+Dataset[[#This Row],[2026/27 From - Spending review Topic 3]]+Dataset[[#This Row],[2026/27 From - Spending review Topic 4]]+Dataset[[#This Row],[2026/27 From - Other reallocations]] -> 0 | CE71: =Dataset[[#This Row],[2024/25 To - Spending review Topic 1]]+Dataset[[#This Row],[2024/25 To - Spending review Topic 2]]+Dataset[[#This Row],[2024/25 To - Spending review Topic 3]]+Dataset[[#This Row],[2024/25 To - Spending review Topic 4]]+Dataset[[#This Row],[2024/25 To - Other reallocations]] -> 0 | CF71: =Dataset[[#This Row],[2025/26 To - Spending review Topic 1]]+Dataset[[#This Row],[2025/26 To - Spending review Topic 2]]+Dataset[[#This Row],[2025/26 To - Spending review Topic 3]]+Dataset[[#This Row],[2025/26 To - Spending review Topic 4]]+Dataset[[#This Row],[2025/26 To - Other reallocations]] -> 0 | CG71: =Dataset[[#This Row],[2026/27 To - Spending review Topic 1]]+Dataset[[#This Row],[2026/27 To - Spending review Topic 2]]+Dataset[[#This Row],[2026/27 To - Spending review Topic 3]]+Dataset[[#This Row],[2026/27 To - Spending review Topic 4]]+Dataset[[#This Row],[2026/27 To - Other reallocations]] -> 0 | CH71: =Dataset[[#This Row],[2024/25 Reduction]]+Dataset[[#This Row],[2024/25 From - Total]] -> 0 | CI71: =Dataset[[#This Row],[2025/26 Reduction]]+Dataset[[#This Row],[2025/26 From - Total]] -> 0 | CJ71: =Dataset[[#This Row],[2026/27 Reduction]]+Dataset[[#This Row],[2026/27 From - Total]] -> 0 | CK71: =Dataset[[#This Row],[2023/24 Reduction]] -> 0 | CL71: =SUM(Dataset[[#This Row],[2024/25 Reduction]],Dataset[[#This Row],[2024/25 From - Total]],Dataset[[#This Row],[2024/25 To - Total]]) -> 0 | CM71: =SUM(Dataset[[#This Row],[2025/26 Reduction]],Dataset[[#This Row],[2025/26 From - Total]],Dataset[[#This Row],[2025/26 To - Total]]) -> 0 | CN71: =SUM(Dataset[[#This Row],[2026/27 Reduction]],Dataset[[#This Row],[2026/27 From - Total]],Dataset[[#This Row],[2026/27 To - Total]]) -> 0 | CO71: =Dataset[[#This Row],[2023/24 Baseline]]+Dataset[[#This Row],[2023/24 Total change]] -> 0 | CP71: =Dataset[[#This Row],[2024/25 Baseline]]+Dataset[[#This Row],[2024/25 Total change]] -> 0 | CQ71: =Dataset[[#This Row],[2025/26 Baseline]]+Dataset[[#This Row],[2025/26 Total change]] -> 0 | CR71: =Dataset[[#This Row],[2026/27 Baseline]]+Dataset[[#This Row],[2026/27 Total change]] -> 0
A72: NAT|Non-transfer item | B72: 32|Inventory: Clothing material and accessories | C72: 2024_25 | D72: MTEF2024 | E72: 32 | F72: 1 | G72: 2 | H72: 54234 | I72: 54 | J72: 32 | K72: 01 | L72: 02 | M72: 054234 | N72: 000054 | O72: 32|01|02 | P72: 01 | Q72: 01 | R72: 02 | S72: 21 | T72: 21 | U72: 01|01|02|21|21 | V72: National | W72: Forestry, Fisheries and the Environment | X72: Administration | Y72: Corporate Management Services | Z72: Non-transfer item | AA72: Current | AB72: Current payments | AC72: Goods and services | AD72: Inventory: Clothing material and accessories | AE72: Inventory: Clothing material and accessories | AF72: Economic development | AG72: Economic regulation and infrastructure | AH72: NAT | AI72: 0 | AJ72: 0 | AK72: 0 | AL72: 0 | AM72: 0 | AN72: 0 | AO72: 0 | AP72: 0 | AQ72: 0 | AR72: 0 | AS72: 0 | CB72: =Dataset[[#This Row],[2024/25 From - Spending review Topic 1]]+Dataset[[#This Row],[2024/25 From - Spending review Topic 2]]+Dataset[[#This Row],[2024/25 From - Spending review Topic 3]]+Dataset[[#This Row],[2024/25 From - Spending review Topic 4]]+Dataset[[#This Row],[2024/25 From - Other reallocations]] -> 0 | CC72: =Dataset[[#This Row],[2025/26 From - Spending review Topic 1]]+Dataset[[#This Row],[2025/26 From - Spending review Topic 2]]+Dataset[[#This Row],[2025/26 From - Spending review Topic 3]]+Dataset[[#This Row],[2025/26 From - Spending review Topic 4]]+Dataset[[#This Row],[2025/26 From - Other reallocations]] -> 0 | CD72: =Dataset[[#This Row],[2026/27 From - Spending review Topic 1]]+Dataset[[#This Row],[2026/27 From - Spending review Topic 2]]+Dataset[[#This Row],[2026/27 From - Spending review Topic 3]]+Dataset[[#This Row],[2026/27 From - Spending review Topic 4]]+Dataset[[#This Row],[2026/27 From - Other reallocations]] -> 0 | CE72: =Dataset[[#This Row],[2024/25 To - Spending review Topic 1]]+Dataset[[#This Row],[2024/25 To - Spending review Topic 2]]+Dataset[[#This Row],[2024/25 To - Spending review Topic 3]]+Dataset[[#This Row],[2024/25 To - Spending review Topic 4]]+Dataset[[#This Row],[2024/25 To - Other reallocations]] -> 0 | CF72: =Dataset[[#This Row],[2025/26 To - Spending review Topic 1]]+Dataset[[#This Row],[2025/26 To - Spending review Topic 2]]+Dataset[[#This Row],[2025/26 To - Spending review Topic 3]]+Dataset[[#This Row],[2025/26 To - Spending review Topic 4]]+Dataset[[#This Row],[2025/26 To - Other reallocations]] -> 0 | CG72: =Dataset[[#This Row],[2026/27 To - Spending review Topic 1]]+Dataset[[#This Row],[2026/27 To - Spending review Topic 2]]+Dataset[[#This Row],[2026/27 To - Spending review Topic 3]]+Dataset[[#This Row],[2026/27 To - Spending review Topic 4]]+Dataset[[#This Row],[2026/27 To - Other reallocations]] -> 0 | CH72: =Dataset[[#This Row],[2024/25 Reduction]]+Dataset[[#This Row],[2024/25 From - Total]] -> 0 | CI72: =Dataset[[#This Row],[2025/26 Reduction]]+Dataset[[#This Row],[2025/26 From - Total]] -> 0 | CJ72: =Dataset[[#This Row],[2026/27 Reduction]]+Dataset[[#This Row],[2026/27 From - Total]] -> 0 | CK72: =Dataset[[#This Row],[2023/24 Reduction]] -> 0 | CL72: =SUM(Dataset[[#This Row],[2024/25 Reduction]],Dataset[[#This Row],[2024/25 From - Total]],Dataset[[#This Row],[2024/25 To - Total]]) -> 0 | CM72: =SUM(Dataset[[#This Row],[2025/26 Reduction]],Dataset[[#This Row],[2025/26 From - Total]],Dataset[[#This Row],[2025/26 To - Total]]) -> 0 | CN72: =SUM(Dataset[[#This Row],[2026/27 Reduction]],Dataset[[#This Row],[2026/27 From - Total]],Dataset[[#This Row],[2026/27 To - Total]]) -> 0 | CO72: =Dataset[[#This Row],[2023/24 Baseline]]+Dataset[[#This Row],[2023/24 Total change]] -> 0 | CP72: =Dataset[[#This Row],[2024/25 Baseline]]+Dataset[[#This Row],[2024/25 Total change]] -> 0 | CQ72: =Dataset[[#This Row],[2025/26 Baseline]]+Dataset[[#This Row],[2025/26 Total change]] -> 0 | CR72: =Dataset[[#This Row],[2026/27 Baseline]]+Dataset[[#This Row],[2026/27 Total change]] -> 0
A73: NAT|Non-transfer item | B73: 32|Inventory: Farming supplies | C73: 2024_25 | D73: MTEF2024 | E73: 32 | F73: 1 | G73: 2 | H73: 54235 | I73: 55 | J73: 32 | K73: 01 | L73: 02 | M73: 054235 | N73: 000055 | O73: 32|01|02 | P73: 01 | Q73: 01 | R73: 02 | S73: 22 | T73: 22 | U73: 01|01|02|22|22 | V73: National | W73: Forestry, Fisheries and the Environment | X73: Administration | Y73: Corporate Management Services | Z73: Non-transfer item | AA73: Current | AB73: Current payments | AC73: Goods and services | AD73: Inventory: Farming supplies | AE73: Inventory: Farming supplies | AF73: Economic development | AG73: Economic regulation and infrastructure | AH73: NAT | AI73: 0 | AJ73: 0 | AK73: 0 | AL73: 0 | AM73: 0 | AN73: 0 | AO73: 0 | AP73: 0 | AQ73: 0 | AR73: 0 | AS73: 0 | CB73: =Dataset[[#This Row],[2024/25 From - Spending review Topic 1]]+Dataset[[#This Row],[2024/25 From - Spending review Topic 2]]+Dataset[[#This Row],[2024/25 From - Spending review Topic 3]]+Dataset[[#This Row],[2024/25 From - Spending review Topic 4]]+Dataset[[#This Row],[2024/25 From - Other reallocations]] -> 0 | CC73: =Dataset[[#This Row],[2025/26 From - Spending review Topic 1]]+Dataset[[#This Row],[2025/26 From - Spending review Topic 2]]+Dataset[[#This Row],[2025/26 From - Spending review Topic 3]]+Dataset[[#This Row],[2025/26 From - Spending review Topic 4]]+Dataset[[#This Row],[2025/26 From - Other reallocations]] -> 0 | CD73: =Dataset[[#This Row],[2026/27 From - Spending review Topic 1]]+Dataset[[#This Row],[2026/27 From - Spending review Topic 2]]+Dataset[[#This Row],[2026/27 From - Spending review Topic 3]]+Dataset[[#This Row],[2026/27 From - Spending review Topic 4]]+Dataset[[#This Row],[2026/27 From - Other reallocations]] -> 0 | CE73: =Dataset[[#This Row],[2024/25 To - Spending review Topic 1]]+Dataset[[#This Row],[2024/25 To - Spending review Topic 2]]+Dataset[[#This Row],[2024/25 To - Spending review Topic 3]]+Dataset[[#This Row],[2024/25 To - Spending review Topic 4]]+Dataset[[#This Row],[2024/25 To - Other reallocations]] -> 0 | CF73: =Dataset[[#This Row],[2025/26 To - Spending review Topic 1]]+Dataset[[#This Row],[2025/26 To - Spending review Topic 2]]+Dataset[[#This Row],[2025/26 To - Spending review Topic 3]]+Dataset[[#This Row],[2025/26 To - Spending review Topic 4]]+Dataset[[#This Row],[2025/26 To - Other reallocations]] -> 0 | CG73: =Dataset[[#This Row],[2026/27 To - Spending review Topic 1]]+Dataset[[#This Row],[2026/27 To - Spending review Topic 2]]+Dataset[[#This Row],[2026/27 To - Spending review Topic 3]]+Dataset[[#This Row],[2026/27 To - Spending review Topic 4]]+Dataset[[#This Row],[2026/27 To - Other reallocations]] -> 0 | CH73: =Dataset[[#This Row],[2024/25 Reduction]]+Dataset[[#This Row],[2024/25 From - Total]] -> 0 | CI73: =Dataset[[#This Row],[2025/26 Reduction]]+Dataset[[#This Row],[2025/26 From - Total]] -> 0 | CJ73: =Dataset[[#This Row],[2026/27 Reduction]]+Dataset[[#This Row],[2026/27 From - Total]] -> 0 | CK73: =Dataset[[#This Row],[2023/24 Reduction]] -> 0 | CL73: =SUM(Dataset[[#This Row],[2024/25 Reduction]],Dataset[[#This Row],[2024/25 From - Total]],Dataset[[#This Row],[2024/25 To - Total]]) -> 0 | CM73: =SUM(Dataset[[#This Row],[2025/26 Reduction]],Dataset[[#This Row],[2025/26 From - Total]],Dataset[[#This Row],[2025/26 To - Total]]) -> 0 | CN73: =SUM(Dataset[[#This Row],[2026/27 Reduction]],Dataset[[#This Row],[2026/27 From - Total]],Dataset[[#This Row],[2026/27 To - Total]]) -> 0 | CO73: =Dataset[[#This Row],[2023/24 Baseline]]+Dataset[[#This Row],[2023/24 Total change]] -> 0 | CP73: =Dataset[[#This Row],[2024/25 Baseline]]+Dataset[[#This Row],[2024/25 Total change]] -> 0 | CQ73: =Dataset[[#This Row],[2025/26 Baseline]]+Dataset[[#This Row],[2025/26 Total change]] -> 0 | CR73: =Dataset[[#This Row],[2026/27 Baseline]]+Dataset[[#This Row],[2026/27 Total change]] -> 0
A74: NAT|Non-transfer item | B74: 32|Inventory: Food and food supplies | C74: 2024_25 | D74: MTEF2024 | E74: 32 | F74: 1 | G74: 2 | H74: 54236 | I74: 56 | J74: 32 | K74: 01 | L74: 02 | M74: 054236 | N74: 000056 | O74: 32|01|02 | P74: 01 | Q74: 01 | R74: 02 | S74: 23 | T74: 23 | U74: 01|01|02|23|23 | V74: National | W74: Forestry, Fisheries and the Environment | X74: Administration | Y74: Corporate Management Services | Z74: Non-transfer item | AA74: Current | AB74: Current payments | AC74: Goods and services | AD74: Inventory: Food and food supplies | AE74: Inventory: Food and food supplies | AF74: Economic development | AG74: Economic regulation and infrastructure | AH74: NAT | AI74: 0 | AJ74: 0 | AK74: 0 | AL74: 0 | AM74: 0 | AN74: 0 | AO74: 0 | AP74: 0 | AQ74: 0 | AR74: 0 | AS74: 0 | CB74: =Dataset[[#This Row],[2024/25 From - Spending review Topic 1]]+Dataset[[#This Row],[2024/25 From - Spending review Topic 2]]+Dataset[[#This Row],[2024/25 From - Spending review Topic 3]]+Dataset[[#This Row],[2024/25 From - Spending review Topic 4]]+Dataset[[#This Row],[2024/25 From - Other reallocations]] -> 0 | CC74: =Dataset[[#This Row],[2025/26 From - Spending review Topic 1]]+Dataset[[#This Row],[2025/26 From - Spending review Topic 2]]+Dataset[[#This Row],[2025/26 From - Spending review Topic 3]]+Dataset[[#This Row],[2025/26 From - Spending review Topic 4]]+Dataset[[#This Row],[2025/26 From - Other reallocations]] -> 0 | CD74: =Dataset[[#This Row],[2026/27 From - Spending review Topic 1]]+Dataset[[#This Row],[2026/27 From - Spending review Topic 2]]+Dataset[[#This Row],[2026/27 From - Spending review Topic 3]]+Dataset[[#This Row],[2026/27 From - Spending review Topic 4]]+Dataset[[#This Row],[2026/27 From - Other reallocations]] -> 0 | CE74: =Dataset[[#This Row],[2024/25 To - Spending review Topic 1]]+Dataset[[#This Row],[2024/25 To - Spending review Topic 2]]+Dataset[[#This Row],[2024/25 To - Spending review Topic 3]]+Dataset[[#This Row],[2024/25 To - Spending review Topic 4]]+Dataset[[#This Row],[2024/25 To - Other reallocations]] -> 0 | CF74: =Dataset[[#This Row],[2025/26 To - Spending review Topic 1]]+Dataset[[#This Row],[2025/26 To - Spending review Topic 2]]+Dataset[[#This Row],[2025/26 To - Spending review Topic 3]]+Dataset[[#This Row],[2025/26 To - Spending review Topic 4]]+Dataset[[#This Row],[2025/26 To - Other reallocations]] -> 0 | CG74: =Dataset[[#This Row],[2026/27 To - Spending review Topic 1]]+Dataset[[#This Row],[2026/27 To - Spending review Topic 2]]+Dataset[[#This Row],[2026/27 To - Spending review Topic 3]]+Dataset[[#This Row],[2026/27 To - Spending review Topic 4]]+Dataset[[#This Row],[2026/27 To - Other reallocations]] -> 0 | CH74: =Dataset[[#This Row],[2024/25 Reduction]]+Dataset[[#This Row],[2024/25 From - Total]] -> 0 | CI74: =Dataset[[#This Row],[2025/26 Reduction]]+Dataset[[#This Row],[2025/26 From - Total]] -> 0 | CJ74: =Dataset[[#This Row],[2026/27 Reduction]]+Dataset[[#This Row],[2026/27 From - Total]] -> 0 | CK74: =Dataset[[#This Row],[2023/24 Reduction]] -> 0 | CL74: =SUM(Dataset[[#This Row],[2024/25 Reduction]],Dataset[[#This Row],[2024/25 From - Total]],Dataset[[#This Row],[2024/25 To - Total]]) -> 0 | CM74: =SUM(Dataset[[#This Row],[2025/26 Reduction]],Dataset[[#This Row],[2025/26 From - Total]],Dataset[[#This Row],[2025/26 To - Total]]) -> 0 | CN74: =SUM(Dataset[[#This Row],[2026/27 Reduction]],Dataset[[#This Row],[2026/27 From - Total]],Dataset[[#This Row],[2026/27 To - Total]]) -> 0 | CO74: =Dataset[[#This Row],[2023/24 Baseline]]+Dataset[[#This Row],[2023/24 Total change]] -> 0 | CP74: =Dataset[[#This Row],[2024/25 Baseline]]+Dataset[[#This Row],[2024/25 Total change]] -> 0 | CQ74: =Dataset[[#This Row],[2025/26 Baseline]]+Dataset[[#This Row],[2025/26 Total change]] -> 0 | CR74: =Dataset[[#This Row],[2026/27 Baseline]]+Dataset[[#This Row],[2026/27 Total change]] -> 0
A75: NAT|Non-transfer item | B75: 32|Inventory: Fuel, oil and gas | C75: 2024_25 | D75: MTEF2024 | E75: 32 | F75: 1 | G75: 2 | H75: 54237 | I75: 57 | J75: 32 | K75: 01 | L75: 02 | M75: 054237 | N75: 000057 | O75: 32|01|02 | P75: 01 | Q75: 01 | R75: 02 | S75: 24 | T75: 24 | U75: 01|01|02|24|24 | V75: National | W75: Forestry, Fisheries and the Environment | X75: Administration | Y75: Corporate Management Services | Z75: Non-transfer item | AA75: Current | AB75: Current payments | AC75: Goods and services | AD75: Inventory: Fuel, oil and gas | AE75: Inventory: Fuel, oil and gas | AF75: Economic development | AG75: Economic regulation and infrastructure | AH75: NAT | AI75: 0 | AJ75: 0 | AK75: 0 | AL75: 0 | AM75: 0 | AN75: 0 | AO75: 0 | AP75: 0 | AQ75: 0 | AR75: 0 | AS75: 0 | CB75: =Dataset[[#This Row],[2024/25 From - Spending review Topic 1]]+Dataset[[#This Row],[2024/25 From - Spending review Topic 2]]+Dataset[[#This Row],[2024/25 From - Spending review Topic 3]]+Dataset[[#This Row],[2024/25 From - Spending review Topic 4]]+Dataset[[#This Row],[2024/25 From - Other reallocations]] -> 0 | CC75: =Dataset[[#This Row],[2025/26 From - Spending review Topic 1]]+Dataset[[#This Row],[2025/26 From - Spending review Topic 2]]+Dataset[[#This Row],[2025/26 From - Spending review Topic 3]]+Dataset[[#This Row],[2025/26 From - Spending review Topic 4]]+Dataset[[#This Row],[2025/26 From - Other reallocations]] -> 0 | CD75: =Dataset[[#This Row],[2026/27 From - Spending review Topic 1]]+Dataset[[#This Row],[2026/27 From - Spending review Topic 2]]+Dataset[[#This Row],[2026/27 From - Spending review Topic 3]]+Dataset[[#This Row],[2026/27 From - Spending review Topic 4]]+Dataset[[#This Row],[2026/27 From - Other reallocations]] -> 0 | CE75: =Dataset[[#This Row],[2024/25 To - Spending review Topic 1]]+Dataset[[#This Row],[2024/25 To - Spending review Topic 2]]+Dataset[[#This Row],[2024/25 To - Spending review Topic 3]]+Dataset[[#This Row],[2024/25 To - Spending review Topic 4]]+Dataset[[#This Row],[2024/25 To - Other reallocations]] -> 0 | CF75: =Dataset[[#This Row],[2025/26 To - Spending review Topic 1]]+Dataset[[#This Row],[2025/26 To - Spending review Topic 2]]+Dataset[[#This Row],[2025/26 To - Spending review Topic 3]]+Dataset[[#This Row],[2025/26 To - Spending review Topic 4]]+Dataset[[#This Row],[2025/26 To - Other reallocations]] -> 0 | CG75: =Dataset[[#This Row],[2026/27 To - Spending review Topic 1]]+Dataset[[#This Row],[2026/27 To - Spending review Topic 2]]+Dataset[[#This Row],[2026/27 To - Spending review Topic 3]]+Dataset[[#This Row],[2026/27 To - Spending review Topic 4]]+Dataset[[#This Row],[2026/27 To - Other reallocations]] -> 0 | CH75: =Dataset[[#This Row],[2024/25 Reduction]]+Dataset[[#This Row],[2024/25 From - Total]] -> 0 | CI75: =Dataset[[#This Row],[2025/26 Reduction]]+Dataset[[#This Row],[2025/26 From - Total]] -> 0 | CJ75: =Dataset[[#This Row],[2026/27 Reduction]]+Dataset[[#This Row],[2026/27 From - Total]] -> 0 | CK75: =Dataset[[#This Row],[2023/24 Reduction]] -> 0 | CL75: =SUM(Dataset[[#This Row],[2024/25 Reduction]],Dataset[[#This Row],[2024/25 From - Total]],Dataset[[#This Row],[2024/25 To - Total]]) -> 0 | CM75: =SUM(Dataset[[#This Row],[2025/26 Reduction]],Dataset[[#This Row],[2025/26 From - Total]],Dataset[[#This Row],[2025/26 To - Total]]) -> 0 | CN75: =SUM(Dataset[[#This Row],[2026/27 Reduction]],Dataset[[#This Row],[2026/27 From - Total]],Dataset[[#This Row],[2026/27 To - Total]]) -> 0 | CO75: =Dataset[[#This Row],[2023/24 Baseline]]+Dataset[[#This Row],[2023/24 Total change]] -> 0 | CP75: =Dataset[[#This Row],[2024/25 Baseline]]+Dataset[[#This Row],[2024/25 Total change]] -> 0 | CQ75: =Dataset[[#This Row],[2025/26 Baseline]]+Dataset[[#This Row],[2025/26 Total change]] -> 0 | CR75: =Dataset[[#This Row],[2026/27 Baseline]]+Dataset[[#This Row],[2026/27 Total change]] -> 0
A76: NAT|Non-transfer item | B76: 32|Inventory: Learner and teacher support material | C76: 2024_25 | D76: MTEF2024 | E76: 32 | F76: 1 | G76: 2 | H76: 54238 | I76: 58 | J76: 32 | K76: 01 | L76: 02 | M76: 054238 | N76: 000058 | O76: 32|01|02 | P76: 01 | Q76: 01 | R76: 02 | S76: 25 | T76: 25 | U76: 01|01|02|25|25 | V76: National | W76: Forestry, Fisheries and the Environment | X76: Administration | Y76: Corporate Management Services | Z76: Non-transfer item | AA76: Current | AB76: Current payments | AC76: Goods and services | AD76: Inventory: Learner and teacher support material | AE76: Inventory: Learner and teacher support material | AF76: Economic development | AG76: Economic regulation and infrastructure | AH76: NAT | AI76: 0 | AJ76: 0 | AK76: 0 | AL76: 0 | AM76: 0 | AN76: 0 | AO76: 0 | AP76: 0 | AQ76: 0 | AR76: 0 | AS76: 0 | CB76: =Dataset[[#This Row],[2024/25 From - Spending review Topic 1]]+Dataset[[#This Row],[2024/25 From - Spending review Topic 2]]+Dataset[[#This Row],[2024/25 From - Spending review Topic 3]]+Dataset[[#This Row],[2024/25 From - Spending review Topic 4]]+Dataset[[#This Row],[2024/25 From - Other reallocations]] -> 0 | CC76: =Dataset[[#This Row],[2025/26 From - Spending review Topic 1]]+Dataset[[#This Row],[2025/26 From - Spending review Topic 2]]+Dataset[[#This Row],[2025/26 From - Spending review Topic 3]]+Dataset[[#This Row],[2025/26 From - Spending review Topic 4]]+Dataset[[#This Row],[2025/26 From - Other reallocations]] -> 0 | CD76: =Dataset[[#This Row],[2026/27 From - Spending review Topic 1]]+Dataset[[#This Row],[2026/27 From - Spending review Topic 2]]+Dataset[[#This Row],[2026/27 From - Spending review Topic 3]]+Dataset[[#This Row],[2026/27 From - Spending review Topic 4]]+Dataset[[#This Row],[2026/27 From - Other reallocations]] -> 0 | CE76: =Dataset[[#This Row],[2024/25 To - Spending review Topic 1]]+Dataset[[#This Row],[2024/25 To - Spending review Topic 2]]+Dataset[[#This Row],[2024/25 To - Spending review Topic 3]]+Dataset[[#This Row],[2024/25 To - Spending review Topic 4]]+Dataset[[#This Row],[2024/25 To - Other reallocations]] -> 0 | CF76: =Dataset[[#This Row],[2025/26 To - Spending review Topic 1]]+Dataset[[#This Row],[2025/26 To - Spending review Topic 2]]+Dataset[[#This Row],[2025/26 To - Spending review Topic 3]]+Dataset[[#This Row],[2025/26 To - Spending review Topic 4]]+Dataset[[#This Row],[2025/26 To - Other reallocations]] -> 0 | CG76: =Dataset[[#This Row],[2026/27 To - Spending review Topic 1]]+Dataset[[#This Row],[2026/27 To - Spending review Topic 2]]+Dataset[[#This Row],[2026/27 To - Spending review Topic 3]]+Dataset[[#This Row],[2026/27 To - Spending review Topic 4]]+Dataset[[#This Row],[2026/27 To - Other reallocations]] -> 0 | CH76: =Dataset[[#This Row],[2024/25 Reduction]]+Dataset[[#This Row],[2024/25 From - Total]] -> 0 | CI76: =Dataset[[#This Row],[2025/26 Reduction]]+Dataset[[#This Row],[2025/26 From - Total]] -> 0 | CJ76: =Dataset[[#This Row],[2026/27 Reduction]]+Dataset[[#This Row],[2026/27 From - Total]] -> 0 | CK76: =Dataset[[#This Row],[2023/24 Reduction]] -> 0 | CL76: =SUM(Dataset[[#This Row],[2024/25 Reduction]],Dataset[[#This Row],[2024/25 From - Total]],Dataset[[#This Row],[2024/25 To - Total]]) -> 0 | CM76: =SUM(Dataset[[#This Row],[2025/26 Reduction]],Dataset[[#This Row],[2025/26 From - Total]],Dataset[[#This Row],[2025/26 To - Total]]) -> 0 | CN76: =SUM(Dataset[[#This Row],[2026/27 Reduction]],Dataset[[#This Row],[2026/27 From - Total]],Dataset[[#This Row],[2026/27 To - Total]]) -> 0 | CO76: =Dataset[[#This Row],[2023/24 Baseline]]+Dataset[[#This Row],[2023/24 Total change]] -> 0 | CP76: =Dataset[[#This Row],[2024/25 Baseline]]+Dataset[[#This Row],[2024/25 Total change]] -> 0 | CQ76: =Dataset[[#This Row],[2025/26 Baseline]]+Dataset[[#This Row],[2025/26 Total change]] -> 0 | CR76: =Dataset[[#This Row],[2026/27 Baseline]]+Dataset[[#This Row],[2026/27 Total change]] -> 0
A77: NAT|Non-transfer item | B77: 32|Inventory: Materials and supplies | C77: 2024_25 | D77: MTEF2024 | E77: 32 | F77: 1 | G77: 2 | H77: 54239 | I77: 59 | J77: 32 | K77: 01 | L77: 02 | M77: 054239 | N77: 000059 | O77: 32|01|02 | P77: 01 | Q77: 01 | R77: 02 | S77: 26 | T77: 26 | U77: 01|01|02|26|26 | V77: National | W77: Forestry, Fisheries and the Environment | X77: Administration | Y77: Corporate Management Services | Z77: Non-transfer item | AA77: Current | AB77: Current payments | AC77: Goods and services | AD77: Inventory: Materials and supplies | AE77: Inventory: Materials and supplies | AF77: Economic development | AG77: Economic regulation and infrastructure | AH77: NAT | AI77: 0 | AJ77: 0 | AK77: 0 | AL77: 0 | AM77: 0 | AN77: 0 | AO77: 0 | AP77: 0 | AQ77: 0 | AR77: 0 | AS77: 0 | CB77: =Dataset[[#This Row],[2024/25 From - Spending review Topic 1]]+Dataset[[#This Row],[2024/25 From - Spending review Topic 2]]+Dataset[[#This Row],[2024/25 From - Spending review Topic 3]]+Dataset[[#This Row],[2024/25 From - Spending review Topic 4]]+Dataset[[#This Row],[2024/25 From - Other reallocations]] -> 0 | CC77: =Dataset[[#This Row],[2025/26 From - Spending review Topic 1]]+Dataset[[#This Row],[2025/26 From - Spending review Topic 2]]+Dataset[[#This Row],[2025/26 From - Spending review Topic 3]]+Dataset[[#This Row],[2025/26 From - Spending review Topic 4]]+Dataset[[#This Row],[2025/26 From - Other reallocations]] -> 0 | CD77: =Dataset[[#This Row],[2026/27 From - Spending review Topic 1]]+Dataset[[#This Row],[2026/27 From - Spending review Topic 2]]+Dataset[[#This Row],[2026/27 From - Spending review Topic 3]]+Dataset[[#This Row],[2026/27 From - Spending review Topic 4]]+Dataset[[#This Row],[2026/27 From - Other reallocations]] -> 0 | CE77: =Dataset[[#This Row],[2024/25 To - Spending review Topic 1]]+Dataset[[#This Row],[2024/25 To - Spending review Topic 2]]+Dataset[[#This Row],[2024/25 To - Spending review Topic 3]]+Dataset[[#This Row],[2024/25 To - Spending review Topic 4]]+Dataset[[#This Row],[2024/25 To - Other reallocations]] -> 0 | CF77: =Dataset[[#This Row],[2025/26 To - Spending review Topic 1]]+Dataset[[#This Row],[2025/26 To - Spending review Topic 2]]+Dataset[[#This Row],[2025/26 To - Spending review Topic 3]]+Dataset[[#This Row],[2025/26 To - Spending review Topic 4]]+Dataset[[#This Row],[2025/26 To - Other reallocations]] -> 0 | CG77: =Dataset[[#This Row],[2026/27 To - Spending review Topic 1]]+Dataset[[#This Row],[2026/27 To - Spending review Topic 2]]+Dataset[[#This Row],[2026/27 To - Spending review Topic 3]]+Dataset[[#This Row],[2026/27 To - Spending review Topic 4]]+Dataset[[#This Row],[2026/27 To - Other reallocations]] -> 0 | CH77: =Dataset[[#This Row],[2024/25 Reduction]]+Dataset[[#This Row],[2024/25 From - Total]] -> 0 | CI77: =Dataset[[#This Row],[2025/26 Reduction]]+Dataset[[#This Row],[2025/26 From - Total]] -> 0 | CJ77: =Dataset[[#This Row],[2026/27 Reduction]]+Dataset[[#This Row],[2026/27 From - Total]] -> 0 | CK77: =Dataset[[#This Row],[2023/24 Reduction]] -> 0 | CL77: =SUM(Dataset[[#This Row],[2024/25 Reduction]],Dataset[[#This Row],[2024/25 From - Total]],Dataset[[#This Row],[2024/25 To - Total]]) -> 0 | CM77: =SUM(Dataset[[#This Row],[2025/26 Reduction]],Dataset[[#This Row],[2025/26 From - Total]],Dataset[[#This Row],[2025/26 To - Total]]) -> 0 | CN77: =SUM(Dataset[[#This Row],[2026/27 Reduction]],Dataset[[#This Row],[2026/27 From - Total]],Dataset[[#This Row],[2026/27 To - Total]]) -> 0 | CO77: =Dataset[[#This Row],[2023/24 Baseline]]+Dataset[[#This Row],[2023/24 Total change]] -> 0 | CP77: =Dataset[[#This Row],[2024/25 Baseline]]+Dataset[[#This Row],[2024/25 Total change]] -> 0 | CQ77: =Dataset[[#This Row],[2025/26 Baseline]]+Dataset[[#This Row],[2025/26 Total change]] -> 0 | CR77: =Dataset[[#This Row],[2026/27 Baseline]]+Dataset[[#This Row],[2026/27 Total change]] -> 0
A78: NAT|Non-transfer item | B78: 32|Inventory: Medical supplies | C78: 2024_25 | D78: MTEF2024 | E78: 32 | F78: 1 | G78: 2 | H78: 54240 | I78: 60 | J78: 32 | K78: 01 | L78: 02 | M78: 054240 | N78: 000060 | O78: 32|01|02 | P78: 01 | Q78: 01 | R78: 02 | S78: 27 | T78: 27 | U78: 01|01|02|27|27 | V78: National | W78: Forestry, Fisheries and the Environment | X78: Administration | Y78: Corporate Management Services | Z78: Non-transfer item | AA78: Current | AB78: Current payments | AC78: Goods and services | AD78: Inventory: Medical supplies | AE78: Inventory: Medical supplies | AF78: Economic development | AG78: Economic regulation and infrastructure | AH78: NAT | AI78: 0 | AJ78: 0 | AK78: 0 | AL78: 0 | AM78: 0 | AN78: 0 | AO78: 0 | AP78: 0 | AQ78: 0 | AR78: 0 | AS78: 0 | CB78: =Dataset[[#This Row],[2024/25 From - Spending review Topic 1]]+Dataset[[#This Row],[2024/25 From - Spending review Topic 2]]+Dataset[[#This Row],[2024/25 From - Spending review Topic 3]]+Dataset[[#This Row],[2024/25 From - Spending review Topic 4]]+Dataset[[#This Row],[2024/25 From - Other reallocations]] -> 0 | CC78: =Dataset[[#This Row],[2025/26 From - Spending review Topic 1]]+Dataset[[#This Row],[2025/26 From - Spending review Topic 2]]+Dataset[[#This Row],[2025/26 From - Spending review Topic 3]]+Dataset[[#This Row],[2025/26 From - Spending review Topic 4]]+Dataset[[#This Row],[2025/26 From - Other reallocations]] -> 0 | CD78: =Dataset[[#This Row],[2026/27 From - Spending review Topic 1]]+Dataset[[#This Row],[2026/27 From - Spending review Topic 2]]+Dataset[[#This Row],[2026/27 From - Spending review Topic 3]]+Dataset[[#This Row],[2026/27 From - Spending review Topic 4]]+Dataset[[#This Row],[2026/27 From - Other reallocations]] -> 0 | CE78: =Dataset[[#This Row],[2024/25 To - Spending review Topic 1]]+Dataset[[#This Row],[2024/25 To - Spending review Topic 2]]+Dataset[[#This Row],[2024/25 To - Spending review Topic 3]]+Dataset[[#This Row],[2024/25 To - Spending review Topic 4]]+Dataset[[#This Row],[2024/25 To - Other reallocations]] -> 0 | CF78: =Dataset[[#This Row],[2025/26 To - Spending review Topic 1]]+Dataset[[#This Row],[2025/26 To - Spending review Topic 2]]+Dataset[[#This Row],[2025/26 To - Spending review Topic 3]]+Dataset[[#This Row],[2025/26 To - Spending review Topic 4]]+Dataset[[#This Row],[2025/26 To - Other reallocations]] -> 0 | CG78: =Dataset[[#This Row],[2026/27 To - Spending review Topic 1]]+Dataset[[#This Row],[2026/27 To - Spending review Topic 2]]+Dataset[[#This Row],[2026/27 To - Spending review Topic 3]]+Dataset[[#This Row],[2026/27 To - Spending review Topic 4]]+Dataset[[#This Row],[2026/27 To - Other reallocations]] -> 0 | CH78: =Dataset[[#This Row],[2024/25 Reduction]]+Dataset[[#This Row],[2024/25 From - Total]] -> 0 | CI78: =Dataset[[#This Row],[2025/26 Reduction]]+Dataset[[#This Row],[2025/26 From - Total]] -> 0 | CJ78: =Dataset[[#This Row],[2026/27 Reduction]]+Dataset[[#This Row],[2026/27 From - Total]] -> 0 | CK78: =Dataset[[#This Row],[2023/24 Reduction]] -> 0 | CL78: =SUM(Dataset[[#This Row],[2024/25 Reduction]],Dataset[[#This Row],[2024/25 From - Total]],Dataset[[#This Row],[2024/25 To - Total]]) -> 0 | CM78: =SUM(Dataset[[#This Row],[2025/26 Reduction]],Dataset[[#This Row],[2025/26 From - Total]],Dataset[[#This Row],[2025/26 To - Total]]) -> 0 | CN78: =SUM(Dataset[[#This Row],[2026/27 Reduction]],Dataset[[#This Row],[2026/27 From - Total]],Dataset[[#This Row],[2026/27 To - Total]]) -> 0 | CO78: =Dataset[[#This Row],[2023/24 Baseline]]+Dataset[[#This Row],[2023/24 Total change]] -> 0 | CP78: =Dataset[[#This Row],[2024/25 Baseline]]+Dataset[[#This Row],[2024/25 Total change]] -> 0 | CQ78: =Dataset[[#This Row],[2025/26 Baseline]]+Dataset[[#This Row],[2025/26 Total change]] -> 0 | CR78: =Dataset[[#This Row],[2026/27 Baseline]]+Dataset[[#This Row],[2026/27 Total change]] -> 0
A79: NAT|Non-transfer item | B79: 32|Inventory: Medicine | C79: 2024_25 | D79: MTEF2024 | E79: 32 | F79: 1 | G79: 2 | H79: 54241 | I79: 61 | J79: 32 | K79: 01 | L79: 02 | M79: 054241 | N79: 000061 | O79: 32|01|02 | P79: 01 | Q79: 01 | R79: 02 | S79: 28 | T79: 28 | U79: 01|01|02|28|28 | V79: National | W79: Forestry, Fisheries and the Environment | X79: Administration | Y79: Corporate Management Services | Z79: Non-transfer item | AA79: Current | AB79: Current payments | AC79: Goods and services | AD79: Inventory: Medicine | AE79: Inventory: Medicine | AF79: Economic development | AG79: Economic regulation and infrastructure | AH79: NAT | AI79: 0 | AJ79: 0 | AK79: 0 | AL79: 0 | AM79: 0 | AN79: 0 | AO79: 0 | AP79: 0 | AQ79: 0 | AR79: 0 | AS79: 0 | CB79: =Dataset[[#This Row],[2024/25 From - Spending review Topic 1]]+Dataset[[#This Row],[2024/25 From - Spending review Topic 2]]+Dataset[[#This Row],[2024/25 From - Spending review Topic 3]]+Dataset[[#This Row],[2024/25 From - Spending review Topic 4]]+Dataset[[#This Row],[2024/25 From - Other reallocations]] -> 0 | CC79: =Dataset[[#This Row],[2025/26 From - Spending review Topic 1]]+Dataset[[#This Row],[2025/26 From - Spending review Topic 2]]+Dataset[[#This Row],[2025/26 From - Spending review Topic 3]]+Dataset[[#This Row],[2025/26 From - Spending review Topic 4]]+Dataset[[#This Row],[2025/26 From - Other reallocations]] -> 0 | CD79: =Dataset[[#This Row],[2026/27 From - Spending review Topic 1]]+Dataset[[#This Row],[2026/27 From - Spending review Topic 2]]+Dataset[[#This Row],[2026/27 From - Spending review Topic 3]]+Dataset[[#This Row],[2026/27 From - Spending review Topic 4]]+Dataset[[#This Row],[2026/27 From - Other reallocations]] -> 0 | CE79: =Dataset[[#This Row],[2024/25 To - Spending review Topic 1]]+Dataset[[#This Row],[2024/25 To - Spending review Topic 2]]+Dataset[[#This Row],[2024/25 To - Spending review Topic 3]]+Dataset[[#This Row],[2024/25 To - Spending review Topic 4]]+Dataset[[#This Row],[2024/25 To - Other reallocations]] -> 0 | CF79: =Dataset[[#This Row],[2025/26 To - Spending review Topic 1]]+Dataset[[#This Row],[2025/26 To - Spending review Topic 2]]+Dataset[[#This Row],[2025/26 To - Spending review Topic 3]]+Dataset[[#This Row],[2025/26 To - Spending review Topic 4]]+Dataset[[#This Row],[2025/26 To - Other reallocations]] -> 0 | CG79: =Dataset[[#This Row],[2026/27 To - Spending review Topic 1]]+Dataset[[#This Row],[2026/27 To - Spending review Topic 2]]+Dataset[[#This Row],[2026/27 To - Spending review Topic 3]]+Dataset[[#This Row],[2026/27 To - Spending review Topic 4]]+Dataset[[#This Row],[2026/27 To - Other reallocations]] -> 0 | CH79: =Dataset[[#This Row],[2024/25 Reduction]]+Dataset[[#This Row],[2024/25 From - Total]] -> 0 | CI79: =Dataset[[#This Row],[2025/26 Reduction]]+Dataset[[#This Row],[2025/26 From - Total]] -> 0 | CJ79: =Dataset[[#This Row],[2026/27 Reduction]]+Dataset[[#This Row],[2026/27 From - Total]] -> 0 | CK79: =Dataset[[#This Row],[2023/24 Reduction]] -> 0 | CL79: =SUM(Dataset[[#This Row],[2024/25 Reduction]],Dataset[[#This Row],[2024/25 From - Total]],Dataset[[#This Row],[2024/25 To - Total]]) -> 0 | CM79: =SUM(Dataset[[#This Row],[2025/26 Reduction]],Dataset[[#This Row],[2025/26 From - Total]],Dataset[[#This Row],[2025/26 To - Total]]) -> 0 | CN79: =SUM(Dataset[[#This Row],[2026/27 Reduction]],Dataset[[#This Row],[2026/27 From - Total]],Dataset[[#This Row],[2026/27 To - Total]]) -> 0 | CO79: =Dataset[[#This Row],[2023/24 Baseline]]+Dataset[[#This Row],[2023/24 Total change]] -> 0 | CP79: =Dataset[[#This Row],[2024/25 Baseline]]+Dataset[[#This Row],[2024/25 Total change]] -> 0 | CQ79: =Dataset[[#This Row],[2025/26 Baseline]]+Dataset[[#This Row],[2025/26 Total change]] -> 0 | CR79: =Dataset[[#This Row],[2026/27 Baseline]]+Dataset[[#This Row],[2026/27 Total change]] -> 0
A80: NAT|Non-transfer item | B80: 32|Medsas inventory interface | C80: 2024_25 | D80: MTEF2024 | E80: 32 | F80: 1 | G80: 2 | H80: 54242 | I80: 62 | J80: 32 | K80: 01 | L80: 02 | M80: 054242 | N80: 000062 | O80: 32|01|02 | P80: 01 | Q80: 01 | R80: 02 | S80: 29 | T80: 29 | U80: 01|01|02|29|29 | V80: National | W80: Forestry, Fisheries and the Environment | X80: Administration | Y80: Corporate Management Services | Z80: Non-transfer item | AA80: Current | AB80: Current payments | AC80: Goods and services | AD80: Medsas inventory interface | AE80: Medsas inventory interface | AF80: Economic development | AG80: Economic regulation and infrastructure | AH80: NAT | AI80: 0 | AJ80: 0 | AK80: 0 | AL80: 0 | AM80: 0 | AN80: 0 | AO80: 0 | AP80: 0 | AQ80: 0 | AR80: 0 | AS80: 0 | CB80: =Dataset[[#This Row],[2024/25 From - Spending review Topic 1]]+Dataset[[#This Row],[2024/25 From - Spending review Topic 2]]+Dataset[[#This Row],[2024/25 From - Spending review Topic 3]]+Dataset[[#This Row],[2024/25 From - Spending review Topic 4]]+Dataset[[#This Row],[2024/25 From - Other reallocations]] -> 0 | CC80: =Dataset[[#This Row],[2025/26 From - Spending review Topic 1]]+Dataset[[#This Row],[2025/26 From - Spending review Topic 2]]+Dataset[[#This Row],[2025/26 From - Spending review Topic 3]]+Dataset[[#This Row],[2025/26 From - Spending review Topic 4]]+Dataset[[#This Row],[2025/26 From - Other reallocations]] -> 0 | CD80: =Dataset[[#This Row],[2026/27 From - Spending review Topic 1]]+Dataset[[#This Row],[2026/27 From - Spending review Topic 2]]+Dataset[[#This Row],[2026/27 From - Spending review Topic 3]]+Dataset[[#This Row],[2026/27 From - Spending review Topic 4]]+Dataset[[#This Row],[2026/27 From - Other reallocations]] -> 0 | CE80: =Dataset[[#This Row],[2024/25 To - Spending review Topic 1]]+Dataset[[#This Row],[2024/25 To - Spending review Topic 2]]+Dataset[[#This Row],[2024/25 To - Spending review Topic 3]]+Dataset[[#This Row],[2024/25 To - Spending review Topic 4]]+Dataset[[#This Row],[2024/25 To - Other reallocations]] -> 0 | CF80: =Dataset[[#This Row],[2025/26 To - Spending review Topic 1]]+Dataset[[#This Row],[2025/26 To - Spending review Topic 2]]+Dataset[[#This Row],[2025/26 To - Spending review Topic 3]]+Dataset[[#This Row],[2025/26 To - Spending review Topic 4]]+Dataset[[#This Row],[2025/26 To - Other reallocations]] -> 0 | CG80: =Dataset[[#This Row],[2026/27 To - Spending review Topic 1]]+Dataset[[#This Row],[2026/27 To - Spending review Topic 2]]+Dataset[[#This Row],[2026/27 To - Spending review Topic 3]]+Dataset[[#This Row],[2026/27 To - Spending review Topic 4]]+Dataset[[#This Row],[2026/27 To - Other reallocations]] -> 0 | CH80: =Dataset[[#This Row],[2024/25 Reduction]]+Dataset[[#This Row],[2024/25 From - Total]] -> 0 | CI80: =Dataset[[#This Row],[2025/26 Reduction]]+Dataset[[#This Row],[2025/26 From - Total]] -> 0 | CJ80: =Dataset[[#This Row],[2026/27 Reduction]]+Dataset[[#This Row],[2026/27 From - Total]] -> 0 | CK80: =Dataset[[#This Row],[2023/24 Reduction]] -> 0 | CL80: =SUM(Dataset[[#This Row],[2024/25 Reduction]],Dataset[[#This Row],[2024/25 From - Total]],Dataset[[#This Row],[2024/25 To - Total]]) -> 0 | CM80: =SUM(Dataset[[#This Row],[2025/26 Reduction]],Dataset[[#This Row],[2025/26 From - Total]],Dataset[[#This Row],[2025/26 To - Total]]) -> 0 | CN80: =SUM(Dataset[[#This Row],[2026/27 Reduction]],Dataset[[#This Row],[2026/27 From - Total]],Dataset[[#This Row],[2026/27 To - Total]]) -> 0 | CO80: =Dataset[[#This Row],[2023/24 Baseline]]+Dataset[[#This Row],[2023/24 Total change]] -> 0 | CP80: =Dataset[[#This Row],[2024/25 Baseline]]+Dataset[[#This Row],[2024/25 Total change]] -> 0 | CQ80: =Dataset[[#This Row],[2025/26 Baseline]]+Dataset[[#This Row],[2025/26 Total change]] -> 0 | CR80: =Dataset[[#This Row],[2026/27 Baseline]]+Dataset[[#This Row],[2026/27 Total change]] -> 0
A81: NAT|Non-transfer item | B81: 32|Inventory: Other supplies | C81: 2024_25 | D81: MTEF2024 | E81: 32 | F81: 1 | G81: 2 | H81: 54243 | I81: 63 | J81: 32 | K81: 01 | L81: 02 | M81: 054243 | N81: 000063 | O81: 32|01|02 | P81: 01 | Q81: 01 | R81: 02 | S81: 30 | T81: 30 | U81: 01|01|02|30|30 | V81: National | W81: Forestry, Fisheries and the Environment | X81: Administration | Y81: Corporate Management Services | Z81: Non-transfer item | AA81: Current | AB81: Current payments | AC81: Goods and services | AD81: Inventory: Other supplies | AE81: Inventory: Other supplies | AF81: Economic development | AG81: Economic regulation and infrastructure | AH81: NAT | AI81: 0 | AJ81: 0 | AK81: 0 | AL81: 0 | AM81: 0 | AN81: 0 | AO81: 117 | AP81: 0 | AQ81: 0 | AR81: 0 | AS81: 0 | CB81: =Dataset[[#This Row],[2024/25 From - Spending review Topic 1]]+Dataset[[#This Row],[2024/25 From - Spending review Topic 2]]+Dataset[[#This Row],[2024/25 From - Spending review Topic 3]]+Dataset[[#This Row],[2024/25 From - Spending review Topic 4]]+Dataset[[#This Row],[2024/25 From - Other reallocations]] -> 0 | CC81: =Dataset[[#This Row],[2025/26 From - Spending review Topic 1]]+Dataset[[#This Row],[2025/26 From - Spending review Topic 2]]+Dataset[[#This Row],[2025/26 From - Spending review Topic 3]]+Dataset[[#This Row],[2025/26 From - Spending review Topic 4]]+Dataset[[#This Row],[2025/26 From - Other reallocations]] -> 0 | CD81: =Dataset[[#This Row],[2026/27 From - Spending review Topic 1]]+Dataset[[#This Row],[2026/27 From - Spending review Topic 2]]+Dataset[[#This Row],[2026/27 From - Spending review Topic 3]]+Dataset[[#This Row],[2026/27 From - Spending review Topic 4]]+Dataset[[#This Row],[2026/27 From - Other reallocations]] -> 0 | CE81: =Dataset[[#This Row],[2024/25 To - Spending review Topic 1]]+Dataset[[#This Row],[2024/25 To - Spending review Topic 2]]+Dataset[[#This Row],[2024/25 To - Spending review Topic 3]]+Dataset[[#This Row],[2024/25 To - Spending review Topic 4]]+Dataset[[#This Row],[2024/25 To - Other reallocations]] -> 0 | CF81: =Dataset[[#This Row],[2025/26 To - Spending review Topic 1]]+Dataset[[#This Row],[2025/26 To - Spending review Topic 2]]+Dataset[[#This Row],[2025/26 To - Spending review Topic 3]]+Dataset[[#This Row],[2025/26 To - Spending review Topic 4]]+Dataset[[#This Row],[2025/26 To - Other reallocations]] -> 0 | CG81: =Dataset[[#This Row],[2026/27 To - Spending review Topic 1]]+Dataset[[#This Row],[2026/27 To - Spending review Topic 2]]+Dataset[[#This Row],[2026/27 To - Spending review Topic 3]]+Dataset[[#This Row],[2026/27 To - Spending review Topic 4]]+Dataset[[#This Row],[2026/27 To - Other reallocations]] -> 0 | CH81: =Dataset[[#This Row],[2024/25 Reduction]]+Dataset[[#This Row],[2024/25 From - Total]] -> 0 | CI81: =Dataset[[#This Row],[2025/26 Reduction]]+Dataset[[#This Row],[2025/26 From - Total]] -> 0 | CJ81: =Dataset[[#This Row],[2026/27 Reduction]]+Dataset[[#This Row],[2026/27 From - Total]] -> 0 | CK81: =Dataset[[#This Row],[2023/24 Reduction]] -> 0 | CL81: =SUM(Dataset[[#This Row],[2024/25 Reduction]],Dataset[[#This Row],[2024/25 From - Total]],Dataset[[#This Row],[2024/25 To - Total]]) -> 0 | CM81: =SUM(Dataset[[#This Row],[2025/26 Reduction]],Dataset[[#This Row],[2025/26 From - Total]],Dataset[[#This Row],[2025/26 To - Total]]) -> 0 | CN81: =SUM(Dataset[[#This Row],[2026/27 Reduction]],Dataset[[#This Row],[2026/27 From - Total]],Dataset[[#This Row],[2026/27 To - Total]]) -> 0 | CO81: =Dataset[[#This Row],[2023/24 Baseline]]+Dataset[[#This Row],[2023/24 Total change]] -> 0 | CP81: =Dataset[[#This Row],[2024/25 Baseline]]+Dataset[[#This Row],[2024/25 Total change]] -> 0 | CQ81: =Dataset[[#This Row],[2025/26 Baseline]]+Dataset[[#This Row],[2025/26 Total change]] -> 0 | CR81: =Dataset[[#This Row],[2026/27 Baseline]]+Dataset[[#This Row],[2026/27 Total change]] -> 0
A82: NAT|Non-transfer item | B82: 32|Consumable supplies | C82: 2024_25 | D82: MTEF2024 | E82: 32 | F82: 1 | G82: 2 | H82: 54244 | I82: 64 | J82: 32 | K82: 01 | L82: 02 | M82: 054244 | N82: 000064 | O82: 32|01|02 | P82: 01 | Q82: 01 | R82: 02 | S82: 31 | T82: 31 | U82: 01|01|02|31|31 | V82: National | W82: Forestry, Fisheries and the Environment | X82: Administration | Y82: Departmental Management | Z82: Non-transfer item | AA82: Current | AB82: Current payments | AC82: Goods and services | AD82: Consumable supplies | AE82: Consumable supplies | AF82: Economic development | AG82: Economic regulation and infrastructure | AH82: NAT | AI82: 11 | AJ82: 19 | AK82: 24 | AL82: 438 | AM82: 413 | AN82: 413 | AO82: 0 | AP82: 157 | AQ82: 932 | AR82: 974 | AS82: 1019 | CB82: =Dataset[[#This Row],[2024/25 From - Spending review Topic 1]]+Dataset[[#This Row],[2024/25 From - Spending review Topic 2]]+Dataset[[#This Row],[2024/25 From - Spending review Topic 3]]+Dataset[[#This Row],[2024/25 From - Spending review Topic 4]]+Dataset[[#This Row],[2024/25 From - Other reallocations]] -> 0 | CC82: =Dataset[[#This Row],[2025/26 From - Spending review Topic 1]]+Dataset[[#This Row],[2025/26 From - Spending review Topic 2]]+Dataset[[#This Row],[2025/26 From - Spending review Topic 3]]+Dataset[[#This Row],[2025/26 From - Spending review Topic 4]]+Dataset[[#This Row],[2025/26 From - Other reallocations]] -> 0 | CD82: =Dataset[[#This Row],[2026/27 From - Spending review Topic 1]]+Dataset[[#This Row],[2026/27 From - Spending review Topic 2]]+Dataset[[#This Row],[2026/27 From - Spending review Topic 3]]+Dataset[[#This Row],[2026/27 From - Spending review Topic 4]]+Dataset[[#This Row],[2026/27 From - Other reallocations]] -> 0 | CE82: =Dataset[[#This Row],[2024/25 To - Spending review Topic 1]]+Dataset[[#This Row],[2024/25 To - Spending review Topic 2]]+Dataset[[#This Row],[2024/25 To - Spending review Topic 3]]+Dataset[[#This Row],[2024/25 To - Spending review Topic 4]]+Dataset[[#This Row],[2024/25 To - Other reallocations]] -> 0 | CF82: =Dataset[[#This Row],[2025/26 To - Spending review Topic 1]]+Dataset[[#This Row],[2025/26 To - Spending review Topic 2]]+Dataset[[#This Row],[2025/26 To - Spending review Topic 3]]+Dataset[[#This Row],[2025/26 To - Spending review Topic 4]]+Dataset[[#This Row],[2025/26 To - Other reallocations]] -> 0 | CG82: =Dataset[[#This Row],[2026/27 To - Spending review Topic 1]]+Dataset[[#This Row],[2026/27 To - Spending review Topic 2]]+Dataset[[#This Row],[2026/27 To - Spending review Topic 3]]+Dataset[[#This Row],[2026/27 To - Spending review Topic 4]]+Dataset[[#This Row],[2026/27 To - Other reallocations]] -> 0 | CH82: =Dataset[[#This Row],[2024/25 Reduction]]+Dataset[[#This Row],[2024/25 From - Total]] -> 0 | CI82: =Dataset[[#This Row],[2025/26 Reduction]]+Dataset[[#This Row],[2025/26 From - Total]] -> 0 | CJ82: =Dataset[[#This Row],[2026/27 Reduction]]+Dataset[[#This Row],[2026/27 From - Total]] -> 0 | CK82: =Dataset[[#This Row],[2023/24 Reduction]] -> 0 | CL82: =SUM(Dataset[[#This Row],[2024/25 Reduction]],Dataset[[#This Row],[2024/25 From - Total]],Dataset[[#This Row],[2024/25 To - Total]]) -> 0 | CM82: =SUM(Dataset[[#This Row],[2025/26 Reduction]],Dataset[[#This Row],[2025/26 From - Total]],Dataset[[#This Row],[2025/26 To - Total]]) -> 0 | CN82: =SUM(Dataset[[#This Row],[2026/27 Reduction]],Dataset[[#This Row],[2026/27 From - Total]],Dataset[[#This Row],[2026/27 To - Total]]) -> 0 | CO82: =Dataset[[#This Row],[2023/24 Baseline]]+Dataset[[#This Row],[2023/24 Total change]] -> 157 | CP82: =Dataset[[#This Row],[2024/25 Baseline]]+Dataset[[#This Row],[2024/25 Total change]] -> 932 | CQ82: =Dataset[[#This Row],[2025/26 Baseline]]+Dataset[[#This Row],[2025/26 Total change]] -> 974 | CR82: =Dataset[[#This Row],[2026/27 Baseline]]+Dataset[[#This Row],[2026/27 Total change]] -> 1019
A83: NAT|Non-transfer item | B83: 32|Consumables: Stationery, printing and office supplies | C83: 2024_25 | D83: MTEF2024 | E83: 32 | F83: 1 | G83: 2 | H83: 54245 | I83: 65 | J83: 32 | K83: 01 | L83: 02 | M83: 054245 | N83: 000065 | O83: 32|01|02 | P83: 01 | Q83: 01 | R83: 02 | S83: 32 | T83: 32 | U83: 01|01|02|32|32 | V83: National | W83: Forestry, Fisheries and the Environment | X83: Administration | Y83: Departmental Management | Z83: Non-transfer item | AA83: Current | AB83: Current payments | AC83: Goods and services | AD83: Consumables: Stationery, printing and office supplies | AE83: Consumables: Stationery, printing and office supplies | AF83: Economic development | AG83: Economic regulation and infrastructure | AH83: NAT | AI83: 1 | AJ83: 81 | AK83: 151 | AL83: 1003 | AM83: 676 | AN83: 676 | AO83: 0 | AP83: 541 | AQ83: 785 | AR83: 1505 | AS83: 1574 | CB83: =Dataset[[#This Row],[2024/25 From - Spending review Topic 1]]+Dataset[[#This Row],[2024/25 From - Spending review Topic 2]]+Dataset[[#This Row],[2024/25 From - Spending review Topic 3]]+Dataset[[#This Row],[2024/25 From - Spending review Topic 4]]+Dataset[[#This Row],[2024/25 From - Other reallocations]] -> 0 | CC83: =Dataset[[#This Row],[2025/26 From - Spending review Topic 1]]+Dataset[[#This Row],[2025/26 From - Spending review Topic 2]]+Dataset[[#This Row],[2025/26 From - Spending review Topic 3]]+Dataset[[#This Row],[2025/26 From - Spending review Topic 4]]+Dataset[[#This Row],[2025/26 From - Other reallocations]] -> 0 | CD83: =Dataset[[#This Row],[2026/27 From - Spending review Topic 1]]+Dataset[[#This Row],[2026/27 From - Spending review Topic 2]]+Dataset[[#This Row],[2026/27 From - Spending review Topic 3]]+Dataset[[#This Row],[2026/27 From - Spending review Topic 4]]+Dataset[[#This Row],[2026/27 From - Other reallocations]] -> 0 | CE83: =Dataset[[#This Row],[2024/25 To - Spending review Topic 1]]+Dataset[[#This Row],[2024/25 To - Spending review Topic 2]]+Dataset[[#This Row],[2024/25 To - Spending review Topic 3]]+Dataset[[#This Row],[2024/25 To - Spending review Topic 4]]+Dataset[[#This Row],[2024/25 To - Other reallocations]] -> 0 | CF83: =Dataset[[#This Row],[2025/26 To - Spending review Topic 1]]+Dataset[[#This Row],[2025/26 To - Spending review Topic 2]]+Dataset[[#This Row],[2025/26 To - Spending review Topic 3]]+Dataset[[#This Row],[2025/26 To - Spending review Topic 4]]+Dataset[[#This Row],[2025/26 To - Other reallocations]] -> 0 | CG83: =Dataset[[#This Row],[2026/27 To - Spending review Topic 1]]+Dataset[[#This Row],[2026/27 To - Spending review Topic 2]]+Dataset[[#This Row],[2026/27 To - Spending review Topic 3]]+Dataset[[#This Row],[2026/27 To - Spending review Topic 4]]+Dataset[[#This Row],[2026/27 To - Other reallocations]] -> 0 | CH83: =Dataset[[#This Row],[2024/25 Reduction]]+Dataset[[#This Row],[2024/25 From - Total]] -> 0 | CI83: =Dataset[[#This Row],[2025/26 Reduction]]+Dataset[[#This Row],[2025/26 From - Total]] -> 0 | CJ83: =Dataset[[#This Row],[2026/27 Reduction]]+Dataset[[#This Row],[2026/27 From - Total]] -> 0 | CK83: =Dataset[[#This Row],[2023/24 Reduction]] -> 0 | CL83: =SUM(Dataset[[#This Row],[2024/25 Reduction]],Dataset[[#This Row],[2024/25 From - Total]],Dataset[[#This Row],[2024/25 To - Total]]) -> 0 | CM83: =SUM(Dataset[[#This Row],[2025/26 Reduction]],Dataset[[#This Row],[2025/26 From - Total]],Dataset[[#This Row],[2025/26 To - Total]]) -> 0 | CN83: =SUM(Dataset[[#This Row],[2026/27 Reduction]],Dataset[[#This Row],[2026/27 From - Total]],Dataset[[#This Row],[2026/27 To - Total]]) -> 0 | CO83: =Dataset[[#This Row],[2023/24 Baseline]]+Dataset[[#This Row],[2023/24 Total change]] -> 541 | CP83: =Dataset[[#This Row],[2024/25 Baseline]]+Dataset[[#This Row],[2024/25 Total change]] -> 785 | CQ83: =Dataset[[#This Row],[2025/26 Baseline]]+Dataset[[#This Row],[2025/26 Total change]] -> 1505 | CR83: =Dataset[[#This Row],[2026/27 Baseline]]+Dataset[[#This Row],[2026/27 Total change]] -> 1574
